Organisation Code,Organisation Label,Effective Date,Organisational Unit,Service Division Label,Category Internal Name,Purpose,Detailed Expenditure Code,Payment Date,Transaction Number,Irrecoverable VAT Amount,Amount,Capital Or Revenue,Beneficiary Name,Procurement Card
Http://opendatacommunities.org/id/metropolitan-district-council/leeds,Leeds City Council,31/10/2023,Adults and Health,Services For Older People Under 65 P/Dis,Agency Payments,Sheltered Accommodation,569,11/10/2023,2310-00001,0.00,5400.00,R,A & V TRANSITIONAL HOMES,No
Http://opendatacommunities.org/id/metropolitan-district-council/leeds,Leeds City Council,31/10/2023,Strategy and Resources,Leeds Building Services ,Supplies and Services,Operational Materials,205,02/08/2023,2310-00002,0.00,34.01,R,A Andrews & Sons Ltd,Yes
Http://opendatacommunities.org/id/metropolitan-district-council/leeds,Leeds City Council,31/10/2023,Children and Families,Social Care,Agency Payments,Section 17,551,09/10/2023,2310-00003,0.00,250.00,R,REDACTED PERSONAL DATA,No
Http://opendatacommunities.org/id/metropolitan-district-council/leeds,Leeds City Council,31/10/2023,Strategic Landlord,HRA Housing Leeds,Capital,CONSTRUCTION,3,05/10/2023,2310-00004,0.00,86666.86,C,A Connolly Limited,No
Http://opendatacommunities.org/id/metropolitan-district-council/leeds,Leeds City Council,31/10/2023,Strategic Landlord,HRA Housing Leeds,Capital,CONSTRUCTION,3,26/10/2023,2310-00005,0.00,81501.99,C,A Connolly Limited,No
Http://opendatacommunities.org/id/metropolitan-district-council/leeds,Leeds City Council,31/10/2023,Strategy and Resources,Leeds Building Services,Supplies and Services,Other Hired and Contracted Services,265,06/10/2023,2310-00006,0.00,4020.76,R,A Coole Electrical Ltd,No
Http://opendatacommunities.org/id/metropolitan-district-council/leeds,Leeds City Council,31/10/2023,Strategy and Resources,Leeds Building Services,Supplies and Services,Other Hired and Contracted Services,265,11/10/2023,2310-00007,0.00,6184.59,R,A Coole Electrical Ltd,No
Http://opendatacommunities.org/id/metropolitan-district-council/leeds,Leeds City Council,31/10/2023,Strategy and Resources,Leeds Building Services,Supplies and Services,Other Hired and Contracted Services,265,18/10/2023,2310-00008,0.00,175.00,R,A Coole Electrical Ltd,No
Http://opendatacommunities.org/id/metropolitan-district-council/leeds,Leeds City Council,31/10/2023,Strategy and Resources,Leeds Building Services,Supplies and Services,Other Hired and Contracted Services,265,18/10/2023,2310-00009,0.00,475.89,R,A Coole Electrical Ltd,No
Http://opendatacommunities.org/id/metropolitan-district-council/leeds,Leeds City Council,31/10/2023,Communities Housing and Environment,Customer Access,Supplies and Services,Bought In Professional Services,277,04/10/2023,2310-00010,0.00,66.00,R,REDACTED COMMERCIAL CONFIDENTIALITY,No
Http://opendatacommunities.org/id/metropolitan-district-council/leeds,Leeds City Council,31/10/2023,Communities Housing and Environment,Customer Access,Supplies and Services,Bought In Professional Services,277,04/10/2023,2310-00011,0.00,27.00,R,REDACTED COMMERCIAL CONFIDENTIALITY,No
Http://opendatacommunities.org/id/metropolitan-district-council/leeds,Leeds City Council,31/10/2023,Communities Housing and Environment,Customer Access,Supplies and Services,Bought In Professional Services,277,04/10/2023,2310-00012,0.00,31.50,R,REDACTED COMMERCIAL CONFIDENTIALITY,No
Http://opendatacommunities.org/id/metropolitan-district-council/leeds,Leeds City Council,31/10/2023,Communities Housing and Environment,Customer Access,Supplies and Services,Bought In Professional Services,277,04/10/2023,2310-00013,0.00,84.00,R,REDACTED COMMERCIAL CONFIDENTIALITY,No
Http://opendatacommunities.org/id/metropolitan-district-council/leeds,Leeds City Council,31/10/2023,Communities Housing and Environment,Customer Access,Supplies and Services,Bought In Professional Services,277,04/10/2023,2310-00014,0.00,30.00,R,REDACTED COMMERCIAL CONFIDENTIALITY,No
Http://opendatacommunities.org/id/metropolitan-district-council/leeds,Leeds City Council,31/10/2023,Communities Housing and Environment,Customer Access,Supplies and Services,Bought In Professional Services,277,11/10/2023,2310-00015,0.00,84.00,R,REDACTED COMMERCIAL CONFIDENTIALITY,No
Http://opendatacommunities.org/id/metropolitan-district-council/leeds,Leeds City Council,31/10/2023,Communities Housing and Environment,Customer Access,Supplies and Services,Bought In Professional Services,277,11/10/2023,2310-00016,0.00,72.00,R,REDACTED COMMERCIAL CONFIDENTIALITY,No
Http://opendatacommunities.org/id/metropolitan-district-council/leeds,Leeds City Council,31/10/2023,Communities Housing and Environment,Customer Access,Supplies and Services,Bought In Professional Services,277,11/10/2023,2310-00017,0.00,27.00,R,REDACTED COMMERCIAL CONFIDENTIALITY,No
Http://opendatacommunities.org/id/metropolitan-district-council/leeds,Leeds City Council,31/10/2023,Communities Housing and Environment,Customer Access,Supplies and Services,Bought In Professional Services,277,11/10/2023,2310-00018,0.00,36.00,R,REDACTED COMMERCIAL CONFIDENTIALITY,No
Http://opendatacommunities.org/id/metropolitan-district-council/leeds,Leeds City Council,31/10/2023,Communities Housing and Environment,Customer Access,Supplies and Services,Bought In Professional Services,277,11/10/2023,2310-00019,0.00,84.00,R,REDACTED COMMERCIAL CONFIDENTIALITY,No
Http://opendatacommunities.org/id/metropolitan-district-council/leeds,Leeds City Council,31/10/2023,Communities Housing and Environment,Customer Access,Supplies and Services,Bought In Professional Services,277,18/10/2023,2310-00020,0.00,93.00,R,REDACTED COMMERCIAL CONFIDENTIALITY,No
Http://opendatacommunities.org/id/metropolitan-district-council/leeds,Leeds City Council,31/10/2023,Communities Housing and Environment,Customer Access,Supplies and Services,Bought In Professional Services,277,18/10/2023,2310-00021,0.00,105.00,R,REDACTED COMMERCIAL CONFIDENTIALITY,No
Http://opendatacommunities.org/id/metropolitan-district-council/leeds,Leeds City Council,31/10/2023,Communities Housing and Environment,Customer Access,Supplies and Services,Bought In Professional Services,277,18/10/2023,2310-00022,0.00,18.00,R,REDACTED COMMERCIAL CONFIDENTIALITY,No
Http://opendatacommunities.org/id/metropolitan-district-council/leeds,Leeds City Council,31/10/2023,Communities Housing and Environment,Customer Access,Supplies and Services,Bought In Professional Services,277,18/10/2023,2310-00023,0.00,18.00,R,REDACTED COMMERCIAL CONFIDENTIALITY,No
Http://opendatacommunities.org/id/metropolitan-district-council/leeds,Leeds City Council,31/10/2023,Communities Housing and Environment,Customer Access,Supplies and Services,Bought In Professional Services,277,18/10/2023,2310-00024,0.00,84.00,R,REDACTED COMMERCIAL CONFIDENTIALITY,No
Http://opendatacommunities.org/id/metropolitan-district-council/leeds,Leeds City Council,31/10/2023,Communities Housing and Environment,Customer Access,Supplies and Services,Bought In Professional Services,277,18/10/2023,2310-00025,0.00,84.00,R,REDACTED COMMERCIAL CONFIDENTIALITY,No
Http://opendatacommunities.org/id/metropolitan-district-council/leeds,Leeds City Council,31/10/2023,Communities Housing and Environment,Customer Access,Supplies and Services,Bought In Professional Services,277,25/10/2023,2310-00026,0.00,66.00,R,REDACTED COMMERCIAL CONFIDENTIALITY,No
Http://opendatacommunities.org/id/metropolitan-district-council/leeds,Leeds City Council,31/10/2023,Children and Families,Social Care,Agency Payments,Services Rendered By Voluntary Sector,505,04/10/2023,2310-00027,0.00,2450.70,R,REDACTED PERSONAL DATA,No
Http://opendatacommunities.org/id/metropolitan-district-council/leeds,Leeds City Council,31/10/2023,Children and Families,Social Care,Agency Payments,Services Rendered By Voluntary Sector,505,06/10/2023,2310-00028,0.00,5292.00,R,REDACTED PERSONAL DATA,No
Http://opendatacommunities.org/id/metropolitan-district-council/leeds,Leeds City Council,31/10/2023,Children and Families,Social Care,Agency Payments,Services Rendered By Other Organisations,511,04/10/2023,2310-00029,0.00,816.90,R,REDACTED PERSONAL DATA,No
Http://opendatacommunities.org/id/metropolitan-district-council/leeds,Leeds City Council,31/10/2023,Children and Families,Social Care,Agency Payments,Services Rendered By Other Organisations,511,06/10/2023,2310-00030,0.00,529.20,R,REDACTED PERSONAL DATA,No
Http://opendatacommunities.org/id/metropolitan-district-council/leeds,Leeds City Council,31/10/2023,Children and Families,Social Care,Agency Payments,Services Rendered By Other Organisations,511,06/10/2023,2310-00031,0.00,220.50,R,REDACTED PERSONAL DATA,No
Http://opendatacommunities.org/id/metropolitan-district-council/leeds,Leeds City Council,31/10/2023,Adults and Health,Other Generic Services,Agency Payments,Fees To Carers,563,06/10/2023,2310-00032,0.00,140.73,R,REDACTED PERSONAL DATA,No
Http://opendatacommunities.org/id/metropolitan-district-council/leeds,Leeds City Council,31/10/2023,Adults and Health,Other Generic Services,Agency Payments,Fees To Carers,563,13/10/2023,2310-00033,0.00,140.73,R,REDACTED PERSONAL DATA,No
Http://opendatacommunities.org/id/metropolitan-district-council/leeds,Leeds City Council,31/10/2023,Adults and Health,Other Generic Services,Agency Payments,Fees To Carers,563,16/10/2023,2310-00034,0.00,406.80,R,REDACTED PERSONAL DATA,No
Http://opendatacommunities.org/id/metropolitan-district-council/leeds,Leeds City Council,31/10/2023,Adults and Health,Other Generic Services,Agency Payments,Fees To Carers,563,16/10/2023,2310-00035,0.00,37.80,R,REDACTED PERSONAL DATA,No
Http://opendatacommunities.org/id/metropolitan-district-council/leeds,Leeds City Council,31/10/2023,Strategy and Resources,Leeds Building Services,Supplies and Services,Operational Materials,205,10/10/2023,2310-00036,0.00,3208.00,R,A J H  Pump Supply & Repair Ltd,No
Http://opendatacommunities.org/id/metropolitan-district-council/leeds,Leeds City Council,31/10/2023,Strategy and Resources,Leeds Building Services,Supplies and Services,Operational Materials,205,30/10/2023,2310-00037,0.00,220.00,R,A J H  Pump Supply & Repair Ltd,No
Http://opendatacommunities.org/id/metropolitan-district-council/leeds,Leeds City Council,31/10/2023,Children and Families,Social Care,Agency Payments,Services Rendered By Other Organisations,511,06/10/2023,2310-00038,0.00,2646.00,R,REDACTED PERSONAL DATA,No
Http://opendatacommunities.org/id/metropolitan-district-council/leeds,Leeds City Council,31/10/2023,Children and Families,Social Care,Employees,Agency Staff,8,18/10/2023,2310-00039,0.00,936.00,R,A Little Something Extra Ltd,No
Http://opendatacommunities.org/id/metropolitan-district-council/leeds,Leeds City Council,31/10/2023,Children and Families,Social Care,Employees,Agency Staff,8,18/10/2023,2310-00040,0.00,1404.00,R,A Little Something Extra Ltd,No
Http://opendatacommunities.org/id/metropolitan-district-council/leeds,Leeds City Council,31/10/2023,Children and Families,Social Care,Employees,Agency Staff,8,18/10/2023,2310-00041,0.00,1287.00,R,A Little Something Extra Ltd,No
Http://opendatacommunities.org/id/metropolitan-district-council/leeds,Leeds City Council,31/10/2023,Strategic Landlord,HRA Housing Leeds,Capital,OTHER COSTS,7,09/10/2023,2310-00042,0.00,80.00,C,REDACTED PERSONAL DATA,No
Http://opendatacommunities.org/id/metropolitan-district-council/leeds,Leeds City Council,31/10/2023,Children and Families,Social Care,Agency Payments,Services Rendered By Other Organisations,511,04/10/2023,2310-00043,0.00,1225.35,R,REDACTED PERSONAL DATA,No
Http://opendatacommunities.org/id/metropolitan-district-council/leeds,Leeds City Council,31/10/2023,Children and Families,Social Care,Agency Payments,Services Rendered By Other Organisations,511,06/10/2023,2310-00044,0.00,793.80,R,REDACTED PERSONAL DATA,No
Http://opendatacommunities.org/id/metropolitan-district-council/leeds,Leeds City Council,31/10/2023,Communities Housing and Environment,Customer Access,Supplies and Services,Bought In Professional Services,277,04/10/2023,2310-00045,0.00,66.00,R,A NAMAKI,No
Http://opendatacommunities.org/id/metropolitan-district-council/leeds,Leeds City Council,31/10/2023,Communities Housing and Environment,Customer Access,Supplies and Services,Bought In Professional Services,277,04/10/2023,2310-00046,0.00,18.00,R,A NAMAKI,No
Http://opendatacommunities.org/id/metropolitan-district-council/leeds,Leeds City Council,31/10/2023,Communities Housing and Environment,Customer Access,Supplies and Services,Bought In Professional Services,277,04/10/2023,2310-00047,0.00,18.00,R,A NAMAKI,No
Http://opendatacommunities.org/id/metropolitan-district-council/leeds,Leeds City Council,31/10/2023,Communities Housing and Environment,Customer Access,Supplies and Services,Bought In Professional Services,277,04/10/2023,2310-00048,0.00,18.00,R,A NAMAKI,No
Http://opendatacommunities.org/id/metropolitan-district-council/leeds,Leeds City Council,31/10/2023,Communities Housing and Environment,Customer Access,Supplies and Services,Bought In Professional Services,277,04/10/2023,2310-00049,0.00,18.00,R,A NAMAKI,No
Http://opendatacommunities.org/id/metropolitan-district-council/leeds,Leeds City Council,31/10/2023,Communities Housing and Environment,Customer Access,Supplies and Services,Bought In Professional Services,277,11/10/2023,2310-00050,0.00,18.00,R,A NAMAKI,No
Http://opendatacommunities.org/id/metropolitan-district-council/leeds,Leeds City Council,31/10/2023,Communities Housing and Environment,Customer Access,Supplies and Services,Bought In Professional Services,277,11/10/2023,2310-00051,0.00,45.00,R,A NAMAKI,No
Http://opendatacommunities.org/id/metropolitan-district-council/leeds,Leeds City Council,31/10/2023,Communities Housing and Environment,Customer Access,Supplies and Services,Bought In Professional Services,277,11/10/2023,2310-00052,0.00,45.00,R,A NAMAKI,No
Http://opendatacommunities.org/id/metropolitan-district-council/leeds,Leeds City Council,31/10/2023,Communities Housing and Environment,Customer Access,Supplies and Services,Bought In Professional Services,277,11/10/2023,2310-00053,0.00,27.00,R,A NAMAKI,No
Http://opendatacommunities.org/id/metropolitan-district-council/leeds,Leeds City Council,31/10/2023,Communities Housing and Environment,Customer Access,Supplies and Services,Bought In Professional Services,277,11/10/2023,2310-00054,0.00,18.00,R,A NAMAKI,No
Http://opendatacommunities.org/id/metropolitan-district-council/leeds,Leeds City Council,31/10/2023,Communities Housing and Environment,Customer Access,Supplies and Services,Bought In Professional Services,277,11/10/2023,2310-00055,0.00,27.00,R,A NAMAKI,No
Http://opendatacommunities.org/id/metropolitan-district-council/leeds,Leeds City Council,31/10/2023,Communities Housing and Environment,Customer Access,Supplies and Services,Bought In Professional Services,277,11/10/2023,2310-00056,0.00,22.50,R,A NAMAKI,No
Http://opendatacommunities.org/id/metropolitan-district-council/leeds,Leeds City Council,31/10/2023,Communities Housing and Environment,Customer Access,Supplies and Services,Bought In Professional Services,277,11/10/2023,2310-00057,0.00,18.00,R,A NAMAKI,No
Http://opendatacommunities.org/id/metropolitan-district-council/leeds,Leeds City Council,31/10/2023,Communities Housing and Environment,Customer Access,Supplies and Services,Bought In Professional Services,277,18/10/2023,2310-00058,0.00,54.00,R,A NAMAKI,No
Http://opendatacommunities.org/id/metropolitan-district-council/leeds,Leeds City Council,31/10/2023,Communities Housing and Environment,Customer Access,Supplies and Services,Bought In Professional Services,277,18/10/2023,2310-00059,0.00,18.00,R,A NAMAKI,No
Http://opendatacommunities.org/id/metropolitan-district-council/leeds,Leeds City Council,31/10/2023,Communities Housing and Environment,Customer Access,Supplies and Services,Bought In Professional Services,277,18/10/2023,2310-00060,0.00,18.00,R,A NAMAKI,No
Http://opendatacommunities.org/id/metropolitan-district-council/leeds,Leeds City Council,31/10/2023,Communities Housing and Environment,Customer Access,Supplies and Services,Bought In Professional Services,277,18/10/2023,2310-00061,0.00,18.00,R,A NAMAKI,No
Http://opendatacommunities.org/id/metropolitan-district-council/leeds,Leeds City Council,31/10/2023,Communities Housing and Environment,Customer Access,Supplies and Services,Bought In Professional Services,277,18/10/2023,2310-00062,0.00,18.00,R,A NAMAKI,No
Http://opendatacommunities.org/id/metropolitan-district-council/leeds,Leeds City Council,31/10/2023,Communities Housing and Environment,Customer Access,Supplies and Services,Bought In Professional Services,277,25/10/2023,2310-00063,0.00,13.50,R,A NAMAKI,No
Http://opendatacommunities.org/id/metropolitan-district-council/leeds,Leeds City Council,31/10/2023,Communities Housing and Environment,Customer Access,Supplies and Services,Bought In Professional Services,277,25/10/2023,2310-00064,0.00,18.00,R,A NAMAKI,No
Http://opendatacommunities.org/id/metropolitan-district-council/leeds,Leeds City Council,31/10/2023,Communities Housing and Environment,Customer Access,Supplies and Services,Bought In Professional Services,277,25/10/2023,2310-00065,0.00,18.00,R,A NAMAKI,No
Http://opendatacommunities.org/id/metropolitan-district-council/leeds,Leeds City Council,31/10/2023,Communities Housing and Environment,Customer Access,Supplies and Services,Bought In Professional Services,277,25/10/2023,2310-00066,0.00,18.00,R,A NAMAKI,No
Http://opendatacommunities.org/id/metropolitan-district-council/leeds,Leeds City Council,31/10/2023,Communities Housing and Environment,Customer Access,Supplies and Services,Bought In Professional Services,277,25/10/2023,2310-00067,0.00,18.00,R,A NAMAKI,No
Http://opendatacommunities.org/id/metropolitan-district-council/leeds,Leeds City Council,31/10/2023,Communities Housing and Environment,Customer Access,Supplies and Services,Bought In Professional Services,277,25/10/2023,2310-00068,0.00,18.00,R,A NAMAKI,No
Http://opendatacommunities.org/id/metropolitan-district-council/leeds,Leeds City Council,31/10/2023,Communities Housing and Environment,Customer Access,Supplies and Services,Bought In Professional Services,277,25/10/2023,2310-00069,0.00,18.00,R,A NAMAKI,No
Http://opendatacommunities.org/id/metropolitan-district-council/leeds,Leeds City Council,31/10/2023,Children and Families,Social Care,Agency Payments,Services Rendered By Other Organisations,511,06/10/2023,2310-00070,0.00,264.60,R,REDACTED PERSONAL DATA,No
Http://opendatacommunities.org/id/metropolitan-district-council/leeds,Leeds City Council,31/10/2023,City Development,Libraries Arts & Heritage,Supplies and Services,Bought In Professional Services,277,20/10/2023,2310-00071,0.00,766.00,R,A P Wood,No
Http://opendatacommunities.org/id/metropolitan-district-council/leeds,Leeds City Council,31/10/2023,Communities Housing and Environment,Climate Energy & Greenspaces,Supplies and Services,Operational Furniture and Equipment,203,05/10/2023,2310-00072,0.00,4092.00,R,A R Twigg & Son Limited,No
Http://opendatacommunities.org/id/metropolitan-district-council/leeds,Leeds City Council,31/10/2023,Strategy and Resources,Commercial Services,Supplies and Services,Other Hired and Contracted Services,265,31/10/2023,2310-00073,0.00,140.80,R,REDACTED PERSONAL DATA,No
Http://opendatacommunities.org/id/metropolitan-district-council/leeds,Leeds City Council,31/10/2023,Children and Families,Social Care,Agency Payments,Services Rendered By Other Organisations,511,04/10/2023,2310-00074,0.00,816.90,R,REDACTED PERSONAL DATA,No
Http://opendatacommunities.org/id/metropolitan-district-council/leeds,Leeds City Council,31/10/2023,Children and Families,Social Care,Agency Payments,Services Rendered By Other Organisations,511,06/10/2023,2310-00075,0.00,264.60,R,REDACTED PERSONAL DATA,No
Http://opendatacommunities.org/id/metropolitan-district-council/leeds,Leeds City Council,31/10/2023,Communities Housing and Environment,Waste Management,Employees,Training & Development,70,20/10/2023,2310-00076,0.00,234.40,R,A T Nerac Ltd,No
Http://opendatacommunities.org/id/metropolitan-district-council/leeds,Leeds City Council,31/10/2023,Communities Housing and Environment,Waste Management,Employees,Training & Development,70,27/10/2023,2310-00077,0.00,362.40,R,A T Nerac Ltd,No
Http://opendatacommunities.org/id/metropolitan-district-council/leeds,Leeds City Council,31/10/2023,City Development,Economic Development,Supplies and Services,Grants To Businesses,243,30/10/2023,2310-00078,0.00,4987.50,R,A Touch Of Glass (Yorkshire) Ltd,No
Http://opendatacommunities.org/id/metropolitan-district-council/leeds,Leeds City Council,31/10/2023,Adults and Health,Services For Adults Under 65 Mental/Dis,Agency Payments,Sheltered Accommodation,569,12/10/2023,2310-00079,0.00,8435.17,R,REDACTED PERSONAL DATA,No
Http://opendatacommunities.org/id/metropolitan-district-council/leeds,Leeds City Council,31/10/2023,Children and Families,Social Care,Agency Payments,Services Rendered By Other Organisations,511,06/10/2023,2310-00080,0.00,176.40,R,REDACTED PERSONAL DATA,No
Http://opendatacommunities.org/id/metropolitan-district-council/leeds,Leeds City Council,31/10/2023,Children and Families,Social Care,Agency Payments,Services Rendered By Other Organisations,511,06/10/2023,2310-00081,0.00,264.60,R,REDACTED PERSONAL DATA,No
Http://opendatacommunities.org/id/metropolitan-district-council/leeds,Leeds City Council,31/10/2023,Communities Housing and Environment,Waste Management,Capital,FURNITURE and EQUIPMENT,5,25/10/2023,2310-00082,0.00,11800.00,C,A&C Weber Uk Ltd,No
Http://opendatacommunities.org/id/metropolitan-district-council/leeds,Leeds City Council,31/10/2023,Strategy and Resources,Leeds Building Services,Supplies and Services,Operational Materials,205,03/10/2023,2310-00083,0.00,1925.00,R,A1 STAIR LIFT SERVICES,No
Http://opendatacommunities.org/id/metropolitan-district-council/leeds,Leeds City Council,31/10/2023,Strategy and Resources,Leeds Building Services,Supplies and Services,Operational Materials,205,03/10/2023,2310-00084,0.00,1625.00,R,A1 STAIR LIFT SERVICES,No
Http://opendatacommunities.org/id/metropolitan-district-council/leeds,Leeds City Council,31/10/2023,Strategy and Resources,Leeds Building Services,Supplies and Services,Operational Materials,205,03/10/2023,2310-00085,0.00,736.00,R,A1 STAIR LIFT SERVICES,No
Http://opendatacommunities.org/id/metropolitan-district-council/leeds,Leeds City Council,31/10/2023,Strategy and Resources,Leeds Building Services,Supplies and Services,Operational Materials,205,06/10/2023,2310-00086,0.00,148.90,R,A1 STAIR LIFT SERVICES,No
Http://opendatacommunities.org/id/metropolitan-district-council/leeds,Leeds City Council,31/10/2023,Strategy and Resources,Leeds Building Services,Supplies and Services,Operational Materials,205,11/10/2023,2310-00087,0.00,840.00,R,A1 STAIR LIFT SERVICES,No
Http://opendatacommunities.org/id/metropolitan-district-council/leeds,Leeds City Council,31/10/2023,Strategy and Resources,Leeds Building Services,Supplies and Services,Other Hired and Contracted Services,265,20/10/2023,2310-00088,0.00,1875.00,R,A1 STAIR LIFT SERVICES,No
Http://opendatacommunities.org/id/metropolitan-district-council/leeds,Leeds City Council,31/10/2023,Strategy and Resources,Leeds Building Services,Supplies and Services,Other Hired and Contracted Services,265,20/10/2023,2310-00089,0.00,3511.00,R,A1 STAIR LIFT SERVICES,No
Http://opendatacommunities.org/id/metropolitan-district-council/leeds,Leeds City Council,31/10/2023,Strategy and Resources,Leeds Building Services,Supplies and Services,Operational Materials,205,26/10/2023,2310-00090,0.00,174.00,R,A1 STAIR LIFT SERVICES,No
Http://opendatacommunities.org/id/metropolitan-district-council/leeds,Leeds City Council,31/10/2023,Adults and Health,Services For Older People - 65 And Over,Agency Payments,Residential Care Dementia,571,11/10/2023,2310-00091,0.00,2469.52,R,Aaron Court Care Home,No
Http://opendatacommunities.org/id/metropolitan-district-council/leeds,Leeds City Council as Accountable Body,31/10/2023,Social Services Pooled Budgets,Jcs For People With Learning Disabilitie,Supplies and Services,Other Equipment,203,19/10/2023,2310-00092,0.00,1365.00,R,AAT (GB) LTD,No
Http://opendatacommunities.org/id/metropolitan-district-council/leeds,Leeds City Council as Accountable Body,31/10/2023,Social Services Pooled Budgets,Leeds Community Equip Store Pooled Budgt,Supplies and Services,Other Equipment,203,26/10/2023,2310-00093,0.00,1230.00,R,AAT (GB) LTD,No
Http://opendatacommunities.org/id/metropolitan-district-council/leeds,Leeds City Council as Accountable Body,31/10/2023,Social Services Pooled Budgets,Leeds Community Equip Store Pooled Budgt,Supplies and Services,Other Equipment,203,26/10/2023,2310-00094,0.00,1264.00,R,AAT (GB) LTD,No
Http://opendatacommunities.org/id/metropolitan-district-council/leeds,Leeds City Council,31/10/2023,Communities Housing and Environment,Customer Access,Supplies and Services,Bought In Professional Services,277,11/10/2023,2310-00095,0.00,18.00,R,Abadit Kiros,No
Http://opendatacommunities.org/id/metropolitan-district-council/leeds,Leeds City Council,31/10/2023,Communities Housing and Environment,Customer Access,Supplies and Services,Bought In Professional Services,277,11/10/2023,2310-00096,0.00,18.00,R,Abadit Kiros,No
Http://opendatacommunities.org/id/metropolitan-district-council/leeds,Leeds City Council,31/10/2023,Communities Housing and Environment,Customer Access,Supplies and Services,Bought In Professional Services,277,11/10/2023,2310-00097,0.00,18.00,R,Abadit Kiros,No
Http://opendatacommunities.org/id/metropolitan-district-council/leeds,Leeds City Council,31/10/2023,Communities Housing and Environment,Customer Access,Supplies and Services,Bought In Professional Services,277,11/10/2023,2310-00098,0.00,27.00,R,Abadit Kiros,No
Http://opendatacommunities.org/id/metropolitan-district-council/leeds,Leeds City Council,31/10/2023,Communities Housing and Environment,Customer Access,Supplies and Services,Bought In Professional Services,277,11/10/2023,2310-00099,0.00,27.00,R,Abadit Kiros,No
Http://opendatacommunities.org/id/metropolitan-district-council/leeds,Leeds City Council,31/10/2023,Communities Housing and Environment,Customer Access,Supplies and Services,Bought In Professional Services,277,18/10/2023,2310-00100,0.00,31.50,R,Abadit Kiros,No
Http://opendatacommunities.org/id/metropolitan-district-council/leeds,Leeds City Council,31/10/2023,Communities Housing and Environment,Customer Access,Supplies and Services,Bought In Professional Services,277,18/10/2023,2310-00101,0.00,40.50,R,Abadit Kiros,No
Http://opendatacommunities.org/id/metropolitan-district-council/leeds,Leeds City Council,31/10/2023,Communities Housing and Environment,Customer Access,Supplies and Services,Bought In Professional Services,277,18/10/2023,2310-00102,0.00,36.00,R,Abadit Kiros,No
Http://opendatacommunities.org/id/metropolitan-district-council/leeds,Leeds City Council,31/10/2023,Communities Housing and Environment,Customer Access,Supplies and Services,Bought In Professional Services,277,18/10/2023,2310-00103,0.00,27.00,R,Abadit Kiros,No
Http://opendatacommunities.org/id/metropolitan-district-council/leeds,Leeds City Council,31/10/2023,Communities Housing and Environment,Customer Access,Supplies and Services,Bought In Professional Services,277,18/10/2023,2310-00104,0.00,18.00,R,Abadit Kiros,No
Http://opendatacommunities.org/id/metropolitan-district-council/leeds,Leeds City Council,31/10/2023,Communities Housing and Environment,Customer Access,Supplies and Services,Bought In Professional Services,277,25/10/2023,2310-00105,0.00,18.00,R,Abadit Kiros,No
Http://opendatacommunities.org/id/metropolitan-district-council/leeds,Leeds City Council,31/10/2023,Communities Housing and Environment,Customer Access,Supplies and Services,Bought In Professional Services,277,25/10/2023,2310-00106,0.00,18.00,R,Abadit Kiros,No
Http://opendatacommunities.org/id/metropolitan-district-council/leeds,Leeds City Council,31/10/2023,Communities Housing and Environment,Customer Access,Supplies and Services,Bought In Professional Services,277,25/10/2023,2310-00107,0.00,18.00,R,Abadit Kiros,No
Http://opendatacommunities.org/id/metropolitan-district-council/leeds,Leeds City Council,31/10/2023,Communities Housing and Environment,Customer Access,Supplies and Services,Bought In Professional Services,277,25/10/2023,2310-00108,0.00,18.00,R,Abadit Kiros,No
Http://opendatacommunities.org/id/metropolitan-district-council/leeds,Leeds City Council,31/10/2023,Communities Housing and Environment,Customer Access,Supplies and Services,Bought In Professional Services,277,25/10/2023,2310-00109,0.00,18.00,R,Abadit Kiros,No
Http://opendatacommunities.org/id/metropolitan-district-council/leeds,Leeds City Council,31/10/2023,Children and Families,Social Care ,Supplies and Services,Food & Drink,231,04/08/2023,2310-00110,0.00,30.24,R,Abaseen Superstore,Yes
Http://opendatacommunities.org/id/metropolitan-district-council/leeds,Leeds City Council,31/10/2023,Children and Families,Social Care ,Supplies and Services,Food & Drink,231,14/08/2023,2310-00111,0.00,10.00,R,Abaseen Superstore,Yes
Http://opendatacommunities.org/id/metropolitan-district-council/leeds,Leeds City Council,31/10/2023,Children and Families,Learning,Supplies and Services,Other Hired and Contracted Services,265,05/10/2023,2310-00112,0.00,1050.00,R,Abbey Multi Academy Trust,No
Http://opendatacommunities.org/id/metropolitan-district-council/leeds,Leeds City Council,31/10/2023,Communities Housing and Environment,Communities,Transport,Private Hire,360,18/10/2023,2310-00113,0.00,700.00,R,Abbey Travel Coach Hire Ltd,No
Http://opendatacommunities.org/id/metropolitan-district-council/leeds,Leeds City Council,31/10/2023,Adults and Health,Services For Adults Under 65 Mental/Dis,Agency Payments,Home Care,568,04/10/2023,2310-00114,0.00,252.00,R,Abbeyfield The Dales Limited,No
Http://opendatacommunities.org/id/metropolitan-district-council/leeds,Leeds City Council,31/10/2023,Adults and Health,Services For Adults Under 65 Mental/Dis,Agency Payments,Home Care,568,12/10/2023,2310-00115,0.00,252.00,R,Abbeyfield The Dales Limited,No
Http://opendatacommunities.org/id/metropolitan-district-council/leeds,Leeds City Council,31/10/2023,Children and Families,Social Care,Agency Payments,Allowances,546,17/10/2023,2310-00116,0.00,619.32,R,REDACTED PERSONAL DATA,No
Http://opendatacommunities.org/id/metropolitan-district-council/leeds,Leeds City Council,31/10/2023,Children and Families,Social Care,Internal Recharges,Legal Disbursements,411,27/10/2023,2310-00117,0.00,23.75,R,Abbott Toxicology Ltd.,No
Http://opendatacommunities.org/id/metropolitan-district-council/leeds,Leeds City Council,31/10/2023,Children and Families,Social Care,Internal Recharges,Legal Disbursements,411,27/10/2023,2310-00118,0.00,23.75,R,Abbott Toxicology Ltd.,No
Http://opendatacommunities.org/id/metropolitan-district-council/leeds,Leeds City Council,31/10/2023,Communities Housing and Environment,Climate Energy & Greenspaces ,Supplies and Services,Other Hired and Contracted Services,265,09/08/2023,2310-00119,0.00,1000.00,R,Abbotts Memorial Compa,Yes
Http://opendatacommunities.org/id/metropolitan-district-council/leeds,Leeds City Council,31/10/2023,Communities Housing and Environment,Climate Energy & Greenspaces ,Supplies and Services,Other Hired and Contracted Services,265,09/08/2023,2310-00120,0.00,600.00,R,Abbotts Memorial Compa,Yes
Http://opendatacommunities.org/id/metropolitan-district-council/leeds,Leeds City Council,31/10/2023,Communities Housing and Environment,Climate Energy & Greenspaces ,Supplies and Services,Other Hired and Contracted Services,265,09/08/2023,2310-00121,0.00,650.00,R,Abbotts Memorial Compa,Yes
Http://opendatacommunities.org/id/metropolitan-district-council/leeds,Leeds City Council,31/10/2023,Communities Housing and Environment,Climate Energy & Greenspaces ,Supplies and Services,Other Hired and Contracted Services,265,23/08/2023,2310-00122,0.00,1200.00,R,Abbotts Memorial Compa,Yes
Http://opendatacommunities.org/id/metropolitan-district-council/leeds,Leeds City Council,31/10/2023,Children and Families,Social Care,Agency Payments,Services Rendered By Other Organisations,511,04/10/2023,2310-00123,0.00,3676.05,R,ABC NURSERY AT LUFC,No
Http://opendatacommunities.org/id/metropolitan-district-council/leeds,Leeds City Council,31/10/2023,Children and Families,Social Care,Agency Payments,Services Rendered By Other Organisations,511,06/10/2023,2310-00124,0.00,5292.00,R,ABC NURSERY AT LUFC,No
Http://opendatacommunities.org/id/metropolitan-district-council/leeds,Leeds City Council,31/10/2023,Children and Families,Social Care,Agency Payments,Services Rendered By Other Organisations,511,04/10/2023,2310-00125,0.00,1312.87,R,Abc@D'S Childcare,No
Http://opendatacommunities.org/id/metropolitan-district-council/leeds,Leeds City Council,31/10/2023,Children and Families,Social Care,Agency Payments,Services Rendered By Other Organisations,511,06/10/2023,2310-00126,0.00,8505.00,R,Abc@D'S Childcare,No
Http://opendatacommunities.org/id/metropolitan-district-council/leeds,Leeds City Council,31/10/2023,Communities Housing and Environment,Customer Access,Supplies and Services,Bought In Professional Services,277,18/10/2023,2310-00127,0.00,18.00,R,Abdiqafar Abdullahi,No
Http://opendatacommunities.org/id/metropolitan-district-council/leeds,Leeds City Council,31/10/2023,Communities Housing and Environment,Elections Licensing and Registration,External Income,Admissions Booking Fees & Ticket Sales,933,18/10/2023,2310-00128,0.00,330.00,R,REDACTED PERSONAL DATA,No
Http://opendatacommunities.org/id/metropolitan-district-council/leeds,Leeds City Council,31/10/2023,Communities Housing and Environment,Elections Licensing and Registration,External Income,Admissions Booking Fees & Ticket Sales,933,17/10/2023,2310-00129,0.00,45.00,R,REDACTED PERSONAL DATA,No
Http://opendatacommunities.org/id/metropolitan-district-council/leeds,Leeds City Council,31/10/2023,Communities Housing and Environment,Customer Access,Supplies and Services,Bought In Professional Services,277,25/10/2023,2310-00130,0.00,36.00,R,Abdul Kalam,No
Http://opendatacommunities.org/id/metropolitan-district-council/leeds,Leeds City Council,31/10/2023,Communities Housing and Environment,Customer Access,Supplies and Services,Bought In Professional Services,277,04/10/2023,2310-00131,0.00,31.50,R,Abdulahad Denha,No
Http://opendatacommunities.org/id/metropolitan-district-council/leeds,Leeds City Council,31/10/2023,Communities Housing and Environment,Customer Access,Supplies and Services,Bought In Professional Services,277,04/10/2023,2310-00132,0.00,18.00,R,Abdulahad Denha,No
Http://opendatacommunities.org/id/metropolitan-district-council/leeds,Leeds City Council,31/10/2023,Communities Housing and Environment,Customer Access,Supplies and Services,Bought In Professional Services,277,04/10/2023,2310-00133,0.00,22.50,R,Abdulahad Denha,No
Http://opendatacommunities.org/id/metropolitan-district-council/leeds,Leeds City Council,31/10/2023,Communities Housing and Environment,Customer Access,Supplies and Services,Bought In Professional Services,277,04/10/2023,2310-00134,0.00,27.00,R,Abdulahad Denha,No
Http://opendatacommunities.org/id/metropolitan-district-council/leeds,Leeds City Council,31/10/2023,Communities Housing and Environment,Customer Access,Supplies and Services,Bought In Professional Services,277,04/10/2023,2310-00135,0.00,18.00,R,Abdulahad Denha,No
Http://opendatacommunities.org/id/metropolitan-district-council/leeds,Leeds City Council,31/10/2023,Communities Housing and Environment,Customer Access,Supplies and Services,Bought In Professional Services,277,11/10/2023,2310-00136,0.00,13.50,R,Abdulahad Denha,No
Http://opendatacommunities.org/id/metropolitan-district-council/leeds,Leeds City Council,31/10/2023,Communities Housing and Environment,Customer Access,Supplies and Services,Bought In Professional Services,277,11/10/2023,2310-00137,0.00,27.00,R,Abdulahad Denha,No
Http://opendatacommunities.org/id/metropolitan-district-council/leeds,Leeds City Council,31/10/2023,Communities Housing and Environment,Customer Access,Supplies and Services,Bought In Professional Services,277,11/10/2023,2310-00138,0.00,18.00,R,Abdulahad Denha,No
Http://opendatacommunities.org/id/metropolitan-district-council/leeds,Leeds City Council,31/10/2023,Communities Housing and Environment,Customer Access,Supplies and Services,Bought In Professional Services,277,11/10/2023,2310-00139,0.00,18.00,R,Abdulahad Denha,No
Http://opendatacommunities.org/id/metropolitan-district-council/leeds,Leeds City Council,31/10/2023,Communities Housing and Environment,Customer Access,Supplies and Services,Bought In Professional Services,277,11/10/2023,2310-00140,0.00,18.00,R,Abdulahad Denha,No
Http://opendatacommunities.org/id/metropolitan-district-council/leeds,Leeds City Council,31/10/2023,Communities Housing and Environment,Customer Access,Supplies and Services,Bought In Professional Services,277,11/10/2023,2310-00141,0.00,22.50,R,Abdulahad Denha,No
Http://opendatacommunities.org/id/metropolitan-district-council/leeds,Leeds City Council,31/10/2023,Communities Housing and Environment,Customer Access,Supplies and Services,Bought In Professional Services,277,18/10/2023,2310-00142,0.00,18.00,R,Abdulahad Denha,No
Http://opendatacommunities.org/id/metropolitan-district-council/leeds,Leeds City Council,31/10/2023,Communities Housing and Environment,Customer Access,Supplies and Services,Bought In Professional Services,277,18/10/2023,2310-00143,0.00,18.00,R,Abdulahad Denha,No
Http://opendatacommunities.org/id/metropolitan-district-council/leeds,Leeds City Council,31/10/2023,Communities Housing and Environment,Customer Access,Supplies and Services,Bought In Professional Services,277,18/10/2023,2310-00144,0.00,18.00,R,Abdulahad Denha,No
Http://opendatacommunities.org/id/metropolitan-district-council/leeds,Leeds City Council,31/10/2023,Communities Housing and Environment,Customer Access,Supplies and Services,Bought In Professional Services,277,18/10/2023,2310-00145,0.00,18.00,R,Abdulahad Denha,No
Http://opendatacommunities.org/id/metropolitan-district-council/leeds,Leeds City Council,31/10/2023,Communities Housing and Environment,Customer Access,Supplies and Services,Bought In Professional Services,277,25/10/2023,2310-00146,0.00,27.00,R,Abdulahad Denha,No
Http://opendatacommunities.org/id/metropolitan-district-council/leeds,Leeds City Council,31/10/2023,Communities Housing and Environment,Customer Access,Supplies and Services,Bought In Professional Services,277,25/10/2023,2310-00147,0.00,27.00,R,Abdulahad Denha,No
Http://opendatacommunities.org/id/metropolitan-district-council/leeds,Leeds City Council,31/10/2023,Communities Housing and Environment,Customer Access,Supplies and Services,Bought In Professional Services,277,25/10/2023,2310-00148,0.00,18.00,R,Abdulahad Denha,No
Http://opendatacommunities.org/id/metropolitan-district-council/leeds,Leeds City Council,31/10/2023,Communities Housing and Environment,Customer Access,Supplies and Services,Bought In Professional Services,277,04/10/2023,2310-00149,0.00,18.00,R,Abdulrahim Dastyar,No
Http://opendatacommunities.org/id/metropolitan-district-council/leeds,Leeds City Council,31/10/2023,Communities Housing and Environment,Customer Access,Supplies and Services,Bought In Professional Services,277,18/10/2023,2310-00150,0.00,18.00,R,Abdulrahim Dastyar,No
Http://opendatacommunities.org/id/metropolitan-district-council/leeds,Leeds City Council,31/10/2023,Communities Housing and Environment,Customer Access,Supplies and Services,Bought In Professional Services,277,25/10/2023,2310-00151,0.00,27.00,R,Abdulrahim Dastyar,No
Http://opendatacommunities.org/id/metropolitan-district-council/leeds,Leeds City Council,31/10/2023,Strategy and Resources,Commercial Services,Supplies and Services,Other Hired and Contracted Services,265,31/10/2023,2310-00152,0.00,15.40,R,REDACTED PERSONAL DATA,No
Http://opendatacommunities.org/id/metropolitan-district-council/leeds,Leeds City Council,31/10/2023,Children and Families,Social Care,Agency Payments,Placement Support,550,19/10/2023,2310-00153,0.00,452.00,R,Aberford Childcare Services,No
Http://opendatacommunities.org/id/metropolitan-district-council/leeds,Leeds City Council,31/10/2023,Adults and Health,Services For Older People - 65 And Over,Agency Payments,Nursing Home,570,11/10/2023,2310-00154,0.00,47622.99,R,Aberford Hall,No
Http://opendatacommunities.org/id/metropolitan-district-council/leeds,Leeds City Council,31/10/2023,Adults and Health,Services For Older People Under 65 P/Dis,Agency Payments,Nursing Home,570,11/10/2023,2310-00155,0.00,3016.00,R,Aberford Hall,No
Http://opendatacommunities.org/id/metropolitan-district-council/leeds,Leeds City Council,31/10/2023,Children and Families,Learning,Agency Payments,SEN Placements,566,05/10/2023,2310-00156,0.00,640.00,R,Aberford Village Hall,No
Http://opendatacommunities.org/id/metropolitan-district-council/leeds,Leeds City Council,31/10/2023,Strategy and Resources,Leeds Building Services,Supplies and Services,Operational Materials,205,20/10/2023,2310-00157,0.00,471.20,R,ABI GARAGE DOORS LTD,No
Http://opendatacommunities.org/id/metropolitan-district-council/leeds,Leeds City Council,31/10/2023,Strategy and Resources,Leeds Building Services,Supplies and Services,Operational Materials,205,20/10/2023,2310-00158,0.00,471.20,R,ABI GARAGE DOORS LTD,No
Http://opendatacommunities.org/id/metropolitan-district-council/leeds,Leeds City Council,31/10/2023,Insurance,Insurance,Supplies and Services,Insurance Claims,248,19/10/2023,2310-00159,0.00,123.38,R,REDACTED PERSONAL DATA,No
Http://opendatacommunities.org/id/metropolitan-district-council/leeds,Leeds City Council,31/10/2023,Children and Families,Social Care,Agency Payments, Direct Work,549,03/10/2023,2310-00160,0.00,5.99,R,REDACTED PERSONAL DATA,No
Http://opendatacommunities.org/id/metropolitan-district-council/leeds,Leeds City Council,31/10/2023,Children and Families,Social Care,Agency Payments,General External Residential Placements,507,30/10/2023,2310-00161,0.00,7989.94,R,Absolute Children's Services Ltd,No
Http://opendatacommunities.org/id/metropolitan-district-council/leeds,Leeds City Council,31/10/2023,Children and Families,Social Care ,Supplies and Services,Food & Drink,231,28/08/2023,2310-00162,0.00,9.17,R,Abu Bakr Supermarket,Yes
Http://opendatacommunities.org/id/metropolitan-district-council/leeds,Leeds City Council,31/10/2023,Communities Housing and Environment,Strategic Housing Partnership & Support,Supplies and Services,Other Hired and Contracted Services,265,16/10/2023,2310-00163,0.00,327.04,R,Accent Foundation Ltd,No
Http://opendatacommunities.org/id/metropolitan-district-council/leeds,Leeds City Council,31/10/2023,City Development,Libraries Arts & Heritage,Supplies and Services,Bought In Professional Services,277,13/10/2023,2310-00164,0.00,7900.00,R,ACCESS MOVING IMAGE LTD,No
Http://opendatacommunities.org/id/metropolitan-district-council/leeds,Leeds City Council,31/10/2023,City Development,Libraries Arts & Heritage,Supplies and Services,Bought In Professional Services,277,13/10/2023,2310-00165,0.00,7900.00,R,ACCESS MOVING IMAGE LTD,No
Http://opendatacommunities.org/id/metropolitan-district-council/leeds,Leeds City Council,31/10/2023,Insurance,Insurance,Supplies and Services,Insurance Claims,248,26/10/2023,2310-00166,0.00,5035.55,R,Accountant General Of The Senior Courts,No
Http://opendatacommunities.org/id/metropolitan-district-council/leeds,Leeds City Council,31/10/2023,Strategy and Resources,Leeds Building Services,Supplies and Services,Other Hired and Contracted Services,265,27/10/2023,2310-00167,0.00,960.00,R,Ace Elevators Limited,No
Http://opendatacommunities.org/id/metropolitan-district-council/leeds,Leeds City Council,31/10/2023,Communities Housing and Environment,Strategic Housing Partnership & Support,Supplies and Services,Other Hired and Contracted Services,265,26/10/2023,2310-00168,0.00,2400.00,R,Ace Homes Ltd,No
Http://opendatacommunities.org/id/metropolitan-district-council/leeds,Leeds City Council,31/10/2023,Communities Housing and Environment,Climate Energy & Greenspaces ,Supplies and Services,Other Hired and Contracted Services,265,10/08/2023,2310-00169,0.00,384.67,R,Acme Facilities Group,Yes
Http://opendatacommunities.org/id/metropolitan-district-council/leeds,Leeds City Council,31/10/2023,City Development,Recreation,Supplies and Services,Other Hired and Contracted Services,265,11/10/2023,2310-00170,0.00,334.50,R,Acoo Review Ltd,No
Http://opendatacommunities.org/id/metropolitan-district-council/leeds,Leeds City Council,31/10/2023,Strategy and Resources,Leeds Building Services,Supplies and Services,Other Hired and Contracted Services,265,20/10/2023,2310-00171,0.00,45.50,R,Acorn Analytical Services Limited,No
Http://opendatacommunities.org/id/metropolitan-district-council/leeds,Leeds City Council as Accountable Body,31/10/2023,Social Services Pooled Budgets,Jcs For People With Learning Disabilitie,Agency Payments,Residential,580,11/10/2023,2310-00172,0.00,103912.96,R,Acorn Care & Education Limited,No
Http://opendatacommunities.org/id/metropolitan-district-council/leeds,Leeds City Council as Accountable Body,31/10/2023,Social Services Pooled Budgets,Jcs For People With Learning Disabilitie,Agency Payments,Residential,580,11/10/2023,2310-00173,0.00,21536.80,R,Acorn Care & Education Limited (Ofg),No
Http://opendatacommunities.org/id/metropolitan-district-council/leeds,Leeds City Council,31/10/2023,Children and Families,Learning,Agency Payments,SEN Placements,566,20/10/2023,2310-00174,0.00,13168.63,R,Acorn Care & Education Ltd (Sales),No
Http://opendatacommunities.org/id/metropolitan-district-council/leeds,Leeds City Council,31/10/2023,Children and Families,Learning,Agency Payments,SEN Placements,566,27/10/2023,2310-00175,0.00,20000.00,R,Acorn Care & Education Ltd (Sales),No
Http://opendatacommunities.org/id/metropolitan-district-council/leeds,Leeds City Council,31/10/2023,Adults and Health,Services For Older People Under 65 P/Dis,Agency Payments,Nursing Home,570,11/10/2023,2310-00176,0.00,3500.00,R,Acorn Care Home,No
Http://opendatacommunities.org/id/metropolitan-district-council/leeds,Leeds City Council,31/10/2023,Children and Families,Social Care,Agency Payments,Services Rendered By Other Organisations,511,04/10/2023,2310-00177,0.00,350.10,R,ACORNS NURSERY,No
Http://opendatacommunities.org/id/metropolitan-district-council/leeds,Leeds City Council,31/10/2023,Children and Families,Social Care,Agency Payments,Services Rendered By Other Organisations,511,06/10/2023,2310-00178,0.00,9790.20,R,ACORNS NURSERY,No
Http://opendatacommunities.org/id/metropolitan-district-council/leeds,Leeds City Council,31/10/2023,Adults and Health,Services For Older People - 65 And Over,Agency Payments,Nursing Home,570,11/10/2023,2310-00179,0.00,24010.16,R,Acre Green,No
Http://opendatacommunities.org/id/metropolitan-district-council/leeds,Leeds City Council,31/10/2023,Adults and Health,Services For Older People - 65 And Over,Agency Payments,Residential,580,11/10/2023,2310-00180,0.00,4548.80,R,Acre Green,No
Http://opendatacommunities.org/id/metropolitan-district-council/leeds,Leeds City Council,31/10/2023,Adults and Health,Services For Older People Under 65 P/Dis,Agency Payments,Nursing Home,570,11/10/2023,2310-00181,0.00,2479.64,R,Acre Green,No
Http://opendatacommunities.org/id/metropolitan-district-council/leeds,Leeds City Council,31/10/2023,Adults and Health,Services For Older People Under 65 P/Dis,Agency Payments,Residential,580,11/10/2023,2310-00182,0.00,2071.00,R,Acre Green,No
Http://opendatacommunities.org/id/metropolitan-district-council/leeds,Leeds City Council,31/10/2023,Children and Families,Social Care,Agency Payments,Services Rendered By Other Organisations,511,04/10/2023,2310-00183,0.00,1633.80,R,Acre Wood Day Nursery,No
Http://opendatacommunities.org/id/metropolitan-district-council/leeds,Leeds City Council,31/10/2023,Children and Families,Social Care,Agency Payments,Services Rendered By Other Organisations,511,06/10/2023,2310-00184,0.00,6350.40,R,Acre Wood Day Nursery,No
Http://opendatacommunities.org/id/metropolitan-district-council/leeds,Leeds City Council,31/10/2023,Adults and Health,Services For Adults Under 65 Mental/Dis,Agency Payments,Fees - Level 4,520,06/10/2023,2310-00185,0.00,1330.00,R,Action First Assessments Ltd,No
Http://opendatacommunities.org/id/metropolitan-district-council/leeds,Leeds City Council as Accountable Body,31/10/2023,Social Services Pooled Budgets,Jcs For People With Learning Disabilitie,Agency Payments,Residential,580,11/10/2023,2310-00186,0.00,11613.36,R,Action For Care Contracts Limited,No
Http://opendatacommunities.org/id/metropolitan-district-council/leeds,Leeds City Council,31/10/2023,Children and Families,Social Care,Agency Payments,Independent Fostering Agencies,509,25/10/2023,2310-00187,0.00,5060.44,R,Action For Children Services Ltd,No
Http://opendatacommunities.org/id/metropolitan-district-council/leeds,Leeds City Council,31/10/2023,Children and Families,Social Care,Agency Payments,Services Rendered By Other Organisations,511,04/10/2023,2310-00188,0.00,1225.35,R,ACTIVE KIDS YEADON LLP,No
Http://opendatacommunities.org/id/metropolitan-district-council/leeds,Leeds City Council,31/10/2023,Children and Families,Social Care,Agency Payments,Services Rendered By Other Organisations,511,06/10/2023,2310-00189,0.00,3704.40,R,ACTIVE KIDS YEADON LLP,No
Http://opendatacommunities.org/id/metropolitan-district-council/leeds,Leeds City Council,31/10/2023,City Development,Recreation ,Supplies and Services,Other Hired and Contracted Services,265,24/08/2023,2310-00190,0.00,34.73,R,Active Leeds,Yes
Http://opendatacommunities.org/id/metropolitan-district-council/leeds,Leeds City Council,31/10/2023,Adults and Health,Services For Adults Under 65 Mental/Dis,Agency Payments,Sheltered Accommodation,569,11/10/2023,2310-00191,0.00,38054.88,R,Active Pathways,No
Http://opendatacommunities.org/id/metropolitan-district-council/leeds,Leeds City Council,31/10/2023,Adults and Health,Services For Older People - 65 And Over,Agency Payments,Sheltered Accommodation,569,11/10/2023,2310-00192,0.00,2821.36,R,Active Pathways,No
Http://opendatacommunities.org/id/metropolitan-district-council/leeds,Leeds City Council as Accountable Body,31/10/2023,Social Services Pooled Budgets,Jcs For People With Learning Disabilitie,Agency Payments,Sheltered Accommodation,569,11/10/2023,2310-00193,0.00,9404.48,R,Active Pathways,No
Http://opendatacommunities.org/id/metropolitan-district-council/leeds,Leeds City Council,31/10/2023,Adults and Health,Services For Adults Under 65 Mental/Dis,Agency Payments,Residential,580,11/10/2023,2310-00194,0.00,19596.48,R,Active Pathways Limited,No
Http://opendatacommunities.org/id/metropolitan-district-council/leeds,Leeds City Council,31/10/2023,Adults and Health,Services For Older People - 65 And Over,Agency Payments,Residential,580,11/10/2023,2310-00195,0.00,4899.08,R,Active Pathways Limited,No
Http://opendatacommunities.org/id/metropolitan-district-council/leeds,Leeds City Council,31/10/2023,Adults and Health,Services For Adults Under 65 Mental/Dis,Agency Payments,Home Care,568,13/10/2023,2310-00196,0.00,11274.85,R,Active Pathways Supported Living Ltd,No
Http://opendatacommunities.org/id/metropolitan-district-council/leeds,Leeds City Council,31/10/2023,Strategic Landlord,Housing Management,Supplies and Services,Other Hired and Contracted Services,265,18/10/2023,2310-00197,0.00,5080.55,R,Acuity Research & Practice Ltd,No
Http://opendatacommunities.org/id/metropolitan-district-council/leeds,Leeds City Council,31/10/2023,Communities Housing and Environment,Waste Management,Supplies and Services,Waste Disposal Charges,236,11/10/2023,2310-00198,0.00,1142.30,R,Acumen Waste Services Ltd,No
Http://opendatacommunities.org/id/metropolitan-district-council/leeds,Leeds City Council,31/10/2023,Communities Housing and Environment,Waste Management,Supplies and Services,Recycling & Reuse Charges,234,13/10/2023,2310-00199,0.00,6017.76,R,Acumen Waste Services Ltd,No
Http://opendatacommunities.org/id/metropolitan-district-council/leeds,Leeds City Council,31/10/2023,Communities Housing and Environment,Waste Management,Supplies and Services,Waste Disposal Charges,236,19/10/2023,2310-00200,0.00,1755.50,R,Acumen Waste Services Ltd,No
Http://opendatacommunities.org/id/metropolitan-district-council/leeds,Leeds City Council,31/10/2023,Communities Housing and Environment,Waste Management,Supplies and Services,Waste Disposal Charges,236,19/10/2023,2310-00201,0.00,4014.90,R,Acumen Waste Services Ltd,No
Http://opendatacommunities.org/id/metropolitan-district-council/leeds,Leeds City Council,31/10/2023,Communities Housing and Environment,Waste Management,Supplies and Services,Waste Disposal Charges,236,19/10/2023,2310-00202,0.00,989.20,R,Acumen Waste Services Ltd,No
Http://opendatacommunities.org/id/metropolitan-district-council/leeds,Leeds City Council,31/10/2023,Communities Housing and Environment,Waste Management,Supplies and Services,Waste Disposal Charges,236,19/10/2023,2310-00203,0.00,936.95,R,Acumen Waste Services Ltd,No
Http://opendatacommunities.org/id/metropolitan-district-council/leeds,Leeds City Council,31/10/2023,Communities Housing and Environment,Waste Management,Supplies and Services,Waste Disposal Charges,236,19/10/2023,2310-00204,0.00,1137.85,R,Acumen Waste Services Ltd,No
Http://opendatacommunities.org/id/metropolitan-district-council/leeds,Leeds City Council,31/10/2023,Communities Housing and Environment,Waste Management,Supplies and Services,Waste Disposal Charges,236,19/10/2023,2310-00205,0.00,1062.76,R,Acumen Waste Services Ltd,No
Http://opendatacommunities.org/id/metropolitan-district-council/leeds,Leeds City Council,31/10/2023,Communities Housing and Environment,Waste Management,Supplies and Services,Waste Disposal Charges,236,19/10/2023,2310-00206,0.00,1007.95,R,Acumen Waste Services Ltd,No
Http://opendatacommunities.org/id/metropolitan-district-council/leeds,Leeds City Council,31/10/2023,Communities Housing and Environment,Waste Management,Supplies and Services,Waste Disposal Charges,236,19/10/2023,2310-00207,0.00,1028.70,R,Acumen Waste Services Ltd,No
Http://opendatacommunities.org/id/metropolitan-district-council/leeds,Leeds City Council,31/10/2023,Communities Housing and Environment,Waste Management,Supplies and Services,Recycling & Reuse Charges,234,19/10/2023,2310-00208,0.00,4482.72,R,Acumen Waste Services Ltd,No
Http://opendatacommunities.org/id/metropolitan-district-council/leeds,Leeds City Council,31/10/2023,Communities Housing and Environment,Waste Management,Supplies and Services,Recycling & Reuse Charges,234,25/10/2023,2310-00209,0.00,5838.48,R,Acumen Waste Services Ltd,No
Http://opendatacommunities.org/id/metropolitan-district-council/leeds,Leeds City Council,31/10/2023,Communities Housing and Environment,Climate Energy & Greenspaces ,Supplies and Services,Resaleable Materials,204,09/08/2023,2310-00210,0.00,1528.90,R,Acushnet Europe Ltd,Yes
Http://opendatacommunities.org/id/metropolitan-district-council/leeds,Leeds City Council,31/10/2023,Strategy and Resources,Shared Services,Supplies and Services,Operational Materials,205,13/10/2023,2310-00211,0.00,1497.00,R,AD3 Envelope Printers Limited,No
Http://opendatacommunities.org/id/metropolitan-district-council/leeds,Leeds City Council,31/10/2023,Strategy and Resources,Shared Services,Supplies and Services,Operational Materials,205,13/10/2023,2310-00212,0.00,283.50,R,AD3 Envelope Printers Limited,No
Http://opendatacommunities.org/id/metropolitan-district-council/leeds,Leeds City Council,31/10/2023,Strategy and Resources,Shared Services,Supplies and Services,Other Hired and Contracted Services,265,13/10/2023,2310-00213,0.00,427.75,R,AD3 Envelope Printers Limited,No
Http://opendatacommunities.org/id/metropolitan-district-council/leeds,Leeds City Council,31/10/2023,Children and Families,Social Care,Appropriations,Leaving Care Allowances,634,06/10/2023,2310-00214,0.00,50.00,R,REDACTED PERSONAL DATA,No
Http://opendatacommunities.org/id/metropolitan-district-council/leeds,Leeds City Council,31/10/2023,Children and Families,Learning,Supplies and Services,Compensation Claims,200,09/10/2023,2310-00215,0.00,300.00,R,REDACTED PERSONAL DATA,No
Http://opendatacommunities.org/id/metropolitan-district-council/leeds,Leeds City Council,31/10/2023,Communities Housing and Environment,Climate Energy & Greenspaces,Internal Recharges,Professional Legal Services Charges,410,04/10/2023,2310-00216,0.00,3697.50,R,Addleshaw Goddard LLP,No
Http://opendatacommunities.org/id/metropolitan-district-council/leeds,Leeds City Council,31/10/2023,Strategic Accounts,Strategic Priorities,Capital,OTHER COSTS,7,20/10/2023,2310-00217,0.00,4000.00,C,Addleshaw Goddard LLP,No
Http://opendatacommunities.org/id/metropolitan-district-council/leeds,Leeds City Council,31/10/2023,Strategic Accounts,Miscellaneous,Supplies and Services,Non-Recurring Grants,227,03/10/2023,2310-00218,0.00,200.00,R,Adel Gardeners Club,No
Http://opendatacommunities.org/id/metropolitan-district-council/leeds,Leeds City Council,31/10/2023,Adults and Health,Services For Older People - 65 And Over,Agency Payments,Nursing Home,570,11/10/2023,2310-00219,0.00,24088.36,R,Adel Manor Care Centre,No
Http://opendatacommunities.org/id/metropolitan-district-council/leeds,Leeds City Council,31/10/2023,Adults and Health,Services For Older People - 65 And Over,Agency Payments,Residential Care Dementia,571,11/10/2023,2310-00220,0.00,7029.71,R,Adel Manor Care Centre,No
Http://opendatacommunities.org/id/metropolitan-district-council/leeds,Leeds City Council,31/10/2023,Adults and Health,Services For Older People - 65 And Over,Agency Payments,Residential,580,11/10/2023,2310-00221,0.00,3857.60,R,Adel Manor Care Centre,No
Http://opendatacommunities.org/id/metropolitan-district-council/leeds,Leeds City Council,31/10/2023,Adults and Health,Services For Older People Under 65 P/Dis,Agency Payments,Residential,580,11/10/2023,2310-00222,0.00,5000.00,R,Adel Manor Care Centre,No
Http://opendatacommunities.org/id/metropolitan-district-council/leeds,Leeds City Council,31/10/2023,Children and Families,Social Care,Agency Payments,Services Rendered By Voluntary Sector,505,04/10/2023,2310-00223,0.00,758.55,R,ADEL PRE SCHOOL,No
Http://opendatacommunities.org/id/metropolitan-district-council/leeds,Leeds City Council,31/10/2023,Children and Families,Social Care,Agency Payments,Services Rendered By Voluntary Sector,505,06/10/2023,2310-00224,0.00,3194.10,R,ADEL PRE SCHOOL,No
Http://opendatacommunities.org/id/metropolitan-district-council/leeds,Leeds City Council,31/10/2023,Strategy and Resources,Human Resources,Internal Recharges,Legal Disbursements,411,27/10/2023,2310-00225,0.00,750.00,R,Adele Akers,No
Http://opendatacommunities.org/id/metropolitan-district-council/leeds,Leeds City Council,31/10/2023,City Development,Recreation,Supplies and Services,Bought In Professional Services,277,04/10/2023,2310-00226,0.00,20.00,R,Adele Battersby,No
Http://opendatacommunities.org/id/metropolitan-district-council/leeds,Leeds City Council,31/10/2023,City Development,Recreation,Supplies and Services,Bought In Professional Services,277,27/10/2023,2310-00227,0.00,140.00,R,Adele Battersby,No
Http://opendatacommunities.org/id/metropolitan-district-council/leeds,Leeds City Council,31/10/2023,City Development,Recreation,Supplies and Services,Bought In Professional Services,277,27/10/2023,2310-00228,0.00,140.00,R,Adele Battersby,No
Http://opendatacommunities.org/id/metropolitan-district-council/leeds,Leeds City Council,31/10/2023,City Development,Recreation,Supplies and Services,Bought In Professional Services,277,27/10/2023,2310-00229,0.00,20.00,R,Adele Battersby,No
Http://opendatacommunities.org/id/metropolitan-district-council/leeds,Leeds City Council,31/10/2023,Children and Families,Social Care,Agency Payments,Services Rendered By Other Organisations,511,04/10/2023,2310-00230,0.00,408.45,R,REDACTED PERSONAL DATA,No
Http://opendatacommunities.org/id/metropolitan-district-council/leeds,Leeds City Council,31/10/2023,Children and Families,Social Care,Agency Payments,Services Rendered By Other Organisations,511,06/10/2023,2310-00231,0.00,529.20,R,REDACTED PERSONAL DATA,No
Http://opendatacommunities.org/id/metropolitan-district-council/leeds,Leeds City Council,31/10/2023,Strategy and Resources,Commercial Services,Supplies and Services,Other Hired and Contracted Services,265,31/10/2023,2310-00232,0.00,216.85,R,REDACTED PERSONAL DATA,No
Http://opendatacommunities.org/id/metropolitan-district-council/leeds,Leeds City Council,31/10/2023,Children and Families,Social Care,Agency Payments,Contact,548,13/10/2023,2310-00233,0.00,32.00,R,REDACTED PERSONAL DATA,No
Http://opendatacommunities.org/id/metropolitan-district-council/leeds,Leeds City Council,31/10/2023,Strategy and Resources,Commercial Services,Supplies and Services,Compensation Claims,200,12/10/2023,2310-00234,0.00,1200.00,R,REDACTED PERSONAL DATA,No
Http://opendatacommunities.org/id/metropolitan-district-council/leeds,Leeds City Council,31/10/2023,Communities Housing and Environment,Car Parking Services,External Income,Penalties Fines & Car Parking Charges,934,20/10/2023,2310-00235,0.00,5.00,R,REDACTED PERSONAL DATA,No
Http://opendatacommunities.org/id/metropolitan-district-council/leeds,Leeds City Council,31/10/2023,Strategy and Resources,Leeds Building Services,Supplies and Services,Operational Materials,205,06/10/2023,2310-00236,0.00,41.53,R,ADI-Gardiner Ltd,No
Http://opendatacommunities.org/id/metropolitan-district-council/leeds,Leeds City Council,31/10/2023,Strategy and Resources,Leeds Building Services,Supplies and Services,Operational Materials,205,06/10/2023,2310-00237,0.00,94.00,R,ADI-Gardiner Ltd,No
Http://opendatacommunities.org/id/metropolitan-district-council/leeds,Leeds City Council,31/10/2023,Strategy and Resources,Leeds Building Services,Supplies and Services,Operational Materials,205,11/10/2023,2310-00238,0.00,49.49,R,ADI-Gardiner Ltd,No
Http://opendatacommunities.org/id/metropolitan-district-council/leeds,Leeds City Council,31/10/2023,Strategy and Resources,Leeds Building Services,Supplies and Services,Operational Materials,205,30/10/2023,2310-00239,0.00,1.99,R,ADI-Gardiner Ltd,No
Http://opendatacommunities.org/id/metropolitan-district-council/leeds,Leeds City Council,31/10/2023,City Development,Libraries Arts & Heritage ,Supplies and Services,Publication and Promotion,267,07/08/2023,2310-00240,0.00,43.32,R,Adobe Creative Cloud,Yes
Http://opendatacommunities.org/id/metropolitan-district-council/leeds,Leeds City Council,31/10/2023,Children and Families,Social Care,Agency Payments,Independent Fostering Agencies,509,04/10/2023,2310-00241,0.00,3751.00,R,Adolescent And Childrens Trust,No
Http://opendatacommunities.org/id/metropolitan-district-council/leeds,Leeds City Council,31/10/2023,Children and Families,Social Care,Agency Payments,Independent Fostering Agencies,509,04/10/2023,2310-00242,0.00,3565.00,R,Adolescent And Childrens Trust,No
Http://opendatacommunities.org/id/metropolitan-district-council/leeds,Leeds City Council,31/10/2023,Children and Families,Social Care,Agency Payments,Independent Fostering Agencies,509,04/10/2023,2310-00243,0.00,3751.00,R,Adolescent And Childrens Trust,No
Http://opendatacommunities.org/id/metropolitan-district-council/leeds,Leeds City Council,31/10/2023,Children and Families,Social Care,Agency Payments,Independent Fostering Agencies,509,04/10/2023,2310-00244,0.00,3751.00,R,Adolescent And Childrens Trust,No
Http://opendatacommunities.org/id/metropolitan-district-council/leeds,Leeds City Council,31/10/2023,Children and Families,Social Care,Agency Payments,Independent Fostering Agencies,509,04/10/2023,2310-00245,0.00,3923.67,R,Adolescent And Childrens Trust,No
Http://opendatacommunities.org/id/metropolitan-district-council/leeds,Leeds City Council,31/10/2023,Children and Families,Social Care,Agency Payments,Independent Fostering Agencies,509,04/10/2023,2310-00246,0.00,3751.00,R,Adolescent And Childrens Trust,No
Http://opendatacommunities.org/id/metropolitan-district-council/leeds,Leeds City Council,31/10/2023,Children and Families,Social Care,Agency Payments,Independent Fostering Agencies,509,04/10/2023,2310-00247,0.00,3923.67,R,Adolescent And Childrens Trust,No
Http://opendatacommunities.org/id/metropolitan-district-council/leeds,Leeds City Council,31/10/2023,Children and Families,Social Care,Agency Payments,Independent Fostering Agencies,509,04/10/2023,2310-00248,0.00,3923.67,R,Adolescent And Childrens Trust,No
Http://opendatacommunities.org/id/metropolitan-district-council/leeds,Leeds City Council,31/10/2023,Children and Families,Social Care,Agency Payments,Independent Fostering Agencies,509,04/10/2023,2310-00249,0.00,3751.00,R,Adolescent And Childrens Trust,No
Http://opendatacommunities.org/id/metropolitan-district-council/leeds,Leeds City Council,31/10/2023,Children and Families,Social Care,Agency Payments,Independent Fostering Agencies,509,04/10/2023,2310-00250,0.00,3627.00,R,Adolescent And Childrens Trust,No
Http://opendatacommunities.org/id/metropolitan-district-council/leeds,Leeds City Council,31/10/2023,Adults and Health,Services For Adults Under 65 Mental/Dis,Agency Payments,HCAIT Community Support,575,25/10/2023,2310-00251,0.00,804.60,R,Adopt Healthcare Ltd,No
Http://opendatacommunities.org/id/metropolitan-district-council/leeds,Leeds City Council as Accountable Body,31/10/2023,Social Services Pooled Budgets,Jcs For People With Learning Disabilitie,Agency Payments,Residential,580,11/10/2023,2310-00252,0.00,2609.36,R,ADRIAN HOUSE,No
Http://opendatacommunities.org/id/metropolitan-district-council/leeds,Leeds City Council,31/10/2023,Children and Families,Social Care,Agency Payments,Placement Support,550,13/10/2023,2310-00253,0.00,15.00,R,REDACTED PERSONAL DATA,No
Http://opendatacommunities.org/id/metropolitan-district-council/leeds,Leeds City Council,31/10/2023,Children and Families,Social Care,Agency Payments,Placement Support,550,20/10/2023,2310-00254,0.00,15.00,R,REDACTED PERSONAL DATA,No
Http://opendatacommunities.org/id/metropolitan-district-council/leeds,Leeds City Council,31/10/2023,Children and Families,Social Care,Agency Payments,Placement Support,550,20/10/2023,2310-00255,0.00,15.00,R,REDACTED PERSONAL DATA,No
Http://opendatacommunities.org/id/metropolitan-district-council/leeds,Leeds City Council,31/10/2023,Children and Families,Social Care,Agency Payments,Placement Support,550,30/10/2023,2310-00256,0.00,15.00,R,REDACTED PERSONAL DATA,No
Http://opendatacommunities.org/id/metropolitan-district-council/leeds,Leeds City Council,31/10/2023,Strategy and Resources,Facilities Management ,Premises,Premises Security Services,162,04/08/2023,2310-00257,0.00,706.88,R,Adt Fire And Security,Yes
Http://opendatacommunities.org/id/metropolitan-district-council/leeds,Leeds City Council,31/10/2023,Strategy and Resources,Facilities Management ,Premises,Premises Security Services,162,15/08/2023,2310-00258,0.00,672.31,R,Adt Fire And Security,Yes
Http://opendatacommunities.org/id/metropolitan-district-council/leeds,Leeds City Council,31/10/2023,Strategy and Resources,Facilities Management ,Premises,Premises Security Services,162,15/08/2023,2310-00259,0.00,2585.62,R,Adt Fire And Security,Yes
Http://opendatacommunities.org/id/metropolitan-district-council/leeds,Leeds City Council,31/10/2023,Strategy and Resources,Facilities Management ,Premises,Premises Security Services,162,15/08/2023,2310-00260,0.00,500.61,R,Adt Fire And Security,Yes
Http://opendatacommunities.org/id/metropolitan-district-council/leeds,Leeds City Council,31/10/2023,Strategy and Resources,Facilities Management ,Premises,Premises Security Services,162,15/08/2023,2310-00261,0.00,91.00,R,Adt Fire And Security,Yes
Http://opendatacommunities.org/id/metropolitan-district-council/leeds,Leeds City Council,31/10/2023,Strategic Landlord,Property and Contracts,Premises,General Maintenance,104,11/10/2023,2310-00262,0.00,504.35,R,ADT Fire And Security Plc,No
Http://opendatacommunities.org/id/metropolitan-district-council/leeds,Leeds City Council,31/10/2023,Strategy and Resources,Legal Services,Internal Recharges,Legal Disbursements,411,03/10/2023,2310-00263,0.00,2795.00,R,ADVANCED CHILD CARE ASSESSMENTS LTD,No
Http://opendatacommunities.org/id/metropolitan-district-council/leeds,Leeds City Council,31/10/2023,Children and Families,Social Care,Internal Recharges,Legal Disbursements,411,27/10/2023,2310-00264,0.00,33.00,R,ADVANCED CHILD CARE ASSESSMENTS LTD,No
Http://opendatacommunities.org/id/metropolitan-district-council/leeds,Leeds City Council,31/10/2023,Adults and Health,Assessment And Care Management,Agency Payments,Home Care,568,11/10/2023,2310-00265,0.00,894.00,R,Advanced Medcare Ltd,No
Http://opendatacommunities.org/id/metropolitan-district-council/leeds,Leeds City Council,31/10/2023,Adults and Health,Services For Adults Under 65 Learn/Dis,Agency Payments,Home Care,568,11/10/2023,2310-00266,0.00,625.80,R,Advanced Medcare Ltd,No
Http://opendatacommunities.org/id/metropolitan-district-council/leeds,Leeds City Council,31/10/2023,Adults and Health,Services For Adults Under 65 Mental/Dis,Agency Payments,Home Care,568,11/10/2023,2310-00267,0.00,357.60,R,Advanced Medcare Ltd,No
Http://opendatacommunities.org/id/metropolitan-district-council/leeds,Leeds City Council,31/10/2023,Adults and Health,Services For Adults Under 65 Mental/Dis,Agency Payments,HCAIT Community Support,575,11/10/2023,2310-00268,0.00,357.60,R,Advanced Medcare Ltd,No
Http://opendatacommunities.org/id/metropolitan-district-council/leeds,Leeds City Council,31/10/2023,Adults and Health,Services For Older People - 65 And Over,Agency Payments,Home Care,568,11/10/2023,2310-00269,0.00,44728.91,R,Advanced Medcare Ltd,No
Http://opendatacommunities.org/id/metropolitan-district-council/leeds,Leeds City Council,31/10/2023,Adults and Health,Services For Older People - 65 And Over,Agency Payments,HCAIT Community Support,575,11/10/2023,2310-00270,0.00,1229.24,R,Advanced Medcare Ltd,No
Http://opendatacommunities.org/id/metropolitan-district-council/leeds,Leeds City Council,31/10/2023,Adults and Health,Services For Older People Under 65 P/Dis,Agency Payments,Home Care,568,11/10/2023,2310-00271,0.00,23445.19,R,Advanced Medcare Ltd,No
Http://opendatacommunities.org/id/metropolitan-district-council/leeds,Leeds City Council,31/10/2023,Adults and Health,Services For Older People Under 65 P/Dis,Agency Payments,HCAIT Community Support,575,11/10/2023,2310-00272,0.00,871.65,R,Advanced Medcare Ltd,No
Http://opendatacommunities.org/id/metropolitan-district-council/leeds,Leeds City Council as Accountable Body,31/10/2023,Social Services Pooled Budgets,Jcs For People With Learning Disabilitie,Agency Payments,Home Care,568,11/10/2023,2310-00273,0.00,1251.60,R,Advanced Medcare Ltd,No
Http://opendatacommunities.org/id/metropolitan-district-council/leeds,Leeds City Council as Accountable Body,31/10/2023,Social Services Pooled Budgets,Jcs For People With Learning Disabilitie,Agency Payments,Home Care,568,11/10/2023,2310-00274,0.00,938.70,R,Advanced Medcare Ltd,No
Http://opendatacommunities.org/id/metropolitan-district-council/leeds,Leeds City Council as Accountable Body,31/10/2023,Social Services Pooled Budgets,Jcs For People With Learning Disabilitie,Agency Payments,Home Care,568,27/10/2023,2310-00275,0.00,5553.00,R,Advantage Healthcare Ltd,No
Http://opendatacommunities.org/id/metropolitan-district-council/leeds,Leeds City Council,31/10/2023,Adults and Health,Services For Older People - 65 And Over,Agency Payments,Payments To Voluntary Organisations,561,11/10/2023,2310-00276,0.00,101941.67,R,Advonet,No
Http://opendatacommunities.org/id/metropolitan-district-council/leeds,Leeds City Council as Accountable Body,31/10/2023,Social Services Pooled Budgets,Jcs For People With Learning Disabilitie,Supplies and Services,Other Hired and Contracted Services,265,13/10/2023,2310-00277,0.00,15.00,R,Advonet,No
Http://opendatacommunities.org/id/metropolitan-district-council/leeds,Leeds City Council,31/10/2023,Children and Families,Social Care,Agency Payments,Placement Support,550,13/10/2023,2310-00278,0.00,5.10,R,Advonet,No
Http://opendatacommunities.org/id/metropolitan-district-council/leeds,Leeds City Council,31/10/2023,Adults and Health,Services For Adults Under 65 Mental/Dis,Agency Payments,Home Care,568,13/10/2023,2310-00279,0.00,15.00,R,Advonet,No
Http://opendatacommunities.org/id/metropolitan-district-council/leeds,Leeds City Council,31/10/2023,Children and Families,Social Care,Agency Payments,Placement Support,550,30/10/2023,2310-00280,0.00,131.25,R,Advonet,No
Http://opendatacommunities.org/id/metropolitan-district-council/leeds,Leeds City Council,31/10/2023,Children and Families,Social Care,Agency Payments,Placement Support,550,30/10/2023,2310-00281,0.00,23.45,R,Advonet,No
Http://opendatacommunities.org/id/metropolitan-district-council/leeds,Leeds City Council,31/10/2023,City Development,Highways,Capital,OTHER COSTS,7,12/10/2023,2310-00282,0.00,77322.76,C,Aecom Limited,No
Http://opendatacommunities.org/id/metropolitan-district-council/leeds,Leeds City Council,31/10/2023,Communities Housing and Environment,Climate Energy & Greenspaces,Supplies and Services,Consultancy Services,259,26/10/2023,2310-00283,0.00,55754.83,R,Aecom Limited,No
Http://opendatacommunities.org/id/metropolitan-district-council/leeds,Leeds City Council,31/10/2023,City Development,Highways,Capital,OTHER COSTS,7,30/10/2023,2310-00284,0.00,38072.26,C,Aecom Limited,No
Http://opendatacommunities.org/id/metropolitan-district-council/leeds,Leeds City Council,31/10/2023,Adults and Health,Services For Adults Under 65 Mental/Dis,Agency Payments,Home Care,568,23/10/2023,2310-00285,0.00,2226.46,R,Aegis Care Solutions Ltd,No
Http://opendatacommunities.org/id/metropolitan-district-council/leeds,Leeds City Council,31/10/2023,Children and Families,Social Care ,Agency Payments,Placement Support,550,02/08/2023,2310-00286,0.00,100.00,R,Affiliated Auto Rental,Yes
Http://opendatacommunities.org/id/metropolitan-district-council/leeds,Leeds City Council,31/10/2023,Children and Families,Social Care ,Agency Payments,Placement Support,550,03/08/2023,2310-00287,0.00,220.00,R,Affiliated Auto Rental,Yes
Http://opendatacommunities.org/id/metropolitan-district-council/leeds,Leeds City Council,31/10/2023,Children and Families,Social Care ,Agency Payments,Placement Support,550,03/08/2023,2310-00288,0.00,220.00,R,Affiliated Auto Rental,Yes
Http://opendatacommunities.org/id/metropolitan-district-council/leeds,Leeds City Council,31/10/2023,Children and Families,Social Care ,Agency Payments,Placement Support,550,03/08/2023,2310-00289,0.00,220.00,R,Affiliated Auto Rental,Yes
Http://opendatacommunities.org/id/metropolitan-district-council/leeds,Leeds City Council,31/10/2023,Adults and Health,Services For Adults Under 65 Mental/Dis,Agency Payments,HCAIT Community Support,575,11/10/2023,2310-00290,0.00,999.96,R,Affinity Trust,No
Http://opendatacommunities.org/id/metropolitan-district-council/leeds,Leeds City Council,31/10/2023,Adults and Health,Services For Older People - 65 And Over,Agency Payments,HCAIT Community Support,575,11/10/2023,2310-00291,0.00,692.28,R,Affinity Trust,No
Http://opendatacommunities.org/id/metropolitan-district-council/leeds,Leeds City Council,31/10/2023,Adults and Health,Services For Older People Under 65 P/Dis,Agency Payments,HCAIT Community Support,575,11/10/2023,2310-00292,0.00,1749.93,R,Affinity Trust,No
Http://opendatacommunities.org/id/metropolitan-district-council/leeds,Leeds City Council as Accountable Body,31/10/2023,Social Services Pooled Budgets,Jcs For People With Learning Disabilitie,Agency Payments,Day Centre,564,13/10/2023,2310-00293,0.00,19788.97,R,Affinity Trust,No
Http://opendatacommunities.org/id/metropolitan-district-council/leeds,Leeds City Council as Accountable Body,31/10/2023,Social Services Pooled Budgets,Jcs For People With Learning Disabilitie,Agency Payments,Day Centre,564,13/10/2023,2310-00294,0.00,35430.08,R,Affinity Trust,No
Http://opendatacommunities.org/id/metropolitan-district-council/leeds,Leeds City Council,31/10/2023,Adults and Health,Services For Older People Under 65 P/Dis,Agency Payments,Home Care,568,19/10/2023,2310-00295,0.00,462.24,R,Affinity Trust,No
Http://opendatacommunities.org/id/metropolitan-district-council/leeds,Leeds City Council as Accountable Body,31/10/2023,Social Services Pooled Budgets,Jcs For People With Learning Disabilitie,Agency Payments,Day Centre,564,27/10/2023,2310-00296,0.00,35430.08,R,Affinity Trust,No
Http://opendatacommunities.org/id/metropolitan-district-council/leeds,Leeds City Council as Accountable Body,31/10/2023,Social Services Pooled Budgets,Jcs For People With Learning Disabilitie,Agency Payments,Day Centre,564,27/10/2023,2310-00297,0.00,19865.89,R,Affinity Trust,No
Http://opendatacommunities.org/id/metropolitan-district-council/leeds,Leeds City Council,31/10/2023,Adults and Health,Services For Older People Under 65 P/Dis,Agency Payments,Home Care,568,27/10/2023,2310-00298,0.00,462.24,R,Affinity Trust,No
Http://opendatacommunities.org/id/metropolitan-district-council/leeds,Leeds City Council as Accountable Body,31/10/2023,Social Services Pooled Budgets,Jcs For People With Learning Disabilitie,Agency Payments,Sheltered Accommodation,569,11/10/2023,2310-00299,0.00,138817.32,R,Affinity Trust North Divisional Office,No
Http://opendatacommunities.org/id/metropolitan-district-council/leeds,Leeds City Council,31/10/2023,Communities Housing and Environment,Climate Energy & Greenspaces ,Transport,Hire Of Movable Plant & Machinery,315,15/08/2023,2310-00300,0.00,4750.00,R,Afi Uplift,Yes
Http://opendatacommunities.org/id/metropolitan-district-council/leeds,Leeds City Council,31/10/2023,Communities Housing and Environment,Climate Energy & Greenspaces ,Transport,Hire Of Movable Plant & Machinery,315,22/08/2023,2310-00301,0.00,3800.00,R,Afi Uplift,Yes
Http://opendatacommunities.org/id/metropolitan-district-council/leeds,Leeds City Council,31/10/2023,Children and Families,Social Care,Agency Payments,Placement Support,550,04/10/2023,2310-00302,0.00,3542.00,R,AFRUCA - Safeguarding Children,No
Http://opendatacommunities.org/id/metropolitan-district-council/leeds,Leeds City Council,31/10/2023,Children and Families,Social Care,Agency Payments,Section 17,551,27/10/2023,2310-00303,0.00,2730.00,R,AFRUCA - Safeguarding Children,No
Http://opendatacommunities.org/id/metropolitan-district-council/leeds,Leeds City Council,31/10/2023,Communities Housing and Environment,Communities,Supplies and Services,'Well Being' Large Grants Projects,230,12/10/2023,2310-00304,0.00,155.00,R,Age Uk Leeds,No
Http://opendatacommunities.org/id/metropolitan-district-council/leeds,Leeds City Council,31/10/2023,City Development,Highways,Supplies and Services,Operational Materials,205,13/10/2023,2310-00305,0.00,1607.27,R,AGGREGATE INDUSTRIES UK LTD,No
Http://opendatacommunities.org/id/metropolitan-district-council/leeds,Leeds City Council,31/10/2023,City Development,Highways,Supplies and Services,Operational Materials,205,13/10/2023,2310-00306,0.00,1598.67,R,AGGREGATE INDUSTRIES UK LTD,No
Http://opendatacommunities.org/id/metropolitan-district-council/leeds,Leeds City Council,31/10/2023,City Development,Highways,Supplies and Services,Operational Materials,205,13/10/2023,2310-00307,0.00,2283.57,R,AGGREGATE INDUSTRIES UK LTD,No
Http://opendatacommunities.org/id/metropolitan-district-council/leeds,Leeds City Council,31/10/2023,City Development,Highways,Supplies and Services,Operational Materials,205,13/10/2023,2310-00308,0.00,2093.45,R,AGGREGATE INDUSTRIES UK LTD,No
Http://opendatacommunities.org/id/metropolitan-district-council/leeds,Leeds City Council,31/10/2023,City Development,Highways,Supplies and Services,Operational Materials,205,13/10/2023,2310-00309,0.00,3763.44,R,AGGREGATE INDUSTRIES UK LTD,No
Http://opendatacommunities.org/id/metropolitan-district-council/leeds,Leeds City Council,31/10/2023,City Development,Highways,Supplies and Services,Operational Materials,205,13/10/2023,2310-00310,0.00,754.85,R,AGGREGATE INDUSTRIES UK LTD,No
Http://opendatacommunities.org/id/metropolitan-district-council/leeds,Leeds City Council,31/10/2023,City Development,Highways,Supplies and Services,Operational Materials,205,18/10/2023,2310-00311,0.00,1526.62,R,AGGREGATE INDUSTRIES UK LTD,No
Http://opendatacommunities.org/id/metropolitan-district-council/leeds,Leeds City Council,31/10/2023,City Development,Highways,Supplies and Services,Operational Materials,205,18/10/2023,2310-00312,0.00,2098.96,R,AGGREGATE INDUSTRIES UK LTD,No
Http://opendatacommunities.org/id/metropolitan-district-council/leeds,Leeds City Council,31/10/2023,City Development,Highways,Supplies and Services,Operational Materials,205,20/10/2023,2310-00313,0.00,1198.08,R,AGGREGATE INDUSTRIES UK LTD,No
Http://opendatacommunities.org/id/metropolitan-district-council/leeds,Leeds City Council,31/10/2023,City Development,Highways,Supplies and Services,Operational Materials,205,25/10/2023,2310-00314,0.00,-119.88,R,AGGREGATE INDUSTRIES UK LTD,No
Http://opendatacommunities.org/id/metropolitan-district-council/leeds,Leeds City Council,31/10/2023,City Development,Highways,Supplies and Services,Operational Materials,205,25/10/2023,2310-00315,0.00,7642.09,R,AGGREGATE INDUSTRIES UK LTD,No
Http://opendatacommunities.org/id/metropolitan-district-council/leeds,Leeds City Council,31/10/2023,Communities Housing and Environment,Car Parking Services,External Income,Penalties Fines & Car Parking Charges,934,09/10/2023,2310-00316,0.00,6.00,R,REDACTED PERSONAL DATA,No
Http://opendatacommunities.org/id/metropolitan-district-council/leeds,Leeds City Council,31/10/2023,Communities Housing and Environment,Customer Access,Supplies and Services,Bought In Professional Services,277,04/10/2023,2310-00317,0.00,18.00,R,Agnieszka J Collier,No
Http://opendatacommunities.org/id/metropolitan-district-council/leeds,Leeds City Council,31/10/2023,Communities Housing and Environment,Customer Access,Supplies and Services,Bought In Professional Services,277,04/10/2023,2310-00318,0.00,13.50,R,Agnieszka J Collier,No
Http://opendatacommunities.org/id/metropolitan-district-council/leeds,Leeds City Council,31/10/2023,Communities Housing and Environment,Customer Access,Supplies and Services,Bought In Professional Services,277,04/10/2023,2310-00319,0.00,18.00,R,Agnieszka J Collier,No
Http://opendatacommunities.org/id/metropolitan-district-council/leeds,Leeds City Council,31/10/2023,Communities Housing and Environment,Customer Access,Supplies and Services,Bought In Professional Services,277,11/10/2023,2310-00320,0.00,18.00,R,Agnieszka J Collier,No
Http://opendatacommunities.org/id/metropolitan-district-council/leeds,Leeds City Council,31/10/2023,Communities Housing and Environment,Customer Access,Supplies and Services,Bought In Professional Services,277,18/10/2023,2310-00321,0.00,9.00,R,Agnieszka J Collier,No
Http://opendatacommunities.org/id/metropolitan-district-council/leeds,Leeds City Council,31/10/2023,Communities Housing and Environment,Customer Access,Supplies and Services,Bought In Professional Services,277,18/10/2023,2310-00322,0.00,18.00,R,Agnieszka J Collier,No
Http://opendatacommunities.org/id/metropolitan-district-council/leeds,Leeds City Council,31/10/2023,Communities Housing and Environment,Customer Access,Supplies and Services,Bought In Professional Services,277,18/10/2023,2310-00323,0.00,20.70,R,Agnieszka J Collier,No
Http://opendatacommunities.org/id/metropolitan-district-council/leeds,Leeds City Council,31/10/2023,Communities Housing and Environment,Customer Access,Supplies and Services,Bought In Professional Services,277,04/10/2023,2310-00324,0.00,18.00,R,Agnieszka Jablonska,No
Http://opendatacommunities.org/id/metropolitan-district-council/leeds,Leeds City Council,31/10/2023,Communities Housing and Environment,Customer Access,Supplies and Services,Bought In Professional Services,277,04/10/2023,2310-00325,0.00,18.00,R,Agnieszka Jablonska,No
Http://opendatacommunities.org/id/metropolitan-district-council/leeds,Leeds City Council,31/10/2023,Communities Housing and Environment,Customer Access,Supplies and Services,Bought In Professional Services,277,04/10/2023,2310-00326,0.00,18.00,R,Agnieszka Jablonska,No
Http://opendatacommunities.org/id/metropolitan-district-council/leeds,Leeds City Council,31/10/2023,Communities Housing and Environment,Customer Access,Supplies and Services,Bought In Professional Services,277,04/10/2023,2310-00327,0.00,18.00,R,Agnieszka Jablonska,No
Http://opendatacommunities.org/id/metropolitan-district-council/leeds,Leeds City Council,31/10/2023,Communities Housing and Environment,Customer Access,Supplies and Services,Bought In Professional Services,277,04/10/2023,2310-00328,0.00,22.50,R,Agnieszka Jablonska,No
Http://opendatacommunities.org/id/metropolitan-district-council/leeds,Leeds City Council,31/10/2023,Communities Housing and Environment,Customer Access,Supplies and Services,Bought In Professional Services,277,11/10/2023,2310-00329,0.00,18.00,R,Agnieszka Jablonska,No
Http://opendatacommunities.org/id/metropolitan-district-council/leeds,Leeds City Council,31/10/2023,Communities Housing and Environment,Customer Access,Supplies and Services,Bought In Professional Services,277,11/10/2023,2310-00330,0.00,21.00,R,Agnieszka Jablonska,No
Http://opendatacommunities.org/id/metropolitan-district-council/leeds,Leeds City Council,31/10/2023,Communities Housing and Environment,Customer Access,Supplies and Services,Bought In Professional Services,277,11/10/2023,2310-00331,0.00,18.00,R,Agnieszka Jablonska,No
Http://opendatacommunities.org/id/metropolitan-district-council/leeds,Leeds City Council,31/10/2023,Communities Housing and Environment,Customer Access,Supplies and Services,Bought In Professional Services,277,11/10/2023,2310-00332,0.00,18.00,R,Agnieszka Jablonska,No
Http://opendatacommunities.org/id/metropolitan-district-council/leeds,Leeds City Council,31/10/2023,Communities Housing and Environment,Customer Access,Supplies and Services,Bought In Professional Services,277,18/10/2023,2310-00333,0.00,9.00,R,Agnieszka Jablonska,No
Http://opendatacommunities.org/id/metropolitan-district-council/leeds,Leeds City Council,31/10/2023,Communities Housing and Environment,Customer Access,Supplies and Services,Bought In Professional Services,277,18/10/2023,2310-00334,0.00,18.00,R,Agnieszka Jablonska,No
Http://opendatacommunities.org/id/metropolitan-district-council/leeds,Leeds City Council,31/10/2023,Communities Housing and Environment,Customer Access,Supplies and Services,Bought In Professional Services,277,25/10/2023,2310-00335,0.00,18.00,R,Agnieszka Jablonska,No
Http://opendatacommunities.org/id/metropolitan-district-council/leeds,Leeds City Council,31/10/2023,Communities Housing and Environment,Customer Access,Supplies and Services,Bought In Professional Services,277,25/10/2023,2310-00336,0.00,18.00,R,Agnieszka Jablonska,No
Http://opendatacommunities.org/id/metropolitan-district-council/leeds,Leeds City Council,31/10/2023,Communities Housing and Environment,Customer Access,Supplies and Services,Bought In Professional Services,277,25/10/2023,2310-00337,0.00,18.00,R,Agnieszka Jablonska,No
Http://opendatacommunities.org/id/metropolitan-district-council/leeds,Leeds City Council,31/10/2023,Communities Housing and Environment,Customer Access,Supplies and Services,Bought In Professional Services,277,04/10/2023,2310-00338,0.00,45.00,R,Ahamat Hassan,No
Http://opendatacommunities.org/id/metropolitan-district-council/leeds,Leeds City Council,31/10/2023,Communities Housing and Environment,Customer Access,Supplies and Services,Bought In Professional Services,277,11/10/2023,2310-00339,0.00,36.00,R,Ahamat Hassan,No
Http://opendatacommunities.org/id/metropolitan-district-council/leeds,Leeds City Council,31/10/2023,Communities Housing and Environment,Customer Access,Supplies and Services,Bought In Professional Services,277,18/10/2023,2310-00340,0.00,36.00,R,Ahamat Hassan,No
Http://opendatacommunities.org/id/metropolitan-district-council/leeds,Leeds City Council,31/10/2023,Communities Housing and Environment,Customer Access,Supplies and Services,Bought In Professional Services,277,25/10/2023,2310-00341,0.00,36.00,R,Ahamat Hassan,No
Http://opendatacommunities.org/id/metropolitan-district-council/leeds,Leeds City Council,31/10/2023,Communities Housing and Environment,Customer Access,Supplies and Services,Bought In Professional Services,277,25/10/2023,2310-00342,0.00,54.00,R,Ahamat Hassan,No
Http://opendatacommunities.org/id/metropolitan-district-council/leeds,Leeds City Council,31/10/2023,City Development,Asset Management,Capital,OTHER COSTS,7,27/10/2023,2310-00343,0.00,10000.00,C,Ahead Partnership Ltd,No
Http://opendatacommunities.org/id/metropolitan-district-council/leeds,Leeds City Council,31/10/2023,Children and Families,Social Care,Appropriations,Leaving Care Allowances,634,10/10/2023,2310-00344,0.00,86.47,R,REDACTED PERSONAL DATA,No
Http://opendatacommunities.org/id/metropolitan-district-council/leeds,Leeds City Council,31/10/2023,Children and Families,Social Care,Agency Payments,General External Residential Placements,507,04/10/2023,2310-00345,0.00,37421.43,R,AHT Care Ltd,No
Http://opendatacommunities.org/id/metropolitan-district-council/leeds,Leeds City Council,31/10/2023,Children and Families,Social Care,Agency Payments,General External Residential Placements,507,13/10/2023,2310-00346,0.00,37421.43,R,AHT Care Ltd,No
Http://opendatacommunities.org/id/metropolitan-district-council/leeds,Leeds City Council as Accountable Body,31/10/2023,Social Services Pooled Budgets,Leeds Community Equip Store Pooled Budgt,Supplies and Services,Other Equipment,203,02/10/2023,2310-00347,0.00,106.60,R,AIDAPT BATHROOMS LTD,No
Http://opendatacommunities.org/id/metropolitan-district-council/leeds,Leeds City Council as Accountable Body,31/10/2023,Social Services Pooled Budgets,Leeds Community Equip Store Pooled Budgt,Supplies and Services,Other Equipment,203,12/10/2023,2310-00348,0.00,1350.00,R,AIDAPT BATHROOMS LTD,No
Http://opendatacommunities.org/id/metropolitan-district-council/leeds,Leeds City Council as Accountable Body,31/10/2023,Social Services Pooled Budgets,Leeds Community Equip Store Pooled Budgt,Supplies and Services,Other Equipment,203,12/10/2023,2310-00349,0.00,1825.00,R,AIDAPT BATHROOMS LTD,No
Http://opendatacommunities.org/id/metropolitan-district-council/leeds,Leeds City Council as Accountable Body,31/10/2023,Social Services Pooled Budgets,Leeds Community Equip Store Pooled Budgt,Supplies and Services,Other Equipment,203,27/10/2023,2310-00350,0.00,1440.00,R,AIDAPT BATHROOMS LTD,No
Http://opendatacommunities.org/id/metropolitan-district-council/leeds,Leeds City Council as Accountable Body,31/10/2023,Social Services Pooled Budgets,Leeds Community Equip Store Pooled Budgt,Supplies and Services,Other Equipment,203,27/10/2023,2310-00351,0.00,56.25,R,AIDAPT BATHROOMS LTD,No
Http://opendatacommunities.org/id/metropolitan-district-council/leeds,Leeds City Council as Accountable Body,31/10/2023,Social Services Pooled Budgets,Leeds Community Equip Store Pooled Budgt,Supplies and Services,Other Equipment,203,27/10/2023,2310-00352,0.00,3600.00,R,AIDAPT BATHROOMS LTD,No
Http://opendatacommunities.org/id/metropolitan-district-council/leeds,Leeds City Council as Accountable Body,31/10/2023,Social Services Pooled Budgets,Leeds Community Equip Store Pooled Budgt,Supplies and Services,Other Equipment,203,27/10/2023,2310-00353,0.00,10.26,R,AIDAPT BATHROOMS LTD,No
Http://opendatacommunities.org/id/metropolitan-district-council/leeds,Leeds City Council,31/10/2023,Children and Families,Social Care,Agency Payments,Allowance Enhancements,547,26/10/2023,2310-00354,0.00,111.00,R,REDACTED PERSONAL DATA,No
Http://opendatacommunities.org/id/metropolitan-district-council/leeds,Leeds City Council,31/10/2023,Strategic Landlord,Housing Management,Supplies and Services,Compensation Claims,200,06/10/2023,2310-00355,0.00,50.00,R,REDACTED PERSONAL DATA,No
Http://opendatacommunities.org/id/metropolitan-district-council/leeds,Leeds City Council,31/10/2023,Strategy and Resources,Leeds Building Services,Supplies and Services,Operational Materials,205,06/10/2023,2310-00356,0.00,31.83,R,Air Conditioning Accessories,No
Http://opendatacommunities.org/id/metropolitan-district-council/leeds,Leeds City Council,31/10/2023,Strategy and Resources,Leeds Building Services,Supplies and Services,Operational Furniture and Equipment,203,13/10/2023,2310-00357,0.00,139.99,R,Air Conditioning Accessories,No
Http://opendatacommunities.org/id/metropolitan-district-council/leeds,Leeds City Council,31/10/2023,Strategy and Resources,Commercial Services ,Supplies and Services,Operational Materials,205,21/08/2023,2310-00358,0.00,565.29,R,Air Force Pneumatics And,Yes
Http://opendatacommunities.org/id/metropolitan-district-council/leeds,Leeds City Council,31/10/2023,Strategy and Resources,Commercial Services ,Supplies and Services,Operational Materials,205,21/08/2023,2310-00359,0.00,215.00,R,Air Force Pneumatics And,Yes
Http://opendatacommunities.org/id/metropolitan-district-council/leeds,Leeds City Council,31/10/2023,Communities Housing and Environment,Environmental Health,Supplies and Services,Other Hired and Contracted Services,265,04/10/2023,2310-00360,0.00,11.75,R,AIR LIQUIDE UK,No
Http://opendatacommunities.org/id/metropolitan-district-council/leeds,Leeds City Council,31/10/2023,Communities Housing and Environment,Environmental Health,Supplies and Services,Other Hired and Contracted Services,265,04/10/2023,2310-00361,0.00,11.75,R,AIR LIQUIDE UK,No
Http://opendatacommunities.org/id/metropolitan-district-council/leeds,Leeds City Council,31/10/2023,Communities Housing and Environment,Environmental Health,Supplies and Services,Other Hired and Contracted Services,265,04/10/2023,2310-00362,0.00,11.75,R,AIR LIQUIDE UK,No
Http://opendatacommunities.org/id/metropolitan-district-council/leeds,Leeds City Council,31/10/2023,Communities Housing and Environment,Environmental Health,Supplies and Services,Other Hired and Contracted Services,265,04/10/2023,2310-00363,0.00,94.00,R,AIR LIQUIDE UK,No
Http://opendatacommunities.org/id/metropolitan-district-council/leeds,Leeds City Council,31/10/2023,Children and Families,Social Care ,Supplies and Services,General Amenity For Clients/Residents,285,31/07/2023,2310-00364,0.00,199.77,R,Airbnb * Hmdw49dbmp,Yes
Http://opendatacommunities.org/id/metropolitan-district-council/leeds,Leeds City Council,31/10/2023,Children and Families,Social Care ,Transport,Public Transport Expenses,310,15/08/2023,2310-00365,0.00,1720.68,R,Airbnb * Hmhtfdyazd,Yes
Http://opendatacommunities.org/id/metropolitan-district-council/leeds,Leeds City Council,31/10/2023,Children and Families,Social Care ,Agency Payments,Section 17,551,14/08/2023,2310-00366,0.00,59.40,R,Airbnb * Hmnd5s442z,Yes
Http://opendatacommunities.org/id/metropolitan-district-council/leeds,Leeds City Council,31/10/2023,Children and Families,Social Care ,Agency Payments,Section 17,551,15/08/2023,2310-00367,0.00,119.70,R,Airbnb * Hmnd5s442z,Yes
Http://opendatacommunities.org/id/metropolitan-district-council/leeds,Leeds City Council,31/10/2023,Children and Families,Social Care ,Agency Payments,Placement Support,550,08/08/2023,2310-00368,0.00,268.96,R,Airbnb * Hmr89fzemb,Yes
Http://opendatacommunities.org/id/metropolitan-district-council/leeds,Leeds City Council,31/10/2023,Children and Families,Social Care ,Agency Payments,Placement Support,550,31/07/2023,2310-00369,0.00,410.46,R,Airbnb * Hmyanw4qde,Yes
Http://opendatacommunities.org/id/metropolitan-district-council/leeds,Leeds City Council,31/10/2023,Children and Families,Social Care ,Agency Payments,Placement Support,550,02/08/2023,2310-00370,0.00,-188.50,R,Airbnb * Hmyanw4qde,Yes
Http://opendatacommunities.org/id/metropolitan-district-council/leeds,Leeds City Council,31/10/2023,City Development,Economic Development ,Supplies and Services,Other Hired and Contracted Services,265,27/07/2023,2310-00371,0.00,3360.00,R,Airdna Llc,Yes
Http://opendatacommunities.org/id/metropolitan-district-council/leeds,Leeds City Council,31/10/2023,Communities Housing and Environment,Climate Energy & Greenspaces,Supplies and Services,Other Hired and Contracted Services,265,13/10/2023,2310-00372,0.00,361.00,R,Aire Valley Tree Services Ltd,No
Http://opendatacommunities.org/id/metropolitan-district-council/leeds,Leeds City Council,31/10/2023,Adults and Health,Services For Older People - 65 And Over,Agency Payments,Residential Care Dementia,571,11/10/2023,2310-00373,0.00,108524.47,R,Aire View Residential Home,No
Http://opendatacommunities.org/id/metropolitan-district-council/leeds,Leeds City Council,31/10/2023,Adults and Health,Services For Older People - 65 And Over,Agency Payments,Residential,580,11/10/2023,2310-00374,0.00,19199.82,R,Aire View Residential Home,No
Http://opendatacommunities.org/id/metropolitan-district-council/leeds,Leeds City Council,31/10/2023,Children and Families,Social Care,Agency Payments,Services Rendered By Voluntary Sector,505,12/10/2023,2310-00375,0.00,25631.00,R,Aireborough Supported Activities Scheme,No
Http://opendatacommunities.org/id/metropolitan-district-council/leeds,Leeds City Council,31/10/2023,Children and Families,Social Care,Agency Payments,Services Rendered By Voluntary Sector,505,12/10/2023,2310-00376,0.00,30000.00,R,Aireborough Supported Activities Scheme,No
Http://opendatacommunities.org/id/metropolitan-district-council/leeds,Leeds City Council,31/10/2023,Adults and Health,Services For Adults Under 65 Mental/Dis,Agency Payments,Residential,580,05/10/2023,2310-00377,0.00,1232.00,R,Airedale No1 LTD,No
Http://opendatacommunities.org/id/metropolitan-district-council/leeds,Leeds City Council,31/10/2023,Adults and Health,Services For Older People - 65 And Over,Agency Payments,Residential Care Dementia,571,11/10/2023,2310-00378,0.00,29208.36,R,Airedale Residential Home,No
Http://opendatacommunities.org/id/metropolitan-district-council/leeds,Leeds City Council,31/10/2023,Adults and Health,Services For Older People - 65 And Over,Agency Payments,Residential,580,11/10/2023,2310-00379,0.00,18813.31,R,Airedale Residential Home,No
Http://opendatacommunities.org/id/metropolitan-district-council/leeds,Leeds City Council,31/10/2023,Adults and Health,Services For Older People Under 65 P/Dis,Agency Payments,Residential Care Dementia,571,11/10/2023,2310-00380,0.00,15755.36,R,Airedale Residential Home,No
Http://opendatacommunities.org/id/metropolitan-district-council/leeds,Leeds City Council,31/10/2023,Adults and Health,Assessment And Care Management,Supplies and Services,Compensation Claims,200,11/10/2023,2310-00381,0.00,-550.00,R,Airedale Residential Home,No
Http://opendatacommunities.org/id/metropolitan-district-council/leeds,Leeds City Council,31/10/2023,Communities Housing and Environment,Environmental Health,Supplies and Services,Other Hired and Contracted Services,265,20/10/2023,2310-00382,0.00,395.53,R,Aireworth Vets,No
Http://opendatacommunities.org/id/metropolitan-district-council/leeds,Leeds City Council,31/10/2023,Children and Families,Social Care ,Agency Payments,Placement Support,550,26/07/2023,2310-00383,0.00,27.25,R,Airpay 47621331-Amber Car,Yes
Http://opendatacommunities.org/id/metropolitan-district-council/leeds,Leeds City Council,31/10/2023,Children and Families,Social Care ,Appropriations,Young Peoples Activities,652,27/07/2023,2310-00384,0.00,9.05,R,Airpay 47636052-Amber Car,Yes
Http://opendatacommunities.org/id/metropolitan-district-council/leeds,Leeds City Council,31/10/2023,Children and Families,Social Care ,Supplies and Services,Subsistence,256,03/08/2023,2310-00385,0.00,8.90,R,Airpay 47722300-Amber Car,Yes
Http://opendatacommunities.org/id/metropolitan-district-council/leeds,Leeds City Council,31/10/2023,Children and Families,Social Care ,Appropriations,Leaving Care Allowances,634,15/08/2023,2310-00386,0.00,7.60,R,Airpay 47863874-Amber Car,Yes
Http://opendatacommunities.org/id/metropolitan-district-council/leeds,Leeds City Council,31/10/2023,Children and Families,Social Care ,Agency Payments,Placement Support,550,16/08/2023,2310-00387,0.00,17.40,R,Airpay 47879955-Amber Car,Yes
Http://opendatacommunities.org/id/metropolitan-district-council/leeds,Leeds City Council as Accountable Body,31/10/2023,Social Services Pooled Budgets,Jcs For People With Learning Disabilitie,Agency Payments,Residential,580,11/10/2023,2310-00388,0.00,7677.84,R,AITCH care homes,No
Http://opendatacommunities.org/id/metropolitan-district-council/leeds,Leeds City Council,31/10/2023,Communities Housing and Environment,Climate Energy & Greenspaces ,Premises,Grounds Maintenance Work,111,16/08/2023,2310-00389,0.00,359.40,R,Aitkens Sportsturf Limite,Yes
Http://opendatacommunities.org/id/metropolitan-district-council/leeds,Leeds City Council,31/10/2023,Communities Housing and Environment,Benefits Wlefare and Poverty,Supplies and Services,Advertising,211,04/10/2023,2310-00390,0.00,35.00,R,AJ Media Services Ltd,No
Http://opendatacommunities.org/id/metropolitan-district-council/leeds,Leeds City Council,31/10/2023,Communities Housing and Environment,Benefits Wlefare and Poverty,Supplies and Services,Advertising,211,06/10/2023,2310-00391,0.00,150.00,R,AJ Media Services Ltd,No
Http://opendatacommunities.org/id/metropolitan-district-council/leeds,Leeds City Council,31/10/2023,City Development,Libraries Arts & Heritage,Supplies and Services,Other Hired and Contracted Services,265,20/10/2023,2310-00392,0.00,152.69,R,Ajimati Films ,No
Http://opendatacommunities.org/id/metropolitan-district-council/leeds,Leeds City Council,31/10/2023,Strategy and Resources,Leeds Building Services,Premises,Cleaning Maintenance & Toiletries,127,04/10/2023,2310-00393,0.00,728.00,R,AJM FIXINGS & POWER TOOLS LTD,No
Http://opendatacommunities.org/id/metropolitan-district-council/leeds,Leeds City Council,31/10/2023,Strategy and Resources,Leeds Building Services,Supplies and Services,Operational Furniture and Equipment,203,04/10/2023,2310-00394,0.00,359.19,R,AJM FIXINGS & POWER TOOLS LTD,No
Http://opendatacommunities.org/id/metropolitan-district-council/leeds,Leeds City Council,31/10/2023,Strategy and Resources,Leeds Building Services,Supplies and Services,Operational Furniture and Equipment,203,04/10/2023,2310-00395,0.00,67.00,R,AJM FIXINGS & POWER TOOLS LTD,No
Http://opendatacommunities.org/id/metropolitan-district-council/leeds,Leeds City Council,31/10/2023,Strategy and Resources,Leeds Building Services,Supplies and Services,Operational Furniture and Equipment,203,06/10/2023,2310-00396,0.00,95.00,R,AJM FIXINGS & POWER TOOLS LTD,No
Http://opendatacommunities.org/id/metropolitan-district-council/leeds,Leeds City Council,31/10/2023,Strategy and Resources,Leeds Building Services,Supplies and Services,Operational Furniture and Equipment,203,06/10/2023,2310-00397,0.00,148.00,R,AJM FIXINGS & POWER TOOLS LTD,No
Http://opendatacommunities.org/id/metropolitan-district-council/leeds,Leeds City Council,31/10/2023,Strategy and Resources,Leeds Building Services,Supplies and Services,Operational Furniture and Equipment,203,06/10/2023,2310-00398,0.00,145.00,R,AJM FIXINGS & POWER TOOLS LTD,No
Http://opendatacommunities.org/id/metropolitan-district-council/leeds,Leeds City Council,31/10/2023,Strategy and Resources,Leeds Building Services,Premises,Cleaning Maintenance & Toiletries,127,11/10/2023,2310-00399,0.00,340.48,R,AJM FIXINGS & POWER TOOLS LTD,No
Http://opendatacommunities.org/id/metropolitan-district-council/leeds,Leeds City Council,31/10/2023,Strategy and Resources,Leeds Building Services,Supplies and Services,Operational Furniture and Equipment,203,11/10/2023,2310-00400,0.00,92.68,R,AJM FIXINGS & POWER TOOLS LTD,No
Http://opendatacommunities.org/id/metropolitan-district-council/leeds,Leeds City Council,31/10/2023,Strategy and Resources,Leeds Building Services,Supplies and Services,Operational Furniture and Equipment,203,11/10/2023,2310-00401,0.00,127.00,R,AJM FIXINGS & POWER TOOLS LTD,No
Http://opendatacommunities.org/id/metropolitan-district-council/leeds,Leeds City Council,31/10/2023,Strategy and Resources,Leeds Building Services,Supplies and Services,Operational Furniture and Equipment,203,11/10/2023,2310-00402,0.00,381.00,R,AJM FIXINGS & POWER TOOLS LTD,No
Http://opendatacommunities.org/id/metropolitan-district-council/leeds,Leeds City Council,31/10/2023,Strategy and Resources,Leeds Building Services,Supplies and Services,Operational Furniture and Equipment,203,11/10/2023,2310-00403,0.00,72.44,R,AJM FIXINGS & POWER TOOLS LTD,No
Http://opendatacommunities.org/id/metropolitan-district-council/leeds,Leeds City Council,31/10/2023,Strategy and Resources,Leeds Building Services,Supplies and Services,Operational Furniture and Equipment,203,11/10/2023,2310-00404,0.00,60.99,R,AJM FIXINGS & POWER TOOLS LTD,No
Http://opendatacommunities.org/id/metropolitan-district-council/leeds,Leeds City Council,31/10/2023,Strategy and Resources,Leeds Building Services,Premises,Cleaning Maintenance & Toiletries,127,11/10/2023,2310-00405,0.00,82.16,R,AJM FIXINGS & POWER TOOLS LTD,No
Http://opendatacommunities.org/id/metropolitan-district-council/leeds,Leeds City Council,31/10/2023,Strategy and Resources,Leeds Building Services,Premises,Cleaning Maintenance & Toiletries,127,13/10/2023,2310-00406,0.00,213.40,R,AJM FIXINGS & POWER TOOLS LTD,No
Http://opendatacommunities.org/id/metropolitan-district-council/leeds,Leeds City Council,31/10/2023,Strategy and Resources,Leeds Building Services,Premises,Cleaning Maintenance & Toiletries,127,19/10/2023,2310-00407,0.00,640.00,R,AJM FIXINGS & POWER TOOLS LTD,No
Http://opendatacommunities.org/id/metropolitan-district-council/leeds,Leeds City Council,31/10/2023,Strategy and Resources,Leeds Building Services,Supplies and Services,Operational Furniture and Equipment,203,20/10/2023,2310-00408,0.00,449.19,R,AJM FIXINGS & POWER TOOLS LTD,No
Http://opendatacommunities.org/id/metropolitan-district-council/leeds,Leeds City Council,31/10/2023,Strategy and Resources,Leeds Building Services,Supplies and Services,Operational Furniture and Equipment,203,20/10/2023,2310-00409,0.00,359.19,R,AJM FIXINGS & POWER TOOLS LTD,No
Http://opendatacommunities.org/id/metropolitan-district-council/leeds,Leeds City Council,31/10/2023,Strategy and Resources,Leeds Building Services,Supplies and Services,Operational Furniture and Equipment,203,20/10/2023,2310-00410,0.00,99.00,R,AJM FIXINGS & POWER TOOLS LTD,No
Http://opendatacommunities.org/id/metropolitan-district-council/leeds,Leeds City Council,31/10/2023,Strategy and Resources,Leeds Building Services,Premises,Cleaning Maintenance & Toiletries,127,20/10/2023,2310-00411,0.00,180.32,R,AJM FIXINGS & POWER TOOLS LTD,No
Http://opendatacommunities.org/id/metropolitan-district-council/leeds,Leeds City Council,31/10/2023,Strategy and Resources,Leeds Building Services,Premises,Cleaning Maintenance & Toiletries,127,20/10/2023,2310-00412,0.00,268.20,R,AJM FIXINGS & POWER TOOLS LTD,No
Http://opendatacommunities.org/id/metropolitan-district-council/leeds,Leeds City Council,31/10/2023,Strategy and Resources,Leeds Building Services,Supplies and Services,Operational Furniture and Equipment,203,25/10/2023,2310-00413,0.00,96.32,R,AJM FIXINGS & POWER TOOLS LTD,No
Http://opendatacommunities.org/id/metropolitan-district-council/leeds,Leeds City Council,31/10/2023,Strategy and Resources,Leeds Building Services,Supplies and Services,Operational Furniture and Equipment,203,26/10/2023,2310-00414,0.00,96.32,R,AJM FIXINGS & POWER TOOLS LTD,No
Http://opendatacommunities.org/id/metropolitan-district-council/leeds,Leeds City Council,31/10/2023,Strategy and Resources,Leeds Building Services,Supplies and Services,Operational Furniture and Equipment,203,26/10/2023,2310-00415,0.00,514.50,R,AJM FIXINGS & POWER TOOLS LTD,No
Http://opendatacommunities.org/id/metropolitan-district-council/leeds,Leeds City Council,31/10/2023,Strategy and Resources,Leeds Building Services,Supplies and Services,Operational Furniture and Equipment,203,26/10/2023,2310-00416,0.00,359.19,R,AJM FIXINGS & POWER TOOLS LTD,No
Http://opendatacommunities.org/id/metropolitan-district-council/leeds,Leeds City Council,31/10/2023,Strategy and Resources,Leeds Building Services,Supplies and Services,Operational Furniture and Equipment,203,26/10/2023,2310-00417,0.00,124.25,R,AJM FIXINGS & POWER TOOLS LTD,No
Http://opendatacommunities.org/id/metropolitan-district-council/leeds,Leeds City Council,31/10/2023,Strategy and Resources,Leeds Building Services,Supplies and Services,Operational Furniture and Equipment,203,26/10/2023,2310-00418,0.00,115.00,R,AJM FIXINGS & POWER TOOLS LTD,No
Http://opendatacommunities.org/id/metropolitan-district-council/leeds,Leeds City Council,31/10/2023,Strategy and Resources,Leeds Building Services,Premises,Cleaning Maintenance & Toiletries,127,26/10/2023,2310-00419,0.00,16.30,R,AJM FIXINGS & POWER TOOLS LTD,No
Http://opendatacommunities.org/id/metropolitan-district-council/leeds,Leeds City Council,31/10/2023,Strategy and Resources,Leeds Building Services,Supplies and Services,Operational Furniture and Equipment,203,26/10/2023,2310-00420,0.00,115.00,R,AJM FIXINGS & POWER TOOLS LTD,No
Http://opendatacommunities.org/id/metropolitan-district-council/leeds,Leeds City Council,31/10/2023,Strategy and Resources,Leeds Building Services,Supplies and Services,Operational Furniture and Equipment,203,26/10/2023,2310-00421,0.00,258.29,R,AJM FIXINGS & POWER TOOLS LTD,No
Http://opendatacommunities.org/id/metropolitan-district-council/leeds,Leeds City Council,31/10/2023,Strategy and Resources,Leeds Building Services,Supplies and Services,Operational Furniture and Equipment,203,26/10/2023,2310-00422,0.00,1326.54,R,AJM FIXINGS & POWER TOOLS LTD,No
Http://opendatacommunities.org/id/metropolitan-district-council/leeds,Leeds City Council,31/10/2023,Strategy and Resources,Leeds Building Services,Premises,Cleaning Maintenance & Toiletries,127,26/10/2023,2310-00423,0.00,1412.20,R,AJM FIXINGS & POWER TOOLS LTD,No
Http://opendatacommunities.org/id/metropolitan-district-council/leeds,Leeds City Council,31/10/2023,Strategy and Resources,Leeds Building Services,Supplies and Services,Operational Furniture and Equipment,203,26/10/2023,2310-00424,0.00,462.00,R,AJM FIXINGS & POWER TOOLS LTD,No
Http://opendatacommunities.org/id/metropolitan-district-council/leeds,Leeds City Council,31/10/2023,Strategy and Resources,Leeds Building Services,Supplies and Services,Operational Furniture and Equipment,203,27/10/2023,2310-00425,0.00,90.00,R,AJM FIXINGS & POWER TOOLS LTD,No
Http://opendatacommunities.org/id/metropolitan-district-council/leeds,Leeds City Council,31/10/2023,Strategy and Resources,Leeds Building Services,Supplies and Services,Operational Furniture and Equipment,203,27/10/2023,2310-00426,0.00,90.00,R,AJM FIXINGS & POWER TOOLS LTD,No
Http://opendatacommunities.org/id/metropolitan-district-council/leeds,Leeds City Council,31/10/2023,Children and Families,Social Care,Supplies and Services,General Amenity For Clients/Residents,285,18/10/2023,2310-00427,0.00,27.55,R,REDACTED PERSONAL DATA,No
Http://opendatacommunities.org/id/metropolitan-district-council/leeds,Leeds City Council,31/10/2023,Children and Families,Social Care,Transport,Public Transport Expenses,310,18/10/2023,2310-00428,0.00,12.80,R,REDACTED PERSONAL DATA,No
Http://opendatacommunities.org/id/metropolitan-district-council/leeds,Leeds City Council,31/10/2023,Adults and Health,Social Services Support Services,Employees,Training & Development,70,27/10/2023,2310-00429,0.00,13.00,R,REDACTED PERSONAL DATA,No
Http://opendatacommunities.org/id/metropolitan-district-council/leeds,Leeds City Council,31/10/2023,City Development,Libraries Arts & Heritage,Supplies and Services,Non-Recurring Grants,227,25/10/2023,2310-00430,0.00,1000.00,R,Akeim Toussaint Buck,No
Http://opendatacommunities.org/id/metropolitan-district-council/leeds,Leeds City Council,31/10/2023,Children and Families,Social Care,Agency Payments,Placement Support,550,19/10/2023,2310-00431,0.00,14783.33,R,AKR Construction Ltd,No
Http://opendatacommunities.org/id/metropolitan-district-council/leeds,Leeds City Council,31/10/2023,Children and Families,Social Care ,Appropriations,Leaving Care Grants,635,24/08/2023,2310-00432,0.00,54.62,R,Al Murad,Yes
Http://opendatacommunities.org/id/metropolitan-district-council/leeds,Leeds City Council,31/10/2023,Children and Families,Social Care ,Appropriations,Leaving Care Grants,635,11/08/2023,2310-00433,0.00,88.02,R,Al Murad Diy Ltd,Yes
Http://opendatacommunities.org/id/metropolitan-district-council/leeds,Leeds City Council,31/10/2023,Children and Families,Social Care ,Appropriations,Leaving Care Grants,635,24/08/2023,2310-00434,0.00,-7.99,R,Al Murad Diy Ltd,Yes
Http://opendatacommunities.org/id/metropolitan-district-council/leeds,Leeds City Council,31/10/2023,Communities Housing and Environment,Communities,Transport,Public Transport Expenses,310,31/10/2023,2310-00435,0.00,4.55,R,REDACTED PERSONAL DATA,No
Http://opendatacommunities.org/id/metropolitan-district-council/leeds,Leeds City Council,31/10/2023,Strategy and Resources,Commercial Services,Transport,Miscellaneous Transport Related Costs,324,04/10/2023,2310-00436,0.00,34.99,R,REDACTED PERSONAL DATA,No
Http://opendatacommunities.org/id/metropolitan-district-council/leeds,Leeds City Council,31/10/2023,Insurance,Insurance,Supplies and Services,Insurance Claims,248,02/10/2023,2310-00437,0.00,900.00,R,REDACTED PERSONAL DATA,No
Http://opendatacommunities.org/id/metropolitan-district-council/leeds,Leeds City Council,31/10/2023,Strategy and Resources,Democratic Services ,Appropriations,Civic Allowances,651,31/07/2023,2310-00438,0.00,15.00,R,Alan Brown Flowers,Yes
Http://opendatacommunities.org/id/metropolitan-district-council/leeds,Leeds City Council,31/10/2023,Strategy and Resources,Democratic Services ,Appropriations,Civic Allowances,651,03/08/2023,2310-00439,0.00,50.00,R,Alan Brown Flowers,Yes
Http://opendatacommunities.org/id/metropolitan-district-council/leeds,Leeds City Council,31/10/2023,Children and Families,Social Care,Supplies and Services,Office Consumables,210,05/10/2023,2310-00440,0.00,26.99,R,REDACTED PERSONAL DATA,No
Http://opendatacommunities.org/id/metropolitan-district-council/leeds,Leeds City Council,31/10/2023,Children and Families,Social Care,Supplies and Services,Hospitality,255,16/10/2023,2310-00441,0.00,40.07,R,REDACTED PERSONAL DATA,No
Http://opendatacommunities.org/id/metropolitan-district-council/leeds,Leeds City Council,31/10/2023,Children and Families,Social Care,Agency Payments,Services Rendered By Other Organisations,511,06/10/2023,2310-00442,0.00,1058.40,R,REDACTED PERSONAL DATA,No
Http://opendatacommunities.org/id/metropolitan-district-council/leeds,Leeds City Council,31/10/2023,Children and Families,Social Care,Supplies and Services,Operational Furniture and Equipment,203,20/10/2023,2310-00443,0.00,159.74,R,Alarm Radio Monitoring Ltd,No
Http://opendatacommunities.org/id/metropolitan-district-council/leeds,Leeds City Council as Accountable Body,31/10/2023,Social Services Pooled Budgets,Leeds Community Equip Store Pooled Budgt,Supplies and Services,Other Equipment,203,20/10/2023,2310-00444,0.00,330.00,R,ALBION ELECTRIC STORES LTD,No
Http://opendatacommunities.org/id/metropolitan-district-council/leeds,Leeds City Council,31/10/2023,Communities Housing and Environment,Communities ,Supplies and Services,Food & Drink,231,14/08/2023,2310-00445,0.00,8.86,R,Aldi,Yes
Http://opendatacommunities.org/id/metropolitan-district-council/leeds,Leeds City Council,31/10/2023,Children and Families,Social Care ,Supplies and Services,Food & Drink,231,23/08/2023,2310-00446,0.00,46.89,R,Aldi,Yes
Http://opendatacommunities.org/id/metropolitan-district-council/leeds,Leeds City Council,31/10/2023,Children and Families,Social Care ,Agency Payments,Section 17,551,23/08/2023,2310-00447,0.00,8.17,R,Aldi,Yes
Http://opendatacommunities.org/id/metropolitan-district-council/leeds,Leeds City Council,31/10/2023,Children and Families,Social Care ,Supplies and Services,Food & Drink,231,25/08/2023,2310-00448,0.00,8.39,R,Aldi,Yes
Http://opendatacommunities.org/id/metropolitan-district-council/leeds,Leeds City Council,31/10/2023,Children and Families,Social Care ,Supplies and Services,Food & Drink,231,08/08/2023,2310-00449,0.00,123.22,R,Aldi 103 779,Yes
Http://opendatacommunities.org/id/metropolitan-district-council/leeds,Leeds City Council,31/10/2023,Children and Families,Social Care ,Supplies and Services,Operational Furniture and Equipment,203,14/08/2023,2310-00450,0.00,3.32,R,Aldi 40 779,Yes
Http://opendatacommunities.org/id/metropolitan-district-council/leeds,Leeds City Council,31/10/2023,Communities Housing and Environment,Communities ,Supplies and Services,Food & Drink,231,21/08/2023,2310-00451,0.00,1.45,R,Aldi 40 779,Yes
Http://opendatacommunities.org/id/metropolitan-district-council/leeds,Leeds City Council,31/10/2023,Children and Families,Social Care ,Supplies and Services,Food & Drink,231,21/08/2023,2310-00452,0.00,5.11,R,Aldi 40 779,Yes
Http://opendatacommunities.org/id/metropolitan-district-council/leeds,Leeds City Council,31/10/2023,Children and Families,Social Care ,Appropriations,Young Peoples Rewards,653,29/07/2023,2310-00453,0.00,50.00,R,Aldi 49 779,Yes
Http://opendatacommunities.org/id/metropolitan-district-council/leeds,Leeds City Council,31/10/2023,Children and Families,Social Care ,Agency Payments,Section 17,551,08/08/2023,2310-00454,0.00,50.00,R,Aldi 49 779,Yes
Http://opendatacommunities.org/id/metropolitan-district-council/leeds,Leeds City Council,31/10/2023,Children and Families,Social Care ,Appropriations,Leaving Care Allowances,634,09/08/2023,2310-00455,0.00,15.00,R,Aldi 54 779,Yes
Http://opendatacommunities.org/id/metropolitan-district-council/leeds,Leeds City Council,31/10/2023,Children and Families,Social Care ,Appropriations,Leaving Care Allowances,634,10/08/2023,2310-00456,0.00,10.98,R,Aldi 71 779,Yes
Http://opendatacommunities.org/id/metropolitan-district-council/leeds,Leeds City Council,31/10/2023,Children and Families,Social Care ,Agency Payments,Section 17,551,11/08/2023,2310-00457,0.00,12.42,R,Aldi 71 779,Yes
Http://opendatacommunities.org/id/metropolitan-district-council/leeds,Leeds City Council,31/10/2023,Communities Housing and Environment,Customer Access ,Supplies and Services,Schools related grant expenditure,299,21/08/2023,2310-00458,0.00,11.31,R,Aldi 71 779,Yes
Http://opendatacommunities.org/id/metropolitan-district-council/leeds,Leeds City Council,31/10/2023,Children and Families,Social Care ,Supplies and Services,Food & Drink,231,23/08/2023,2310-00459,0.00,23.31,R,Aldi 71 779,Yes
Http://opendatacommunities.org/id/metropolitan-district-council/leeds,Leeds City Council,31/10/2023,Children and Families,Social Care ,Appropriations,Leaving Care Allowances,634,24/08/2023,2310-00460,0.00,16.43,R,Aldi 71 779,Yes
Http://opendatacommunities.org/id/metropolitan-district-council/leeds,Leeds City Council,31/10/2023,Children and Families,Social Care ,Agency Payments,Section 17,551,10/08/2023,2310-00461,0.00,20.26,R,Aldi 779-126,Yes
Http://opendatacommunities.org/id/metropolitan-district-council/leeds,Leeds City Council,31/10/2023,City Development,Recreation ,Supplies and Services,Operational Furniture and Equipment,203,16/08/2023,2310-00462,0.00,8.63,R,Aldi 779-126,Yes
Http://opendatacommunities.org/id/metropolitan-district-council/leeds,Leeds City Council,31/10/2023,Strategy and Resources,Commercial Services ,Supplies and Services,Food & Drink,231,28/07/2023,2310-00463,0.00,14.19,R,Aldi 85 779,Yes
Http://opendatacommunities.org/id/metropolitan-district-council/leeds,Leeds City Council,31/10/2023,Children and Families,Social Care ,Supplies and Services,Food & Drink,231,17/08/2023,2310-00464,0.00,18.83,R,Aldi 85 779,Yes
Http://opendatacommunities.org/id/metropolitan-district-council/leeds,Leeds City Council,31/10/2023,Communities Housing and Environment,Communities ,Supplies and Services,Food & Drink,231,22/08/2023,2310-00465,0.00,59.84,R,Aldi 85 779,Yes
Http://opendatacommunities.org/id/metropolitan-district-council/leeds,Leeds City Council,31/10/2023,Communities Housing and Environment,Communities ,Appropriations,Young Peoples Rewards,653,03/08/2023,2310-00466,0.00,100.00,R,Aldi 88 779,Yes
Http://opendatacommunities.org/id/metropolitan-district-council/leeds,Leeds City Council,31/10/2023,Children and Families,Social Care ,Premises,Cleaning Maintenance & Toiletries,127,10/08/2023,2310-00467,0.00,7.87,R,Aldi 88 779,Yes
Http://opendatacommunities.org/id/metropolitan-district-council/leeds,Leeds City Council,31/10/2023,Children and Families,Social Care ,Supplies and Services,Food & Drink,231,12/08/2023,2310-00468,0.00,9.82,R,Aldi 88 779,Yes
Http://opendatacommunities.org/id/metropolitan-district-council/leeds,Leeds City Council,31/10/2023,Communities Housing and Environment,Communities ,Appropriations,Young Peoples Rewards,653,14/08/2023,2310-00469,0.00,60.00,R,Aldi 88 779,Yes
Http://opendatacommunities.org/id/metropolitan-district-council/leeds,Leeds City Council,31/10/2023,Children and Families,Social Care ,Supplies and Services,Food & Drink,231,17/08/2023,2310-00470,0.00,11.45,R,Aldi 88 779,Yes
Http://opendatacommunities.org/id/metropolitan-district-council/leeds,Leeds City Council,31/10/2023,Children and Families,Social Care ,Supplies and Services,Food & Drink,231,19/08/2023,2310-00471,0.00,28.56,R,Aldi 88 779,Yes
Http://opendatacommunities.org/id/metropolitan-district-council/leeds,Leeds City Council,31/10/2023,Children and Families,Social Care ,Supplies and Services,Food & Drink,231,30/07/2023,2310-00472,0.00,49.19,R,Aldi 89 779,Yes
Http://opendatacommunities.org/id/metropolitan-district-council/leeds,Leeds City Council,31/10/2023,Children and Families,Social Care ,Supplies and Services,Food & Drink,231,31/07/2023,2310-00473,0.00,228.88,R,Aldi 89 779,Yes
Http://opendatacommunities.org/id/metropolitan-district-council/leeds,Leeds City Council,31/10/2023,Children and Families,Social Care ,Supplies and Services,Food & Drink,231,09/08/2023,2310-00474,0.00,22.95,R,Aldi 89 779,Yes
Http://opendatacommunities.org/id/metropolitan-district-council/leeds,Leeds City Council,31/10/2023,Children and Families,Social Care ,Appropriations,Young People Expenses,654,09/08/2023,2310-00475,0.00,135.00,R,Aldi 89 779,Yes
Http://opendatacommunities.org/id/metropolitan-district-council/leeds,Leeds City Council,31/10/2023,Children and Families,Social Care ,Appropriations,Leaving Care Grants,635,11/08/2023,2310-00476,0.00,8.55,R,Aldi 89 779,Yes
Http://opendatacommunities.org/id/metropolitan-district-council/leeds,Leeds City Council,31/10/2023,Communities Housing and Environment,Communities ,Supplies and Services,Food & Drink,231,14/08/2023,2310-00477,0.00,10.35,R,Aldi 89 779,Yes
Http://opendatacommunities.org/id/metropolitan-district-council/leeds,Leeds City Council,31/10/2023,Communities Housing and Environment,Communities ,Supplies and Services,Food & Drink,231,14/08/2023,2310-00478,0.00,51.15,R,Aldi 89 779,Yes
Http://opendatacommunities.org/id/metropolitan-district-council/leeds,Leeds City Council,31/10/2023,Children and Families,Social Care ,Supplies and Services,Food & Drink,231,15/08/2023,2310-00479,0.00,37.66,R,Aldi 89 779,Yes
Http://opendatacommunities.org/id/metropolitan-district-council/leeds,Leeds City Council,31/10/2023,Children and Families,Social Care ,Appropriations,Young People Expenses,654,23/08/2023,2310-00480,0.00,15.00,R,Aldi 89 779,Yes
Http://opendatacommunities.org/id/metropolitan-district-council/leeds,Leeds City Council,31/10/2023,Children and Families,Social Care ,Supplies and Services,Food & Drink,231,27/07/2023,2310-00481,0.00,10.12,R,Aldi Stores,Yes
Http://opendatacommunities.org/id/metropolitan-district-council/leeds,Leeds City Council,31/10/2023,Communities Housing and Environment,Communities ,Supplies and Services,Food & Drink,231,09/08/2023,2310-00482,0.00,13.45,R,Aldi Stores,Yes
Http://opendatacommunities.org/id/metropolitan-district-council/leeds,Leeds City Council,31/10/2023,Children and Families,Social Care ,Supplies and Services,Food & Drink,231,11/08/2023,2310-00483,0.00,6.97,R,Aldi Stores,Yes
Http://opendatacommunities.org/id/metropolitan-district-council/leeds,Leeds City Council,31/10/2023,Communities Housing and Environment,Climate Energy & Greenspaces ,Supplies and Services,Food & Drink,231,15/08/2023,2310-00484,0.00,16.67,R,Aldi Stores,Yes
Http://opendatacommunities.org/id/metropolitan-district-council/leeds,Leeds City Council,31/10/2023,Children and Families,Social Care,Agency Payments,Section 17,551,03/10/2023,2310-00485,0.00,40.00,R,REDACTED PERSONAL DATA,No
Http://opendatacommunities.org/id/metropolitan-district-council/leeds,Leeds City Council,31/10/2023,Children and Families,Social Care,Agency Payments,Contact,548,05/10/2023,2310-00486,0.00,10.00,R,REDACTED PERSONAL DATA,No
Http://opendatacommunities.org/id/metropolitan-district-council/leeds,Leeds City Council,31/10/2023,Communities Housing and Environment,Customer Access,Transport,Public Transport Expenses,310,12/10/2023,2310-00487,0.00,4.00,R,REDACTED PERSONAL DATA,No
Http://opendatacommunities.org/id/metropolitan-district-council/leeds,Leeds City Council,31/10/2023,Children and Families,Social Care,Internal Recharges,Legal Disbursements,411,04/10/2023,2310-00488,0.00,5558.00,R,Alex Taylor,No
Http://opendatacommunities.org/id/metropolitan-district-council/leeds,Leeds City Council,31/10/2023,Strategy and Resources,Commercial Services,Supplies and Services,Other Hired and Contracted Services,265,11/10/2023,2310-00489,0.00,200.00,R,ALEX WAGG,No
Http://opendatacommunities.org/id/metropolitan-district-council/leeds,Leeds City Council,31/10/2023,Strategy and Resources,Commercial Services,Supplies and Services,Other Hired and Contracted Services,265,20/10/2023,2310-00490,0.00,200.00,R,ALEX WAGG,No
Http://opendatacommunities.org/id/metropolitan-district-council/leeds,Leeds City Council,31/10/2023,Adults and Health,Services For Older People - 65 And Over,Agency Payments,Residential Care Dementia,571,11/10/2023,2310-00491,0.00,22433.48,R,ALEXANDER RESIDENTIAL HOME,No
Http://opendatacommunities.org/id/metropolitan-district-council/leeds,Leeds City Council,31/10/2023,Adults and Health,Services For Older People - 65 And Over,Agency Payments,Residential,580,11/10/2023,2310-00492,0.00,18422.36,R,ALEXANDER RESIDENTIAL HOME,No
Http://opendatacommunities.org/id/metropolitan-district-council/leeds,Leeds City Council as Accountable Body,31/10/2023,Social Services Pooled Budgets,Jcs For People With Learning Disabilitie,Agency Payments,Residential,580,11/10/2023,2310-00493,0.00,3096.00,R,ALEXANDER RESIDENTIAL HOME,No
Http://opendatacommunities.org/id/metropolitan-district-council/leeds,Leeds City Council,31/10/2023,Children and Families,Social Care,Supplies and Services,General Amenity For Clients/Residents,285,13/10/2023,2310-00494,0.00,17.67,R,REDACTED PERSONAL DATA,No
Http://opendatacommunities.org/id/metropolitan-district-council/leeds,Leeds City Council,31/10/2023,Children and Families,Social Care,Transport,Public Transport Expenses,310,13/10/2023,2310-00495,0.00,5.60,R,REDACTED PERSONAL DATA,No
Http://opendatacommunities.org/id/metropolitan-district-council/leeds,Leeds City Council,31/10/2023,Children and Families,Social Care,Supplies and Services,Conference Meetings,253,16/10/2023,2310-00496,0.00,52.50,R,REDACTED PERSONAL DATA,No
Http://opendatacommunities.org/id/metropolitan-district-council/leeds,Leeds City Council,31/10/2023,Children and Families,Social Care,Supplies and Services,Food & Drink,231,17/10/2023,2310-00497,0.00,20.87,R,REDACTED PERSONAL DATA,No
Http://opendatacommunities.org/id/metropolitan-district-council/leeds,Leeds City Council,31/10/2023,Children and Families,Social Care,Supplies and Services,Food & Drink,231,17/10/2023,2310-00498,0.00,11.65,R,REDACTED PERSONAL DATA,No
Http://opendatacommunities.org/id/metropolitan-district-council/leeds,Leeds City Council,31/10/2023,Children and Families,Social Care,Transport,External Hire -Occasional,304,17/10/2023,2310-00499,0.00,8.20,R,REDACTED PERSONAL DATA,No
Http://opendatacommunities.org/id/metropolitan-district-council/leeds,Leeds City Council,31/10/2023,Communities Housing and Environment,Customer Access,Supplies and Services,Bought In Professional Services,277,04/10/2023,2310-00500,0.00,18.00,R,Alexandra Costenco,No
Http://opendatacommunities.org/id/metropolitan-district-council/leeds,Leeds City Council,31/10/2023,Communities Housing and Environment,Customer Access,Supplies and Services,Bought In Professional Services,277,04/10/2023,2310-00501,0.00,18.00,R,Alexandra Costenco,No
Http://opendatacommunities.org/id/metropolitan-district-council/leeds,Leeds City Council,31/10/2023,Communities Housing and Environment,Customer Access,Supplies and Services,Bought In Professional Services,277,04/10/2023,2310-00502,0.00,18.00,R,Alexandra Costenco,No
Http://opendatacommunities.org/id/metropolitan-district-council/leeds,Leeds City Council,31/10/2023,Communities Housing and Environment,Customer Access,Supplies and Services,Bought In Professional Services,277,11/10/2023,2310-00503,0.00,18.00,R,Alexandra Costenco,No
Http://opendatacommunities.org/id/metropolitan-district-council/leeds,Leeds City Council,31/10/2023,Communities Housing and Environment,Customer Access,Supplies and Services,Bought In Professional Services,277,11/10/2023,2310-00504,0.00,18.00,R,Alexandra Costenco,No
Http://opendatacommunities.org/id/metropolitan-district-council/leeds,Leeds City Council,31/10/2023,Communities Housing and Environment,Customer Access,Supplies and Services,Bought In Professional Services,277,18/10/2023,2310-00505,0.00,18.00,R,Alexandra Costenco,No
Http://opendatacommunities.org/id/metropolitan-district-council/leeds,Leeds City Council,31/10/2023,Communities Housing and Environment,Customer Access,Supplies and Services,Bought In Professional Services,277,18/10/2023,2310-00506,0.00,18.00,R,Alexandra Costenco,No
Http://opendatacommunities.org/id/metropolitan-district-council/leeds,Leeds City Council,31/10/2023,Adults and Health,Services For Older People - 65 And Over,Agency Payments,Residential Care Dementia,571,11/10/2023,2310-00507,0.00,-1044.15,R,ALEXANDRA COURT,No
Http://opendatacommunities.org/id/metropolitan-district-council/leeds,Leeds City Council,31/10/2023,Adults and Health,Services For Older People - 65 And Over,Agency Payments,Residential,580,11/10/2023,2310-00508,0.00,6301.56,R,ALEXANDRA COURT,No
Http://opendatacommunities.org/id/metropolitan-district-council/leeds,Leeds City Council,31/10/2023,Adults and Health,Services For Adults Under 65 Mental/Dis,Agency Payments,Residential,580,06/10/2023,2310-00509,0.00,973.50,R,Alexandra Court Residential,No
Http://opendatacommunities.org/id/metropolitan-district-council/leeds,Leeds City Council,31/10/2023,Adults and Health,Services For Adults Under 65 Mental/Dis,Agency Payments,Residential,580,13/10/2023,2310-00510,0.00,866.25,R,Alexandra Court Residential,No
Http://opendatacommunities.org/id/metropolitan-district-council/leeds,Leeds City Council,31/10/2023,Adults and Health,Services For Adults Under 65 Mental/Dis,Agency Payments,Residential,580,20/10/2023,2310-00511,0.00,577.50,R,Alexandra Court Residential,No
Http://opendatacommunities.org/id/metropolitan-district-council/leeds,Leeds City Council,31/10/2023,Adults and Health,Services For Older People - 65 And Over ,Supplies and Services,Clothing & Uniforms,241,18/08/2023,2310-00512,0.00,81.55,R,Alexandra Website,Yes
Http://opendatacommunities.org/id/metropolitan-district-council/leeds,Leeds City Council,31/10/2023,Strategy and Resources,Leeds Building Services,Supplies and Services,Other Hired and Contracted Services,265,04/10/2023,2310-00513,0.00,1174.00,R,Alfred Bagnall & Sons (Leeds) Ltd,No
Http://opendatacommunities.org/id/metropolitan-district-council/leeds,Leeds City Council,31/10/2023,Communities Housing and Environment,Climate Energy and Greenspaces,Capital,CONSTRUCTION,3,04/10/2023,2310-00514,0.00,2155.00,C,Alfred Bagnall & Sons (Leeds) Ltd,No
Http://opendatacommunities.org/id/metropolitan-district-council/leeds,Leeds City Council,31/10/2023,Strategy and Resources,Leeds Building Services,Supplies and Services,Other Hired and Contracted Services,265,11/10/2023,2310-00515,0.00,2350.00,R,Alfred Bagnall & Sons (Leeds) Ltd,No
Http://opendatacommunities.org/id/metropolitan-district-council/leeds,Leeds City Council,31/10/2023,Strategy and Resources,Leeds Building Services,Supplies and Services,Other Hired and Contracted Services,265,13/10/2023,2310-00516,0.00,557.14,R,Alfred Bagnall & Sons (Leeds) Ltd,No
Http://opendatacommunities.org/id/metropolitan-district-council/leeds,Leeds City Council,31/10/2023,Strategy and Resources,Leeds Building Services,Supplies and Services,Other Hired and Contracted Services,265,13/10/2023,2310-00517,0.00,150.00,R,Alfred Bagnall & Sons (Leeds) Ltd,No
Http://opendatacommunities.org/id/metropolitan-district-council/leeds,Leeds City Council,31/10/2023,City Development,Libraries Arts & Heritage,Supplies and Services,Other Hired and Contracted Services,265,13/10/2023,2310-00518,0.00,7230.14,R,Alfred Bagnall & Sons (Leeds) Ltd,No
Http://opendatacommunities.org/id/metropolitan-district-council/leeds,Leeds City Council,31/10/2023,City Development,Libraries Arts & Heritage,Supplies and Services,Other Hired and Contracted Services,265,13/10/2023,2310-00519,0.00,1230.14,R,Alfred Bagnall & Sons (Leeds) Ltd,No
Http://opendatacommunities.org/id/metropolitan-district-council/leeds,Leeds City Council,31/10/2023,Children and Families,Social Care,Premises,Maintenance Of Buildings,101,13/10/2023,2310-00520,0.00,870.00,R,Alfred Bagnall & Sons (Leeds) Ltd,No
Http://opendatacommunities.org/id/metropolitan-district-council/leeds,Leeds City Council,31/10/2023,Children and Families,Social Care,Premises,Maintenance Of Buildings,101,13/10/2023,2310-00521,0.00,45.00,R,Alfred Bagnall & Sons (Leeds) Ltd,No
Http://opendatacommunities.org/id/metropolitan-district-council/leeds,Leeds City Council,31/10/2023,Strategy and Resources,Leeds Building Services,Supplies and Services,Other Hired and Contracted Services,265,18/10/2023,2310-00522,0.00,787.18,R,Alfred Bagnall & Sons (Leeds) Ltd,No
Http://opendatacommunities.org/id/metropolitan-district-council/leeds,Leeds City Council,31/10/2023,Strategy and Resources,Leeds Building Services,Supplies and Services,Other Hired and Contracted Services,265,18/10/2023,2310-00523,0.00,750.24,R,Alfred Bagnall & Sons (Leeds) Ltd,No
Http://opendatacommunities.org/id/metropolitan-district-council/leeds,Leeds City Council,31/10/2023,Strategy and Resources,Leeds Building Services,Supplies and Services,Other Hired and Contracted Services,265,18/10/2023,2310-00524,0.00,535.00,R,Alfred Bagnall & Sons (Leeds) Ltd,No
Http://opendatacommunities.org/id/metropolitan-district-council/leeds,Leeds City Council,31/10/2023,Strategy and Resources,Leeds Building Services,Supplies and Services,Other Hired and Contracted Services,265,20/10/2023,2310-00525,0.00,845.24,R,Alfred Bagnall & Sons (Leeds) Ltd,No
Http://opendatacommunities.org/id/metropolitan-district-council/leeds,Leeds City Council,31/10/2023,Strategy and Resources,Leeds Building Services,Supplies and Services,Other Hired and Contracted Services,265,27/10/2023,2310-00526,0.00,495.00,R,Alfred Bagnall & Sons (Leeds) Ltd,No
Http://opendatacommunities.org/id/metropolitan-district-council/leeds,Leeds City Council,31/10/2023,Strategy and Resources,Leeds Building Services,Supplies and Services,Other Hired and Contracted Services,265,27/10/2023,2310-00527,0.00,2670.00,R,Alfred Bagnall & Sons (Leeds) Ltd,No
Http://opendatacommunities.org/id/metropolitan-district-council/leeds,Leeds City Council,31/10/2023,Communities Housing and Environment,Waste Management,Supplies and Services,Other Hired and Contracted Services,265,11/10/2023,2310-00528,0.00,10166.00,R,Alfred H Knight Energy Services Ltd,No
Http://opendatacommunities.org/id/metropolitan-district-council/leeds,Leeds City Council,31/10/2023,Communities Housing and Environment,Waste Management,Supplies and Services,Other Hired and Contracted Services,265,11/10/2023,2310-00529,0.00,18765.00,R,Alfred H Knight Energy Services Ltd,No
Http://opendatacommunities.org/id/metropolitan-district-council/leeds,Leeds City Council,31/10/2023,Communities Housing and Environment,Communities,Transport,Public Transport Expenses,310,31/10/2023,2310-00530,0.00,1.80,R,REDACTED PERSONAL DATA,No
Http://opendatacommunities.org/id/metropolitan-district-council/leeds,Leeds City Council,31/10/2023,Communities Housing and Environment,Customer Access,Supplies and Services,Bought In Professional Services,277,04/10/2023,2310-00531,0.00,18.00,R,Ali Pourakaberian,No
Http://opendatacommunities.org/id/metropolitan-district-council/leeds,Leeds City Council,31/10/2023,Communities Housing and Environment,Customer Access,Supplies and Services,Bought In Professional Services,277,04/10/2023,2310-00532,0.00,18.00,R,Ali Pourakaberian,No
Http://opendatacommunities.org/id/metropolitan-district-council/leeds,Leeds City Council,31/10/2023,Communities Housing and Environment,Customer Access,Supplies and Services,Bought In Professional Services,277,11/10/2023,2310-00533,0.00,18.00,R,Ali Pourakaberian,No
Http://opendatacommunities.org/id/metropolitan-district-council/leeds,Leeds City Council,31/10/2023,Communities Housing and Environment,Customer Access,Supplies and Services,Bought In Professional Services,277,11/10/2023,2310-00534,0.00,18.00,R,Ali Pourakaberian,No
Http://opendatacommunities.org/id/metropolitan-district-council/leeds,Leeds City Council,31/10/2023,Communities Housing and Environment,Customer Access,Supplies and Services,Bought In Professional Services,277,18/10/2023,2310-00535,0.00,9.00,R,Ali Pourakaberian,No
Http://opendatacommunities.org/id/metropolitan-district-council/leeds,Leeds City Council,31/10/2023,Communities Housing and Environment,Customer Access,Supplies and Services,Bought In Professional Services,277,18/10/2023,2310-00536,0.00,27.00,R,Ali Pourakaberian,No
Http://opendatacommunities.org/id/metropolitan-district-council/leeds,Leeds City Council,31/10/2023,Communities Housing and Environment,Customer Access,Supplies and Services,Bought In Professional Services,277,18/10/2023,2310-00537,0.00,22.50,R,Ali Pourakaberian,No
Http://opendatacommunities.org/id/metropolitan-district-council/leeds,Leeds City Council,31/10/2023,Communities Housing and Environment,Customer Access,Supplies and Services,Bought In Professional Services,277,18/10/2023,2310-00538,0.00,18.00,R,Ali Pourakaberian,No
Http://opendatacommunities.org/id/metropolitan-district-council/leeds,Leeds City Council,31/10/2023,Communities Housing and Environment,Customer Access,Supplies and Services,Bought In Professional Services,277,18/10/2023,2310-00539,0.00,22.50,R,Ali Pourakaberian,No
Http://opendatacommunities.org/id/metropolitan-district-council/leeds,Leeds City Council,31/10/2023,Communities Housing and Environment,Customer Access,Supplies and Services,Bought In Professional Services,277,25/10/2023,2310-00540,0.00,18.00,R,Ali Pourakaberian,No
Http://opendatacommunities.org/id/metropolitan-district-council/leeds,Leeds City Council,31/10/2023,Communities Housing and Environment,Customer Access,Supplies and Services,Bought In Professional Services,277,25/10/2023,2310-00541,0.00,18.00,R,Ali Pourakaberian,No
Http://opendatacommunities.org/id/metropolitan-district-council/leeds,Leeds City Council,31/10/2023,Communities Housing and Environment,Customer Access,Supplies and Services,Bought In Professional Services,277,25/10/2023,2310-00542,0.00,9.00,R,Ali Pourakaberian,No
Http://opendatacommunities.org/id/metropolitan-district-council/leeds,Leeds City Council,31/10/2023,Communities Housing and Environment,Customer Access,Supplies and Services,Bought In Professional Services,277,25/10/2023,2310-00543,0.00,36.00,R,Ali Pourakaberian,No
Http://opendatacommunities.org/id/metropolitan-district-council/leeds,Leeds City Council,31/10/2023,Communities Housing and Environment,Customer Access,Supplies and Services,Bought In Professional Services,277,25/10/2023,2310-00544,0.00,22.50,R,Ali Pourakaberian,No
Http://opendatacommunities.org/id/metropolitan-district-council/leeds,Leeds City Council,31/10/2023,Adults and Health,Assessment And Care Management,Supplies and Services,Other Hired and Contracted Services,265,12/10/2023,2310-00545,0.00,10.83,R,REDACTED PERSONAL DATA,No
Http://opendatacommunities.org/id/metropolitan-district-council/leeds,Leeds City Council,31/10/2023,Children and Families,Social Care,Agency Payments,Placement Support,550,16/10/2023,2310-00546,0.00,65.48,R,REDACTED PERSONAL DATA,No
Http://opendatacommunities.org/id/metropolitan-district-council/leeds,Leeds City Council,31/10/2023,Children and Families,Social Care,Appropriations,Leaving Care Grants,635,20/10/2023,2310-00547,0.00,91.92,R,REDACTED PERSONAL DATA,No
Http://opendatacommunities.org/id/metropolitan-district-council/leeds,Leeds City Council,31/10/2023,Children and Families,Social Care,Agency Payments,Contact,548,19/10/2023,2310-00548,0.00,90.00,R,REDACTED PERSONAL DATA,No
Http://opendatacommunities.org/id/metropolitan-district-council/leeds,Leeds City Council,31/10/2023,Children and Families,Social Care,Agency Payments,Services Rendered By Other Organisations,511,06/10/2023,2310-00549,0.00,264.60,R,REDACTED PERSONAL DATA,No
Http://opendatacommunities.org/id/metropolitan-district-council/leeds,Leeds City Council,31/10/2023,Children and Families,Social Care,Internal Recharges,Legal Disbursements,411,20/10/2023,2310-00550,0.00,1317.50,R,Alison Davenport,No
Http://opendatacommunities.org/id/metropolitan-district-council/leeds,Leeds City Council,31/10/2023,Communities Housing and Environment,Strategic Housing Partnership & Support,Supplies and Services,Other Hired and Contracted Services,265,17/10/2023,2310-00551,0.00,686.53,R,REDACTED PERSONAL DATA,No
Http://opendatacommunities.org/id/metropolitan-district-council/leeds,Leeds City Council,31/10/2023,Communities Housing and Environment,Customer Access,Supplies and Services,Other Hired and Contracted Services,265,20/10/2023,2310-00552,0.00,133.59,R,Alison Larkin,No
Http://opendatacommunities.org/id/metropolitan-district-council/leeds,Leeds City Council,31/10/2023,City Development,Libraries Arts & Heritage,Supplies and Services,Other Hired and Contracted Services,265,26/10/2023,2310-00553,0.00,3000.00,R,Alison Smith,No
Http://opendatacommunities.org/id/metropolitan-district-council/leeds,Leeds City Council,31/10/2023,Strategy and Resources,Commercial Services,Supplies and Services,Other Hired and Contracted Services,265,23/10/2023,2310-00554,0.00,352.80,R,REDACTED PERSONAL DATA,No
Http://opendatacommunities.org/id/metropolitan-district-council/leeds,Leeds City Council,31/10/2023,Strategy and Resources,Commercial Services,Transport,Vehicle Spares,345,30/10/2023,2310-00555,0.00,400.95,R,Alkali Environmental Ltd,No
Http://opendatacommunities.org/id/metropolitan-district-council/leeds,Leeds City Council,31/10/2023,Communities Housing and Environment,Communities,Supplies and Services,Well Being Small Grants Projects,228,23/10/2023,2310-00556,0.00,232.00,R,All England Netball Association Limited,No
Http://opendatacommunities.org/id/metropolitan-district-council/leeds,Leeds City Council,31/10/2023,City Development,Libraries Arts & Heritage ,Supplies and Services,Operational Furniture and Equipment,203,08/08/2023,2310-00557,0.00,-169.99,R,All Seasons Gazebos,Yes
Http://opendatacommunities.org/id/metropolitan-district-council/leeds,Leeds City Council,31/10/2023,Children and Families,Social Care,Agency Payments,Services Rendered By Other Organisations,511,04/10/2023,2310-00558,0.00,1517.10,R,All Stars Childcare,No
Http://opendatacommunities.org/id/metropolitan-district-council/leeds,Leeds City Council,31/10/2023,Children and Families,Social Care,Agency Payments,Services Rendered By Other Organisations,511,06/10/2023,2310-00559,0.00,6306.30,R,All Stars Childcare,No
Http://opendatacommunities.org/id/metropolitan-district-council/leeds,Leeds City Council,31/10/2023,Adults and Health,Services For Adults Under 65 Mental/Dis,Agency Payments,Fees - Level 4,520,19/10/2023,2310-00560,0.00,176.29,R,ALLBRITE MEDICAL STAFFING LTD,No
Http://opendatacommunities.org/id/metropolitan-district-council/leeds,Leeds City Council,31/10/2023,Adults and Health,Services For Adults Under 65 Mental/Dis,Agency Payments,Fees - Level 4,520,19/10/2023,2310-00561,0.00,214.73,R,ALLBRITE MEDICAL STAFFING LTD,No
Http://opendatacommunities.org/id/metropolitan-district-council/leeds,Leeds City Council,31/10/2023,Adults and Health,Services For Adults Under 65 Mental/Dis,Agency Payments,Fees - Level 4,520,19/10/2023,2310-00562,0.00,202.52,R,ALLBRITE MEDICAL STAFFING LTD,No
Http://opendatacommunities.org/id/metropolitan-district-council/leeds,Leeds City Council,31/10/2023,Adults and Health,Services For Adults Under 65 Mental/Dis,Agency Payments,Fees - Level 4,520,19/10/2023,2310-00563,0.00,175.00,R,ALLBRITE MEDICAL STAFFING LTD,No
Http://opendatacommunities.org/id/metropolitan-district-council/leeds,Leeds City Council,31/10/2023,Adults and Health,Services For Adults Under 65 Mental/Dis,Agency Payments,Fees - Level 4,520,19/10/2023,2310-00564,0.00,175.00,R,ALLBRITE MEDICAL STAFFING LTD,No
Http://opendatacommunities.org/id/metropolitan-district-council/leeds,Leeds City Council,31/10/2023,Adults and Health,Services For Adults Under 65 Mental/Dis,Agency Payments,Fees - Level 4,520,19/10/2023,2310-00565,0.00,178.44,R,ALLBRITE MEDICAL STAFFING LTD,No
Http://opendatacommunities.org/id/metropolitan-district-council/leeds,Leeds City Council,31/10/2023,Adults and Health,Services For Adults Under 65 Mental/Dis,Agency Payments,Fees - Level 4,520,19/10/2023,2310-00566,0.00,179.30,R,ALLBRITE MEDICAL STAFFING LTD,No
Http://opendatacommunities.org/id/metropolitan-district-council/leeds,Leeds City Council,31/10/2023,Adults and Health,Services For Adults Under 65 Mental/Dis,Agency Payments,Fees - Level 4,520,19/10/2023,2310-00567,0.00,243.11,R,ALLBRITE MEDICAL STAFFING LTD,No
Http://opendatacommunities.org/id/metropolitan-district-council/leeds,Leeds City Council,31/10/2023,Adults and Health,Services For Adults Under 65 Mental/Dis,Agency Payments,Fees - Level 4,520,19/10/2023,2310-00568,0.00,202.09,R,ALLBRITE MEDICAL STAFFING LTD,No
Http://opendatacommunities.org/id/metropolitan-district-council/leeds,Leeds City Council,31/10/2023,Adults and Health,Services For Adults Under 65 Mental/Dis,Agency Payments,Fees - Level 4,520,19/10/2023,2310-00569,0.00,180.59,R,ALLBRITE MEDICAL STAFFING LTD,No
Http://opendatacommunities.org/id/metropolitan-district-council/leeds,Leeds City Council,31/10/2023,Adults and Health,Services For Adults Under 65 Mental/Dis,Agency Payments,Fees - Level 4,520,19/10/2023,2310-00570,0.00,204.24,R,ALLBRITE MEDICAL STAFFING LTD,No
Http://opendatacommunities.org/id/metropolitan-district-council/leeds,Leeds City Council,31/10/2023,Adults and Health,Services For Adults Under 65 Mental/Dis,Agency Payments,Fees - Level 4,520,27/10/2023,2310-00571,0.00,204.24,R,ALLBRITE MEDICAL STAFFING LTD,No
Http://opendatacommunities.org/id/metropolitan-district-council/leeds,Leeds City Council,31/10/2023,Adults and Health,Services For Adults Under 65 Mental/Dis,Agency Payments,Fees - Level 4,520,27/10/2023,2310-00572,0.00,179.73,R,ALLBRITE MEDICAL STAFFING LTD,No
Http://opendatacommunities.org/id/metropolitan-district-council/leeds,Leeds City Council,31/10/2023,Adults and Health,Services For Adults Under 65 Mental/Dis,Agency Payments,Fees - Level 4,520,27/10/2023,2310-00573,0.00,175.00,R,ALLBRITE MEDICAL STAFFING LTD,No
Http://opendatacommunities.org/id/metropolitan-district-council/leeds,Leeds City Council,31/10/2023,Adults and Health,Services For Adults Under 65 Mental/Dis,Agency Payments,Fees - Level 4,520,27/10/2023,2310-00574,0.00,200.37,R,ALLBRITE MEDICAL STAFFING LTD,No
Http://opendatacommunities.org/id/metropolitan-district-council/leeds,Leeds City Council,31/10/2023,Adults and Health,Services For Adults Under 65 Mental/Dis,Agency Payments,Fees - Level 4,520,27/10/2023,2310-00575,0.00,178.44,R,ALLBRITE MEDICAL STAFFING LTD,No
Http://opendatacommunities.org/id/metropolitan-district-council/leeds,Leeds City Council,31/10/2023,Adults and Health,Services For Adults Under 65 Mental/Dis,Agency Payments,Fees - Level 4,520,27/10/2023,2310-00576,0.00,202.09,R,ALLBRITE MEDICAL STAFFING LTD,No
Http://opendatacommunities.org/id/metropolitan-district-council/leeds,Leeds City Council,31/10/2023,Adults and Health,Services For Adults Under 65 Mental/Dis,Agency Payments,Fees - Level 4,520,27/10/2023,2310-00577,0.00,202.09,R,ALLBRITE MEDICAL STAFFING LTD,No
Http://opendatacommunities.org/id/metropolitan-district-council/leeds,Leeds City Council,31/10/2023,Adults and Health,Services For Adults Under 65 Mental/Dis,Agency Payments,Fees - Level 4,520,27/10/2023,2310-00578,0.00,176.29,R,ALLBRITE MEDICAL STAFFING LTD,No
Http://opendatacommunities.org/id/metropolitan-district-council/leeds,Leeds City Council,31/10/2023,Adults and Health,Services For Adults Under 65 Mental/Dis,Agency Payments,Fees - Level 4,520,27/10/2023,2310-00579,0.00,175.00,R,ALLBRITE MEDICAL STAFFING LTD,No
Http://opendatacommunities.org/id/metropolitan-district-council/leeds,Leeds City Council,31/10/2023,Adults and Health,Services For Adults Under 65 Mental/Dis,Agency Payments,Fees - Level 4,520,27/10/2023,2310-00580,0.00,179.30,R,ALLBRITE MEDICAL STAFFING LTD,No
Http://opendatacommunities.org/id/metropolitan-district-council/leeds,Leeds City Council,31/10/2023,Adults and Health,Services For Adults Under 65 Mental/Dis,Agency Payments,Fees - Level 4,520,27/10/2023,2310-00581,0.00,208.11,R,ALLBRITE MEDICAL STAFFING LTD,No
Http://opendatacommunities.org/id/metropolitan-district-council/leeds,Leeds City Council as Accountable Body,31/10/2023,Social Services Pooled Budgets,Jcs For People With Learning Disabilitie,Agency Payments,Sheltered Accommodation,569,11/10/2023,2310-00582,0.00,25207.52,R,Allerton Avenue,No
Http://opendatacommunities.org/id/metropolitan-district-council/leeds,Leeds City Council,31/10/2023,Adults and Health,Services For Older People - 65 And Over,Agency Payments,Nursing Care Dementia,574,11/10/2023,2310-00583,0.00,2125.04,R,ALLERTON PARK N H,No
Http://opendatacommunities.org/id/metropolitan-district-council/leeds,Leeds City Council,31/10/2023,Strategy and Resources,Finance,Supplies and Services,Bank Charges,263,05/10/2023,2310-00584,0.00,100.00,R,ALLIANCE & LEICESTER COMMERCIAL BANK,No
Http://opendatacommunities.org/id/metropolitan-district-council/leeds,Leeds City Council,31/10/2023,Strategy and Resources,Finance,Supplies and Services,Bank Charges,263,05/10/2023,2310-00585,0.00,99.26,R,ALLIANCE & LEICESTER COMMERCIAL BANK,No
Http://opendatacommunities.org/id/metropolitan-district-council/leeds,Leeds City Council,31/10/2023,Strategy and Resources,Commercial Services,Transport,Vehicle Spares,345,05/10/2023,2310-00586,0.00,-26.89,R,Alliance Automotive UK CV LTD,No
Http://opendatacommunities.org/id/metropolitan-district-council/leeds,Leeds City Council,31/10/2023,Strategy and Resources,Commercial Services,Transport,Vehicle Spares,345,05/10/2023,2310-00587,0.00,61.38,R,Alliance Automotive UK CV LTD,No
Http://opendatacommunities.org/id/metropolitan-district-council/leeds,Leeds City Council,31/10/2023,Strategy and Resources,Commercial Services,Transport,Vehicle Spares,345,05/10/2023,2310-00588,0.00,1292.17,R,Alliance Automotive UK CV LTD,No
Http://opendatacommunities.org/id/metropolitan-district-council/leeds,Leeds City Council,31/10/2023,Strategy and Resources,Commercial Services,Transport,Vehicle Spares,345,05/10/2023,2310-00589,0.00,1213.37,R,Alliance Automotive UK CV LTD,No
Http://opendatacommunities.org/id/metropolitan-district-council/leeds,Leeds City Council,31/10/2023,Strategy and Resources,Commercial Services,Transport,Vehicle Spares,345,05/10/2023,2310-00590,0.00,59.88,R,Alliance Automotive UK CV LTD,No
Http://opendatacommunities.org/id/metropolitan-district-council/leeds,Leeds City Council,31/10/2023,Strategy and Resources,Commercial Services,Transport,Vehicle Spares,345,05/10/2023,2310-00591,0.00,62.02,R,Alliance Automotive UK CV LTD,No
Http://opendatacommunities.org/id/metropolitan-district-council/leeds,Leeds City Council,31/10/2023,Strategy and Resources,Commercial Services,Transport,Vehicle Spares,345,05/10/2023,2310-00592,0.00,162.23,R,Alliance Automotive UK CV LTD,No
Http://opendatacommunities.org/id/metropolitan-district-council/leeds,Leeds City Council,31/10/2023,Strategy and Resources,Commercial Services,Transport,Vehicle Spares,345,05/10/2023,2310-00593,0.00,210.38,R,Alliance Automotive UK CV LTD,No
Http://opendatacommunities.org/id/metropolitan-district-council/leeds,Leeds City Council,31/10/2023,Strategy and Resources,Commercial Services,Transport,Vehicle Spares,345,05/10/2023,2310-00594,0.00,48.12,R,Alliance Automotive UK CV LTD,No
Http://opendatacommunities.org/id/metropolitan-district-council/leeds,Leeds City Council,31/10/2023,Strategy and Resources,Commercial Services,Transport,Vehicle Spares,345,05/10/2023,2310-00595,0.00,6.92,R,Alliance Automotive UK CV LTD,No
Http://opendatacommunities.org/id/metropolitan-district-council/leeds,Leeds City Council,31/10/2023,Strategy and Resources,Commercial Services,Transport,Vehicle Spares,345,05/10/2023,2310-00596,0.00,1450.75,R,Alliance Automotive UK CV LTD,No
Http://opendatacommunities.org/id/metropolitan-district-council/leeds,Leeds City Council,31/10/2023,Strategy and Resources,Commercial Services,Transport,Vehicle Spares,345,05/10/2023,2310-00597,0.00,235.87,R,Alliance Automotive UK CV LTD,No
Http://opendatacommunities.org/id/metropolitan-district-council/leeds,Leeds City Council,31/10/2023,Strategy and Resources,Commercial Services,Transport,Vehicle Spares,345,05/10/2023,2310-00598,0.00,170.34,R,Alliance Automotive UK CV LTD,No
Http://opendatacommunities.org/id/metropolitan-district-council/leeds,Leeds City Council,31/10/2023,Strategy and Resources,Commercial Services,Transport,Vehicle Spares,345,05/10/2023,2310-00599,0.00,26.89,R,Alliance Automotive UK CV LTD,No
Http://opendatacommunities.org/id/metropolitan-district-council/leeds,Leeds City Council,31/10/2023,Strategy and Resources,Commercial Services,Transport,Vehicle Spares,345,05/10/2023,2310-00600,0.00,244.60,R,Alliance Automotive UK CV LTD,No
Http://opendatacommunities.org/id/metropolitan-district-council/leeds,Leeds City Council,31/10/2023,Strategy and Resources,Commercial Services,Transport,Vehicle Spares,345,05/10/2023,2310-00601,0.00,64.36,R,Alliance Automotive UK CV LTD,No
Http://opendatacommunities.org/id/metropolitan-district-council/leeds,Leeds City Council,31/10/2023,Strategy and Resources,Commercial Services,Transport,Vehicle Spares,345,05/10/2023,2310-00602,0.00,36.95,R,Alliance Automotive UK CV LTD,No
Http://opendatacommunities.org/id/metropolitan-district-council/leeds,Leeds City Council,31/10/2023,Strategy and Resources,Commercial Services,Transport,Vehicle Spares,345,06/10/2023,2310-00603,0.00,-101.03,R,Alliance Automotive UK CV LTD,No
Http://opendatacommunities.org/id/metropolitan-district-council/leeds,Leeds City Council,31/10/2023,Strategy and Resources,Commercial Services,Transport,Vehicle Spares,345,06/10/2023,2310-00604,0.00,-64.36,R,Alliance Automotive UK CV LTD,No
Http://opendatacommunities.org/id/metropolitan-district-council/leeds,Leeds City Council,31/10/2023,Strategy and Resources,Commercial Services,Transport,Vehicle Spares,345,06/10/2023,2310-00605,0.00,326.30,R,Alliance Automotive UK CV LTD,No
Http://opendatacommunities.org/id/metropolitan-district-council/leeds,Leeds City Council,31/10/2023,Strategy and Resources,Commercial Services,Transport,Vehicle Spares,345,06/10/2023,2310-00606,0.00,4.93,R,Alliance Automotive UK CV LTD,No
Http://opendatacommunities.org/id/metropolitan-district-council/leeds,Leeds City Council,31/10/2023,Strategy and Resources,Commercial Services,Transport,Vehicle Spares,345,06/10/2023,2310-00607,0.00,210.38,R,Alliance Automotive UK CV LTD,No
Http://opendatacommunities.org/id/metropolitan-district-council/leeds,Leeds City Council,31/10/2023,Strategy and Resources,Commercial Services,Transport,Vehicle Spares,345,06/10/2023,2310-00608,0.00,525.89,R,Alliance Automotive UK CV LTD,No
Http://opendatacommunities.org/id/metropolitan-district-council/leeds,Leeds City Council,31/10/2023,Strategy and Resources,Commercial Services,Transport,Vehicle Spares,345,06/10/2023,2310-00609,0.00,85.04,R,Alliance Automotive UK CV LTD,No
Http://opendatacommunities.org/id/metropolitan-district-council/leeds,Leeds City Council,31/10/2023,Strategy and Resources,Commercial Services,Transport,Vehicle Spares,345,06/10/2023,2310-00610,0.00,170.15,R,Alliance Automotive UK CV LTD,No
Http://opendatacommunities.org/id/metropolitan-district-council/leeds,Leeds City Council,31/10/2023,Strategy and Resources,Commercial Services,Transport,Vehicle Spares,345,06/10/2023,2310-00611,0.00,991.51,R,Alliance Automotive UK CV LTD,No
Http://opendatacommunities.org/id/metropolitan-district-council/leeds,Leeds City Council,31/10/2023,Strategy and Resources,Commercial Services,Transport,Vehicle Spares,345,06/10/2023,2310-00612,0.00,873.19,R,Alliance Automotive UK CV LTD,No
Http://opendatacommunities.org/id/metropolitan-district-council/leeds,Leeds City Council,31/10/2023,Strategy and Resources,Commercial Services,Transport,Vehicle Spares,345,06/10/2023,2310-00613,0.00,259.02,R,Alliance Automotive UK CV LTD,No
Http://opendatacommunities.org/id/metropolitan-district-council/leeds,Leeds City Council,31/10/2023,Strategy and Resources,Commercial Services,Transport,Vehicle Spares,345,06/10/2023,2310-00614,0.00,37.09,R,Alliance Automotive UK CV LTD,No
Http://opendatacommunities.org/id/metropolitan-district-council/leeds,Leeds City Council,31/10/2023,Strategy and Resources,Commercial Services,Transport,Vehicle Spares,345,06/10/2023,2310-00615,0.00,162.01,R,Alliance Automotive UK CV LTD,No
Http://opendatacommunities.org/id/metropolitan-district-council/leeds,Leeds City Council,31/10/2023,Strategy and Resources,Commercial Services,Transport,Vehicle Spares,345,06/10/2023,2310-00616,0.00,186.86,R,Alliance Automotive UK CV LTD,No
Http://opendatacommunities.org/id/metropolitan-district-council/leeds,Leeds City Council,31/10/2023,Strategy and Resources,Commercial Services,Transport,Vehicle Spares,345,06/10/2023,2310-00617,0.00,51.08,R,Alliance Automotive UK CV LTD,No
Http://opendatacommunities.org/id/metropolitan-district-council/leeds,Leeds City Council,31/10/2023,Strategy and Resources,Commercial Services,Transport,Vehicle Spares,345,06/10/2023,2310-00618,0.00,214.24,R,Alliance Automotive UK CV LTD,No
Http://opendatacommunities.org/id/metropolitan-district-council/leeds,Leeds City Council,31/10/2023,Strategy and Resources,Commercial Services,Transport,Vehicle Spares,345,06/10/2023,2310-00619,0.00,478.60,R,Alliance Automotive UK CV LTD,No
Http://opendatacommunities.org/id/metropolitan-district-council/leeds,Leeds City Council,31/10/2023,Strategy and Resources,Commercial Services,Transport,Vehicle Spares,345,06/10/2023,2310-00620,0.00,176.46,R,Alliance Automotive UK CV LTD,No
Http://opendatacommunities.org/id/metropolitan-district-council/leeds,Leeds City Council,31/10/2023,Strategy and Resources,Commercial Services,Transport,Vehicle Spares,345,06/10/2023,2310-00621,0.00,191.27,R,Alliance Automotive UK CV LTD,No
Http://opendatacommunities.org/id/metropolitan-district-council/leeds,Leeds City Council,31/10/2023,Strategy and Resources,Commercial Services,Transport,Vehicle Spares,345,06/10/2023,2310-00622,0.00,70.20,R,Alliance Automotive UK CV LTD,No
Http://opendatacommunities.org/id/metropolitan-district-council/leeds,Leeds City Council,31/10/2023,Strategy and Resources,Commercial Services,Transport,Vehicle Spares,345,06/10/2023,2310-00623,0.00,631.62,R,Alliance Automotive UK CV LTD,No
Http://opendatacommunities.org/id/metropolitan-district-council/leeds,Leeds City Council,31/10/2023,Strategy and Resources,Commercial Services,Transport,Vehicle Spares,345,06/10/2023,2310-00624,0.00,799.53,R,Alliance Automotive UK CV LTD,No
Http://opendatacommunities.org/id/metropolitan-district-council/leeds,Leeds City Council,31/10/2023,Strategy and Resources,Commercial Services,Transport,Vehicle Spares,345,06/10/2023,2310-00625,0.00,40.63,R,Alliance Automotive UK CV LTD,No
Http://opendatacommunities.org/id/metropolitan-district-council/leeds,Leeds City Council,31/10/2023,Strategy and Resources,Commercial Services,Transport,Vehicle Spares,345,06/10/2023,2310-00626,0.00,476.47,R,Alliance Automotive UK CV LTD,No
Http://opendatacommunities.org/id/metropolitan-district-council/leeds,Leeds City Council,31/10/2023,Strategy and Resources,Commercial Services,Transport,Vehicle Spares,345,06/10/2023,2310-00627,0.00,40.63,R,Alliance Automotive UK CV LTD,No
Http://opendatacommunities.org/id/metropolitan-district-council/leeds,Leeds City Council,31/10/2023,Strategy and Resources,Commercial Services,Transport,Vehicle Spares,345,06/10/2023,2310-00628,0.00,153.73,R,Alliance Automotive UK CV LTD,No
Http://opendatacommunities.org/id/metropolitan-district-council/leeds,Leeds City Council,31/10/2023,Strategy and Resources,Commercial Services,Transport,Vehicle Spares,345,06/10/2023,2310-00629,0.00,51.86,R,Alliance Automotive UK CV LTD,No
Http://opendatacommunities.org/id/metropolitan-district-council/leeds,Leeds City Council,31/10/2023,Strategy and Resources,Commercial Services,Transport,Vehicle Spares,345,06/10/2023,2310-00630,0.00,607.30,R,Alliance Automotive UK CV LTD,No
Http://opendatacommunities.org/id/metropolitan-district-council/leeds,Leeds City Council,31/10/2023,Strategy and Resources,Commercial Services,Transport,Vehicle Spares,345,06/10/2023,2310-00631,0.00,16.70,R,Alliance Automotive UK CV LTD,No
Http://opendatacommunities.org/id/metropolitan-district-council/leeds,Leeds City Council,31/10/2023,Strategy and Resources,Commercial Services,Transport,Vehicle Spares,345,06/10/2023,2310-00632,0.00,630.43,R,Alliance Automotive UK CV LTD,No
Http://opendatacommunities.org/id/metropolitan-district-council/leeds,Leeds City Council,31/10/2023,Strategy and Resources,Commercial Services,Transport,Vehicle Spares,345,06/10/2023,2310-00633,0.00,24.12,R,Alliance Automotive UK CV LTD,No
Http://opendatacommunities.org/id/metropolitan-district-council/leeds,Leeds City Council,31/10/2023,Strategy and Resources,Commercial Services,Transport,Vehicle Spares,345,06/10/2023,2310-00634,0.00,33.63,R,Alliance Automotive UK CV LTD,No
Http://opendatacommunities.org/id/metropolitan-district-council/leeds,Leeds City Council,31/10/2023,Strategy and Resources,Commercial Services,Transport,Vehicle Spares,345,06/10/2023,2310-00635,0.00,420.75,R,Alliance Automotive UK CV LTD,No
Http://opendatacommunities.org/id/metropolitan-district-council/leeds,Leeds City Council,31/10/2023,Strategy and Resources,Commercial Services,Transport,Vehicle Spares,345,06/10/2023,2310-00636,0.00,39.19,R,Alliance Automotive UK CV LTD,No
Http://opendatacommunities.org/id/metropolitan-district-council/leeds,Leeds City Council,31/10/2023,Strategy and Resources,Commercial Services,Transport,Vehicle Spares,345,06/10/2023,2310-00637,0.00,631.13,R,Alliance Automotive UK CV LTD,No
Http://opendatacommunities.org/id/metropolitan-district-council/leeds,Leeds City Council,31/10/2023,Strategy and Resources,Commercial Services,Transport,Vehicle Spares,345,06/10/2023,2310-00638,0.00,88.61,R,Alliance Automotive UK CV LTD,No
Http://opendatacommunities.org/id/metropolitan-district-council/leeds,Leeds City Council,31/10/2023,Strategy and Resources,Commercial Services,Transport,Vehicle Spares,345,06/10/2023,2310-00639,0.00,246.81,R,Alliance Automotive UK CV LTD,No
Http://opendatacommunities.org/id/metropolitan-district-council/leeds,Leeds City Council,31/10/2023,Strategy and Resources,Commercial Services,Transport,Vehicle Spares,345,06/10/2023,2310-00640,0.00,73.50,R,Alliance Automotive UK CV LTD,No
Http://opendatacommunities.org/id/metropolitan-district-council/leeds,Leeds City Council,31/10/2023,Strategy and Resources,Commercial Services,Transport,Vehicle Spares,345,06/10/2023,2310-00641,0.00,15.24,R,Alliance Automotive UK CV LTD,No
Http://opendatacommunities.org/id/metropolitan-district-council/leeds,Leeds City Council,31/10/2023,Strategy and Resources,Commercial Services,Transport,Vehicle Spares,345,06/10/2023,2310-00642,0.00,168.94,R,Alliance Automotive UK CV LTD,No
Http://opendatacommunities.org/id/metropolitan-district-council/leeds,Leeds City Council,31/10/2023,Strategy and Resources,Commercial Services,Transport,Vehicle Spares,345,12/10/2023,2310-00643,0.00,24.20,R,Alliance Automotive UK CV LTD,No
Http://opendatacommunities.org/id/metropolitan-district-council/leeds,Leeds City Council,31/10/2023,Strategy and Resources,Commercial Services,Transport,Vehicle Spares,345,12/10/2023,2310-00644,0.00,106.18,R,Alliance Automotive UK CV LTD,No
Http://opendatacommunities.org/id/metropolitan-district-council/leeds,Leeds City Council,31/10/2023,Strategy and Resources,Commercial Services,Transport,Vehicle Spares,345,12/10/2023,2310-00645,0.00,177.02,R,Alliance Automotive UK CV LTD,No
Http://opendatacommunities.org/id/metropolitan-district-council/leeds,Leeds City Council,31/10/2023,Strategy and Resources,Commercial Services,Transport,Vehicle Spares,345,12/10/2023,2310-00646,0.00,706.74,R,Alliance Automotive UK CV LTD,No
Http://opendatacommunities.org/id/metropolitan-district-council/leeds,Leeds City Council,31/10/2023,Strategy and Resources,Commercial Services,Transport,Vehicle Spares,345,12/10/2023,2310-00647,0.00,68.67,R,Alliance Automotive UK CV LTD,No
Http://opendatacommunities.org/id/metropolitan-district-council/leeds,Leeds City Council,31/10/2023,Strategy and Resources,Commercial Services,Transport,Vehicle Spares,345,12/10/2023,2310-00648,0.00,51.64,R,Alliance Automotive UK CV LTD,No
Http://opendatacommunities.org/id/metropolitan-district-council/leeds,Leeds City Council,31/10/2023,Strategy and Resources,Commercial Services,Transport,Vehicle Spares,345,12/10/2023,2310-00649,0.00,390.66,R,Alliance Automotive UK CV LTD,No
Http://opendatacommunities.org/id/metropolitan-district-council/leeds,Leeds City Council,31/10/2023,Strategy and Resources,Commercial Services,Transport,Vehicle Spares,345,12/10/2023,2310-00650,0.00,6.00,R,Alliance Automotive UK CV LTD,No
Http://opendatacommunities.org/id/metropolitan-district-council/leeds,Leeds City Council,31/10/2023,Strategy and Resources,Commercial Services,Transport,Vehicle Spares,345,12/10/2023,2310-00651,0.00,235.72,R,Alliance Automotive UK CV LTD,No
Http://opendatacommunities.org/id/metropolitan-district-council/leeds,Leeds City Council,31/10/2023,Strategy and Resources,Commercial Services,Transport,Vehicle Spares,345,12/10/2023,2310-00652,0.00,16.46,R,Alliance Automotive UK CV LTD,No
Http://opendatacommunities.org/id/metropolitan-district-council/leeds,Leeds City Council,31/10/2023,Strategy and Resources,Commercial Services,Transport,Vehicle Spares,345,12/10/2023,2310-00653,0.00,331.19,R,Alliance Automotive UK CV LTD,No
Http://opendatacommunities.org/id/metropolitan-district-council/leeds,Leeds City Council,31/10/2023,Strategy and Resources,Commercial Services,Transport,Vehicle Spares,345,12/10/2023,2310-00654,0.00,86.13,R,Alliance Automotive UK CV LTD,No
Http://opendatacommunities.org/id/metropolitan-district-council/leeds,Leeds City Council,31/10/2023,Strategy and Resources,Commercial Services,Transport,Vehicle Spares,345,12/10/2023,2310-00655,0.00,10.75,R,Alliance Automotive UK CV LTD,No
Http://opendatacommunities.org/id/metropolitan-district-council/leeds,Leeds City Council,31/10/2023,Strategy and Resources,Commercial Services,Transport,Vehicle Spares,345,12/10/2023,2310-00656,0.00,230.71,R,Alliance Automotive UK CV LTD,No
Http://opendatacommunities.org/id/metropolitan-district-council/leeds,Leeds City Council,31/10/2023,Strategy and Resources,Commercial Services,Transport,Vehicle Spares,345,12/10/2023,2310-00657,0.00,343.22,R,Alliance Automotive UK CV LTD,No
Http://opendatacommunities.org/id/metropolitan-district-council/leeds,Leeds City Council,31/10/2023,Strategy and Resources,Commercial Services,Transport,Vehicle Spares,345,12/10/2023,2310-00658,0.00,577.46,R,Alliance Automotive UK CV LTD,No
Http://opendatacommunities.org/id/metropolitan-district-council/leeds,Leeds City Council,31/10/2023,Strategy and Resources,Commercial Services,Transport,Vehicle Spares,345,12/10/2023,2310-00659,0.00,197.93,R,Alliance Automotive UK CV LTD,No
Http://opendatacommunities.org/id/metropolitan-district-council/leeds,Leeds City Council,31/10/2023,Strategy and Resources,Commercial Services,Transport,Vehicle Spares,345,12/10/2023,2310-00660,0.00,42.90,R,Alliance Automotive UK CV LTD,No
Http://opendatacommunities.org/id/metropolitan-district-council/leeds,Leeds City Council,31/10/2023,Strategy and Resources,Commercial Services,Transport,Vehicle Spares,345,12/10/2023,2310-00661,0.00,19.31,R,Alliance Automotive UK CV LTD,No
Http://opendatacommunities.org/id/metropolitan-district-council/leeds,Leeds City Council,31/10/2023,Strategy and Resources,Commercial Services,Transport,Vehicle Spares,345,12/10/2023,2310-00662,0.00,54.69,R,Alliance Automotive UK CV LTD,No
Http://opendatacommunities.org/id/metropolitan-district-council/leeds,Leeds City Council,31/10/2023,Strategy and Resources,Commercial Services,Transport,Vehicle Spares,345,12/10/2023,2310-00663,0.00,13.57,R,Alliance Automotive UK CV LTD,No
Http://opendatacommunities.org/id/metropolitan-district-council/leeds,Leeds City Council,31/10/2023,Strategy and Resources,Commercial Services,Transport,Vehicle Spares,345,12/10/2023,2310-00664,0.00,274.40,R,Alliance Automotive UK CV LTD,No
Http://opendatacommunities.org/id/metropolitan-district-council/leeds,Leeds City Council,31/10/2023,Strategy and Resources,Commercial Services,Transport,Vehicle Spares,345,12/10/2023,2310-00665,0.00,165.85,R,Alliance Automotive UK CV LTD,No
Http://opendatacommunities.org/id/metropolitan-district-council/leeds,Leeds City Council,31/10/2023,Strategy and Resources,Commercial Services,Transport,Vehicle Spares,345,12/10/2023,2310-00666,0.00,77.49,R,Alliance Automotive UK CV LTD,No
Http://opendatacommunities.org/id/metropolitan-district-council/leeds,Leeds City Council,31/10/2023,Strategy and Resources,Commercial Services,Transport,Vehicle Spares,345,12/10/2023,2310-00667,0.00,408.57,R,Alliance Automotive UK CV LTD,No
Http://opendatacommunities.org/id/metropolitan-district-council/leeds,Leeds City Council,31/10/2023,Strategy and Resources,Commercial Services,Transport,Vehicle Spares,345,12/10/2023,2310-00668,0.00,157.41,R,Alliance Automotive UK CV LTD,No
Http://opendatacommunities.org/id/metropolitan-district-council/leeds,Leeds City Council,31/10/2023,Strategy and Resources,Commercial Services,Transport,Vehicle Spares,345,12/10/2023,2310-00669,0.00,46.37,R,Alliance Automotive UK CV LTD,No
Http://opendatacommunities.org/id/metropolitan-district-council/leeds,Leeds City Council,31/10/2023,Strategy and Resources,Commercial Services,Transport,Vehicle Spares,345,12/10/2023,2310-00670,0.00,157.41,R,Alliance Automotive UK CV LTD,No
Http://opendatacommunities.org/id/metropolitan-district-council/leeds,Leeds City Council,31/10/2023,Strategy and Resources,Commercial Services,Transport,Vehicle Spares,345,12/10/2023,2310-00671,0.00,814.40,R,Alliance Automotive UK CV LTD,No
Http://opendatacommunities.org/id/metropolitan-district-council/leeds,Leeds City Council,31/10/2023,Strategy and Resources,Commercial Services,Transport,Vehicle Spares,345,12/10/2023,2310-00672,0.00,26.93,R,Alliance Automotive UK CV LTD,No
Http://opendatacommunities.org/id/metropolitan-district-council/leeds,Leeds City Council,31/10/2023,Strategy and Resources,Commercial Services,Transport,Vehicle Spares,345,13/10/2023,2310-00673,0.00,-24.12,R,Alliance Automotive UK CV LTD,No
Http://opendatacommunities.org/id/metropolitan-district-council/leeds,Leeds City Council,31/10/2023,Strategy and Resources,Commercial Services,Transport,Vehicle Spares,345,13/10/2023,2310-00674,0.00,-578.66,R,Alliance Automotive UK CV LTD,No
Http://opendatacommunities.org/id/metropolitan-district-council/leeds,Leeds City Council,31/10/2023,Strategy and Resources,Commercial Services,Transport,Vehicle Spares,345,13/10/2023,2310-00675,0.00,-799.53,R,Alliance Automotive UK CV LTD,No
Http://opendatacommunities.org/id/metropolitan-district-council/leeds,Leeds City Council,31/10/2023,Strategy and Resources,Commercial Services,Transport,Vehicle Spares,345,13/10/2023,2310-00676,0.00,30.42,R,Alliance Automotive UK CV LTD,No
Http://opendatacommunities.org/id/metropolitan-district-council/leeds,Leeds City Council,31/10/2023,Strategy and Resources,Commercial Services,Transport,Vehicle Spares,345,13/10/2023,2310-00677,0.00,413.82,R,Alliance Automotive UK CV LTD,No
Http://opendatacommunities.org/id/metropolitan-district-council/leeds,Leeds City Council,31/10/2023,Strategy and Resources,Commercial Services,Transport,Vehicle Spares,345,13/10/2023,2310-00678,0.00,59.44,R,Alliance Automotive UK CV LTD,No
Http://opendatacommunities.org/id/metropolitan-district-council/leeds,Leeds City Council,31/10/2023,Strategy and Resources,Commercial Services,Transport,Vehicle Spares,345,13/10/2023,2310-00679,0.00,180.82,R,Alliance Automotive UK CV LTD,No
Http://opendatacommunities.org/id/metropolitan-district-council/leeds,Leeds City Council,31/10/2023,Strategy and Resources,Commercial Services,Transport,Vehicle Spares,345,13/10/2023,2310-00680,0.00,868.27,R,Alliance Automotive UK CV LTD,No
Http://opendatacommunities.org/id/metropolitan-district-council/leeds,Leeds City Council,31/10/2023,Strategy and Resources,Commercial Services,Transport,Vehicle Spares,345,13/10/2023,2310-00681,0.00,385.12,R,Alliance Automotive UK CV LTD,No
Http://opendatacommunities.org/id/metropolitan-district-council/leeds,Leeds City Council,31/10/2023,Strategy and Resources,Commercial Services,Transport,Vehicle Spares,345,13/10/2023,2310-00682,0.00,76.15,R,Alliance Automotive UK CV LTD,No
Http://opendatacommunities.org/id/metropolitan-district-council/leeds,Leeds City Council,31/10/2023,Strategy and Resources,Commercial Services,Transport,Vehicle Spares,345,13/10/2023,2310-00683,0.00,49.35,R,Alliance Automotive UK CV LTD,No
Http://opendatacommunities.org/id/metropolitan-district-council/leeds,Leeds City Council,31/10/2023,Strategy and Resources,Commercial Services,Transport,Vehicle Spares,345,13/10/2023,2310-00684,0.00,109.20,R,Alliance Automotive UK CV LTD,No
Http://opendatacommunities.org/id/metropolitan-district-council/leeds,Leeds City Council,31/10/2023,Strategy and Resources,Commercial Services,Transport,Vehicle Spares,345,13/10/2023,2310-00685,0.00,161.16,R,Alliance Automotive UK CV LTD,No
Http://opendatacommunities.org/id/metropolitan-district-council/leeds,Leeds City Council,31/10/2023,Strategy and Resources,Commercial Services,Transport,Vehicle Spares,345,13/10/2023,2310-00686,0.00,74.80,R,Alliance Automotive UK CV LTD,No
Http://opendatacommunities.org/id/metropolitan-district-council/leeds,Leeds City Council,31/10/2023,Strategy and Resources,Commercial Services,Transport,Vehicle Spares,345,13/10/2023,2310-00687,0.00,92.67,R,Alliance Automotive UK CV LTD,No
Http://opendatacommunities.org/id/metropolitan-district-council/leeds,Leeds City Council,31/10/2023,Strategy and Resources,Commercial Services,Transport,Vehicle Spares,345,13/10/2023,2310-00688,0.00,23.76,R,Alliance Automotive UK CV LTD,No
Http://opendatacommunities.org/id/metropolitan-district-council/leeds,Leeds City Council,31/10/2023,Strategy and Resources,Commercial Services,Transport,Vehicle Spares,345,13/10/2023,2310-00689,0.00,0.78,R,Alliance Automotive UK CV LTD,No
Http://opendatacommunities.org/id/metropolitan-district-council/leeds,Leeds City Council,31/10/2023,Strategy and Resources,Commercial Services,Transport,Vehicle Spares,345,13/10/2023,2310-00690,0.00,578.66,R,Alliance Automotive UK CV LTD,No
Http://opendatacommunities.org/id/metropolitan-district-council/leeds,Leeds City Council,31/10/2023,Strategy and Resources,Commercial Services,Transport,Vehicle Spares,345,13/10/2023,2310-00691,0.00,725.48,R,Alliance Automotive UK CV LTD,No
Http://opendatacommunities.org/id/metropolitan-district-council/leeds,Leeds City Council,31/10/2023,Strategy and Resources,Commercial Services,Transport,Vehicle Spares,345,13/10/2023,2310-00692,0.00,859.04,R,Alliance Automotive UK CV LTD,No
Http://opendatacommunities.org/id/metropolitan-district-council/leeds,Leeds City Council,31/10/2023,Strategy and Resources,Commercial Services,Transport,Vehicle Spares,345,13/10/2023,2310-00693,0.00,376.21,R,Alliance Automotive UK CV LTD,No
Http://opendatacommunities.org/id/metropolitan-district-council/leeds,Leeds City Council,31/10/2023,Strategy and Resources,Commercial Services,Transport,Vehicle Spares,345,13/10/2023,2310-00694,0.00,791.62,R,Alliance Automotive UK CV LTD,No
Http://opendatacommunities.org/id/metropolitan-district-council/leeds,Leeds City Council,31/10/2023,Strategy and Resources,Commercial Services,Transport,Vehicle Spares,345,13/10/2023,2310-00695,0.00,205.28,R,Alliance Automotive UK CV LTD,No
Http://opendatacommunities.org/id/metropolitan-district-council/leeds,Leeds City Council,31/10/2023,Strategy and Resources,Commercial Services,Transport,Vehicle Spares,345,13/10/2023,2310-00696,0.00,40.61,R,Alliance Automotive UK CV LTD,No
Http://opendatacommunities.org/id/metropolitan-district-council/leeds,Leeds City Council,31/10/2023,Strategy and Resources,Commercial Services,Transport,Vehicle Spares,345,13/10/2023,2310-00697,0.00,101.53,R,Alliance Automotive UK CV LTD,No
Http://opendatacommunities.org/id/metropolitan-district-council/leeds,Leeds City Council,31/10/2023,Strategy and Resources,Commercial Services,Transport,Vehicle Spares,345,13/10/2023,2310-00698,0.00,9.28,R,Alliance Automotive UK CV LTD,No
Http://opendatacommunities.org/id/metropolitan-district-council/leeds,Leeds City Council,31/10/2023,Strategy and Resources,Commercial Services,Transport,Vehicle Spares,345,13/10/2023,2310-00699,0.00,236.61,R,Alliance Automotive UK CV LTD,No
Http://opendatacommunities.org/id/metropolitan-district-council/leeds,Leeds City Council,31/10/2023,Strategy and Resources,Commercial Services,Transport,Vehicle Spares,345,13/10/2023,2310-00700,0.00,11.58,R,Alliance Automotive UK CV LTD,No
Http://opendatacommunities.org/id/metropolitan-district-council/leeds,Leeds City Council,31/10/2023,Strategy and Resources,Commercial Services,Transport,Vehicle Spares,345,13/10/2023,2310-00701,0.00,96.22,R,Alliance Automotive UK CV LTD,No
Http://opendatacommunities.org/id/metropolitan-district-council/leeds,Leeds City Council,31/10/2023,Strategy and Resources,Commercial Services,Transport,Vehicle Spares,345,13/10/2023,2310-00702,0.00,19.21,R,Alliance Automotive UK CV LTD,No
Http://opendatacommunities.org/id/metropolitan-district-council/leeds,Leeds City Council,31/10/2023,Strategy and Resources,Commercial Services,Transport,Vehicle Spares,345,13/10/2023,2310-00703,0.00,8.87,R,Alliance Automotive UK CV LTD,No
Http://opendatacommunities.org/id/metropolitan-district-council/leeds,Leeds City Council,31/10/2023,Strategy and Resources,Commercial Services,Transport,Vehicle Spares,345,19/10/2023,2310-00704,0.00,-44.43,R,Alliance Automotive UK CV LTD,No
Http://opendatacommunities.org/id/metropolitan-district-council/leeds,Leeds City Council,31/10/2023,Strategy and Resources,Commercial Services,Transport,Vehicle Spares,345,19/10/2023,2310-00705,0.00,955.67,R,Alliance Automotive UK CV LTD,No
Http://opendatacommunities.org/id/metropolitan-district-council/leeds,Leeds City Council,31/10/2023,Strategy and Resources,Commercial Services,Transport,Vehicle Spares,345,19/10/2023,2310-00706,0.00,44.43,R,Alliance Automotive UK CV LTD,No
Http://opendatacommunities.org/id/metropolitan-district-council/leeds,Leeds City Council,31/10/2023,Strategy and Resources,Commercial Services,Transport,Vehicle Spares,345,19/10/2023,2310-00707,0.00,297.32,R,Alliance Automotive UK CV LTD,No
Http://opendatacommunities.org/id/metropolitan-district-council/leeds,Leeds City Council,31/10/2023,Strategy and Resources,Commercial Services,Transport,Vehicle Spares,345,19/10/2023,2310-00708,0.00,442.89,R,Alliance Automotive UK CV LTD,No
Http://opendatacommunities.org/id/metropolitan-district-council/leeds,Leeds City Council,31/10/2023,Strategy and Resources,Commercial Services,Transport,Vehicle Spares,345,19/10/2023,2310-00709,0.00,153.28,R,Alliance Automotive UK CV LTD,No
Http://opendatacommunities.org/id/metropolitan-district-council/leeds,Leeds City Council,31/10/2023,Strategy and Resources,Commercial Services,Transport,Vehicle Spares,345,19/10/2023,2310-00710,0.00,75.00,R,Alliance Automotive UK CV LTD,No
Http://opendatacommunities.org/id/metropolitan-district-council/leeds,Leeds City Council,31/10/2023,Strategy and Resources,Commercial Services,Transport,Vehicle Spares,345,19/10/2023,2310-00711,0.00,148.95,R,Alliance Automotive UK CV LTD,No
Http://opendatacommunities.org/id/metropolitan-district-council/leeds,Leeds City Council,31/10/2023,Strategy and Resources,Commercial Services,Transport,Vehicle Spares,345,19/10/2023,2310-00712,0.00,115.32,R,Alliance Automotive UK CV LTD,No
Http://opendatacommunities.org/id/metropolitan-district-council/leeds,Leeds City Council,31/10/2023,Strategy and Resources,Commercial Services,Transport,Vehicle Spares,345,19/10/2023,2310-00713,0.00,163.63,R,Alliance Automotive UK CV LTD,No
Http://opendatacommunities.org/id/metropolitan-district-council/leeds,Leeds City Council,31/10/2023,Strategy and Resources,Commercial Services,Transport,Vehicle Spares,345,19/10/2023,2310-00714,0.00,173.42,R,Alliance Automotive UK CV LTD,No
Http://opendatacommunities.org/id/metropolitan-district-council/leeds,Leeds City Council,31/10/2023,Strategy and Resources,Commercial Services,Transport,Vehicle Spares,345,19/10/2023,2310-00715,0.00,21.09,R,Alliance Automotive UK CV LTD,No
Http://opendatacommunities.org/id/metropolitan-district-council/leeds,Leeds City Council,31/10/2023,Strategy and Resources,Commercial Services,Transport,Vehicle Spares,345,19/10/2023,2310-00716,0.00,75.08,R,Alliance Automotive UK CV LTD,No
Http://opendatacommunities.org/id/metropolitan-district-council/leeds,Leeds City Council,31/10/2023,Strategy and Resources,Commercial Services,Transport,Vehicle Spares,345,19/10/2023,2310-00717,0.00,380.58,R,Alliance Automotive UK CV LTD,No
Http://opendatacommunities.org/id/metropolitan-district-council/leeds,Leeds City Council,31/10/2023,Strategy and Resources,Commercial Services,Transport,Vehicle Spares,345,19/10/2023,2310-00718,0.00,62.64,R,Alliance Automotive UK CV LTD,No
Http://opendatacommunities.org/id/metropolitan-district-council/leeds,Leeds City Council,31/10/2023,Strategy and Resources,Commercial Services,Transport,Vehicle Spares,345,19/10/2023,2310-00719,0.00,195.13,R,Alliance Automotive UK CV LTD,No
Http://opendatacommunities.org/id/metropolitan-district-council/leeds,Leeds City Council,31/10/2023,Strategy and Resources,Commercial Services,Transport,Vehicle Spares,345,19/10/2023,2310-00720,0.00,21.78,R,Alliance Automotive UK CV LTD,No
Http://opendatacommunities.org/id/metropolitan-district-council/leeds,Leeds City Council,31/10/2023,Strategy and Resources,Commercial Services,Transport,Vehicle Spares,345,19/10/2023,2310-00721,0.00,184.54,R,Alliance Automotive UK CV LTD,No
Http://opendatacommunities.org/id/metropolitan-district-council/leeds,Leeds City Council,31/10/2023,Strategy and Resources,Commercial Services,Transport,Vehicle Spares,345,19/10/2023,2310-00722,0.00,109.04,R,Alliance Automotive UK CV LTD,No
Http://opendatacommunities.org/id/metropolitan-district-council/leeds,Leeds City Council,31/10/2023,Strategy and Resources,Commercial Services,Transport,Vehicle Spares,345,19/10/2023,2310-00723,0.00,254.83,R,Alliance Automotive UK CV LTD,No
Http://opendatacommunities.org/id/metropolitan-district-council/leeds,Leeds City Council,31/10/2023,Strategy and Resources,Commercial Services,Transport,Vehicle Spares,345,19/10/2023,2310-00724,0.00,262.02,R,Alliance Automotive UK CV LTD,No
Http://opendatacommunities.org/id/metropolitan-district-council/leeds,Leeds City Council,31/10/2023,Strategy and Resources,Commercial Services,Transport,Vehicle Spares,345,19/10/2023,2310-00725,0.00,82.47,R,Alliance Automotive UK CV LTD,No
Http://opendatacommunities.org/id/metropolitan-district-council/leeds,Leeds City Council,31/10/2023,Strategy and Resources,Commercial Services,Transport,Vehicle Spares,345,20/10/2023,2310-00726,0.00,-20.83,R,Alliance Automotive UK CV LTD,No
Http://opendatacommunities.org/id/metropolitan-district-council/leeds,Leeds City Council,31/10/2023,Strategy and Resources,Commercial Services,Transport,Vehicle Spares,345,20/10/2023,2310-00727,0.00,-8.91,R,Alliance Automotive UK CV LTD,No
Http://opendatacommunities.org/id/metropolitan-district-council/leeds,Leeds City Council,31/10/2023,Strategy and Resources,Commercial Services,Transport,Vehicle Spares,345,20/10/2023,2310-00728,0.00,-124.38,R,Alliance Automotive UK CV LTD,No
Http://opendatacommunities.org/id/metropolitan-district-council/leeds,Leeds City Council,31/10/2023,Strategy and Resources,Commercial Services,Transport,Vehicle Spares,345,20/10/2023,2310-00729,0.00,-844.19,R,Alliance Automotive UK CV LTD,No
Http://opendatacommunities.org/id/metropolitan-district-council/leeds,Leeds City Council,31/10/2023,Strategy and Resources,Commercial Services,Transport,Vehicle Spares,345,20/10/2023,2310-00730,0.00,-48.21,R,Alliance Automotive UK CV LTD,No
Http://opendatacommunities.org/id/metropolitan-district-council/leeds,Leeds City Council,31/10/2023,Strategy and Resources,Commercial Services,Transport,Vehicle Spares,345,20/10/2023,2310-00731,0.00,-121.00,R,Alliance Automotive UK CV LTD,No
Http://opendatacommunities.org/id/metropolitan-district-council/leeds,Leeds City Council,31/10/2023,Strategy and Resources,Commercial Services,Transport,Vehicle Spares,345,20/10/2023,2310-00732,0.00,71.67,R,Alliance Automotive UK CV LTD,No
Http://opendatacommunities.org/id/metropolitan-district-council/leeds,Leeds City Council,31/10/2023,Strategy and Resources,Commercial Services,Transport,Vehicle Spares,345,20/10/2023,2310-00733,0.00,53.98,R,Alliance Automotive UK CV LTD,No
Http://opendatacommunities.org/id/metropolitan-district-council/leeds,Leeds City Council,31/10/2023,Strategy and Resources,Commercial Services,Transport,Vehicle Spares,345,20/10/2023,2310-00734,0.00,23.88,R,Alliance Automotive UK CV LTD,No
Http://opendatacommunities.org/id/metropolitan-district-council/leeds,Leeds City Council,31/10/2023,Strategy and Resources,Commercial Services,Transport,Vehicle Spares,345,20/10/2023,2310-00735,0.00,116.82,R,Alliance Automotive UK CV LTD,No
Http://opendatacommunities.org/id/metropolitan-district-council/leeds,Leeds City Council,31/10/2023,Strategy and Resources,Commercial Services,Transport,Vehicle Spares,345,20/10/2023,2310-00736,0.00,187.61,R,Alliance Automotive UK CV LTD,No
Http://opendatacommunities.org/id/metropolitan-district-council/leeds,Leeds City Council,31/10/2023,Strategy and Resources,Commercial Services,Transport,Vehicle Spares,345,20/10/2023,2310-00737,0.00,69.44,R,Alliance Automotive UK CV LTD,No
Http://opendatacommunities.org/id/metropolitan-district-council/leeds,Leeds City Council,31/10/2023,Strategy and Resources,Commercial Services,Transport,Vehicle Spares,345,20/10/2023,2310-00738,0.00,24.60,R,Alliance Automotive UK CV LTD,No
Http://opendatacommunities.org/id/metropolitan-district-council/leeds,Leeds City Council,31/10/2023,Strategy and Resources,Commercial Services,Transport,Vehicle Spares,345,20/10/2023,2310-00739,0.00,111.68,R,Alliance Automotive UK CV LTD,No
Http://opendatacommunities.org/id/metropolitan-district-council/leeds,Leeds City Council,31/10/2023,Strategy and Resources,Commercial Services,Transport,Vehicle Spares,345,20/10/2023,2310-00740,0.00,618.56,R,Alliance Automotive UK CV LTD,No
Http://opendatacommunities.org/id/metropolitan-district-council/leeds,Leeds City Council,31/10/2023,Strategy and Resources,Commercial Services,Transport,Vehicle Spares,345,20/10/2023,2310-00741,0.00,157.41,R,Alliance Automotive UK CV LTD,No
Http://opendatacommunities.org/id/metropolitan-district-council/leeds,Leeds City Council,31/10/2023,Strategy and Resources,Commercial Services,Transport,Vehicle Spares,345,20/10/2023,2310-00742,0.00,85.66,R,Alliance Automotive UK CV LTD,No
Http://opendatacommunities.org/id/metropolitan-district-council/leeds,Leeds City Council,31/10/2023,Strategy and Resources,Commercial Services,Transport,Vehicle Spares,345,20/10/2023,2310-00743,0.00,73.55,R,Alliance Automotive UK CV LTD,No
Http://opendatacommunities.org/id/metropolitan-district-council/leeds,Leeds City Council,31/10/2023,Strategy and Resources,Commercial Services,Transport,Vehicle Spares,345,20/10/2023,2310-00744,0.00,37.28,R,Alliance Automotive UK CV LTD,No
Http://opendatacommunities.org/id/metropolitan-district-council/leeds,Leeds City Council,31/10/2023,Strategy and Resources,Commercial Services,Transport,Vehicle Spares,345,23/10/2023,2310-00745,0.00,-36.36,R,Alliance Automotive UK CV LTD,No
Http://opendatacommunities.org/id/metropolitan-district-council/leeds,Leeds City Council,31/10/2023,Strategy and Resources,Commercial Services,Transport,Vehicle Spares,345,23/10/2023,2310-00746,0.00,44.43,R,Alliance Automotive UK CV LTD,No
Http://opendatacommunities.org/id/metropolitan-district-council/leeds,Leeds City Council,31/10/2023,Strategy and Resources,Commercial Services,Transport,Vehicle Spares,345,23/10/2023,2310-00747,0.00,150.13,R,Alliance Automotive UK CV LTD,No
Http://opendatacommunities.org/id/metropolitan-district-council/leeds,Leeds City Council,31/10/2023,Strategy and Resources,Commercial Services,Transport,Vehicle Spares,345,23/10/2023,2310-00748,0.00,9.41,R,Alliance Automotive UK CV LTD,No
Http://opendatacommunities.org/id/metropolitan-district-council/leeds,Leeds City Council,31/10/2023,Strategy and Resources,Commercial Services,Transport,Vehicle Spares,345,23/10/2023,2310-00749,0.00,42.00,R,Alliance Automotive UK CV LTD,No
Http://opendatacommunities.org/id/metropolitan-district-council/leeds,Leeds City Council,31/10/2023,Strategy and Resources,Commercial Services,Transport,Vehicle Spares,345,23/10/2023,2310-00750,0.00,8.50,R,Alliance Automotive UK CV LTD,No
Http://opendatacommunities.org/id/metropolitan-district-council/leeds,Leeds City Council,31/10/2023,Strategy and Resources,Commercial Services,Transport,Vehicle Spares,345,23/10/2023,2310-00751,0.00,64.36,R,Alliance Automotive UK CV LTD,No
Http://opendatacommunities.org/id/metropolitan-district-council/leeds,Leeds City Council,31/10/2023,Strategy and Resources,Commercial Services,Transport,Vehicle Spares,345,23/10/2023,2310-00752,0.00,125.13,R,Alliance Automotive UK CV LTD,No
Http://opendatacommunities.org/id/metropolitan-district-council/leeds,Leeds City Council,31/10/2023,Strategy and Resources,Commercial Services,Transport,Vehicle Spares,345,23/10/2023,2310-00753,0.00,95.94,R,Alliance Automotive UK CV LTD,No
Http://opendatacommunities.org/id/metropolitan-district-council/leeds,Leeds City Council,31/10/2023,Strategy and Resources,Commercial Services,Transport,Vehicle Spares,345,26/10/2023,2310-00754,0.00,-8.50,R,Alliance Automotive UK CV LTD,No
Http://opendatacommunities.org/id/metropolitan-district-council/leeds,Leeds City Council,31/10/2023,Strategy and Resources,Commercial Services,Transport,Vehicle Spares,345,26/10/2023,2310-00755,0.00,-683.10,R,Alliance Automotive UK CV LTD,No
Http://opendatacommunities.org/id/metropolitan-district-council/leeds,Leeds City Council,31/10/2023,Strategy and Resources,Commercial Services,Transport,Vehicle Spares,345,26/10/2023,2310-00756,0.00,36.36,R,Alliance Automotive UK CV LTD,No
Http://opendatacommunities.org/id/metropolitan-district-council/leeds,Leeds City Council,31/10/2023,Strategy and Resources,Commercial Services,Transport,Vehicle Spares,345,26/10/2023,2310-00757,0.00,685.67,R,Alliance Automotive UK CV LTD,No
Http://opendatacommunities.org/id/metropolitan-district-council/leeds,Leeds City Council,31/10/2023,Strategy and Resources,Commercial Services,Transport,Vehicle Spares,345,26/10/2023,2310-00758,0.00,174.46,R,Alliance Automotive UK CV LTD,No
Http://opendatacommunities.org/id/metropolitan-district-council/leeds,Leeds City Council,31/10/2023,Strategy and Resources,Commercial Services,Transport,Vehicle Spares,345,26/10/2023,2310-00759,0.00,217.80,R,Alliance Automotive UK CV LTD,No
Http://opendatacommunities.org/id/metropolitan-district-council/leeds,Leeds City Council,31/10/2023,Strategy and Resources,Commercial Services,Transport,Vehicle Spares,345,26/10/2023,2310-00760,0.00,39.11,R,Alliance Automotive UK CV LTD,No
Http://opendatacommunities.org/id/metropolitan-district-council/leeds,Leeds City Council,31/10/2023,Strategy and Resources,Commercial Services,Transport,Vehicle Spares,345,26/10/2023,2310-00761,0.00,45.68,R,Alliance Automotive UK CV LTD,No
Http://opendatacommunities.org/id/metropolitan-district-council/leeds,Leeds City Council,31/10/2023,Strategy and Resources,Commercial Services,Transport,Vehicle Spares,345,26/10/2023,2310-00762,0.00,763.29,R,Alliance Automotive UK CV LTD,No
Http://opendatacommunities.org/id/metropolitan-district-council/leeds,Leeds City Council,31/10/2023,Strategy and Resources,Commercial Services,Transport,Vehicle Spares,345,26/10/2023,2310-00763,0.00,972.23,R,Alliance Automotive UK CV LTD,No
Http://opendatacommunities.org/id/metropolitan-district-council/leeds,Leeds City Council,31/10/2023,Strategy and Resources,Commercial Services,Transport,Vehicle Spares,345,26/10/2023,2310-00764,0.00,370.96,R,Alliance Automotive UK CV LTD,No
Http://opendatacommunities.org/id/metropolitan-district-council/leeds,Leeds City Council,31/10/2023,Strategy and Resources,Commercial Services,Transport,Vehicle Spares,345,26/10/2023,2310-00765,0.00,138.41,R,Alliance Automotive UK CV LTD,No
Http://opendatacommunities.org/id/metropolitan-district-council/leeds,Leeds City Council,31/10/2023,Strategy and Resources,Commercial Services,Transport,Vehicle Spares,345,26/10/2023,2310-00766,0.00,24.50,R,Alliance Automotive UK CV LTD,No
Http://opendatacommunities.org/id/metropolitan-district-council/leeds,Leeds City Council,31/10/2023,Strategy and Resources,Commercial Services,Transport,Vehicle Spares,345,26/10/2023,2310-00767,0.00,18.77,R,Alliance Automotive UK CV LTD,No
Http://opendatacommunities.org/id/metropolitan-district-council/leeds,Leeds City Council,31/10/2023,Strategy and Resources,Commercial Services,Transport,Vehicle Spares,345,26/10/2023,2310-00768,0.00,234.34,R,Alliance Automotive UK CV LTD,No
Http://opendatacommunities.org/id/metropolitan-district-council/leeds,Leeds City Council,31/10/2023,Strategy and Resources,Commercial Services,Transport,Vehicle Spares,345,26/10/2023,2310-00769,0.00,234.34,R,Alliance Automotive UK CV LTD,No
Http://opendatacommunities.org/id/metropolitan-district-council/leeds,Leeds City Council,31/10/2023,Strategy and Resources,Commercial Services,Transport,Vehicle Spares,345,26/10/2023,2310-00770,0.00,106.69,R,Alliance Automotive UK CV LTD,No
Http://opendatacommunities.org/id/metropolitan-district-council/leeds,Leeds City Council,31/10/2023,Strategy and Resources,Commercial Services,Transport,Vehicle Spares,345,26/10/2023,2310-00771,0.00,759.58,R,Alliance Automotive UK CV LTD,No
Http://opendatacommunities.org/id/metropolitan-district-council/leeds,Leeds City Council,31/10/2023,Strategy and Resources,Commercial Services,Transport,Vehicle Spares,345,26/10/2023,2310-00772,0.00,220.08,R,Alliance Automotive UK CV LTD,No
Http://opendatacommunities.org/id/metropolitan-district-council/leeds,Leeds City Council,31/10/2023,Strategy and Resources,Commercial Services,Transport,Vehicle Spares,345,26/10/2023,2310-00773,0.00,39.11,R,Alliance Automotive UK CV LTD,No
Http://opendatacommunities.org/id/metropolitan-district-council/leeds,Leeds City Council,31/10/2023,Strategy and Resources,Commercial Services,Transport,Vehicle Spares,345,26/10/2023,2310-00774,0.00,145.73,R,Alliance Automotive UK CV LTD,No
Http://opendatacommunities.org/id/metropolitan-district-council/leeds,Leeds City Council,31/10/2023,Strategy and Resources,Commercial Services,Transport,Vehicle Spares,345,26/10/2023,2310-00775,0.00,177.21,R,Alliance Automotive UK CV LTD,No
Http://opendatacommunities.org/id/metropolitan-district-council/leeds,Leeds City Council,31/10/2023,Strategy and Resources,Commercial Services,Transport,Vehicle Spares,345,26/10/2023,2310-00776,0.00,47.87,R,Alliance Automotive UK CV LTD,No
Http://opendatacommunities.org/id/metropolitan-district-council/leeds,Leeds City Council,31/10/2023,Strategy and Resources,Commercial Services,Transport,Vehicle Spares,345,26/10/2023,2310-00777,0.00,193.70,R,Alliance Automotive UK CV LTD,No
Http://opendatacommunities.org/id/metropolitan-district-council/leeds,Leeds City Council,31/10/2023,Strategy and Resources,Commercial Services,Transport,Vehicle Spares,345,26/10/2023,2310-00778,0.00,14.16,R,Alliance Automotive UK CV LTD,No
Http://opendatacommunities.org/id/metropolitan-district-council/leeds,Leeds City Council,31/10/2023,Strategy and Resources,Commercial Services,Transport,Vehicle Spares,345,26/10/2023,2310-00779,0.00,17.28,R,Alliance Automotive UK CV LTD,No
Http://opendatacommunities.org/id/metropolitan-district-council/leeds,Leeds City Council,31/10/2023,Strategy and Resources,Commercial Services,Transport,Vehicle Spares,345,26/10/2023,2310-00780,0.00,12.38,R,Alliance Automotive UK CV LTD,No
Http://opendatacommunities.org/id/metropolitan-district-council/leeds,Leeds City Council,31/10/2023,Strategy and Resources,Commercial Services,Transport,Vehicle Spares,345,26/10/2023,2310-00781,0.00,434.10,R,Alliance Automotive UK CV LTD,No
Http://opendatacommunities.org/id/metropolitan-district-council/leeds,Leeds City Council,31/10/2023,Strategy and Resources,Commercial Services,Transport,Vehicle Spares,345,27/10/2023,2310-00782,0.00,61.35,R,Alliance Automotive UK CV LTD,No
Http://opendatacommunities.org/id/metropolitan-district-council/leeds,Leeds City Council,31/10/2023,Strategy and Resources,Commercial Services,Transport,Vehicle Spares,345,27/10/2023,2310-00783,0.00,307.72,R,Alliance Automotive UK CV LTD,No
Http://opendatacommunities.org/id/metropolitan-district-council/leeds,Leeds City Council,31/10/2023,Strategy and Resources,Commercial Services,Transport,Vehicle Spares,345,27/10/2023,2310-00784,0.00,47.94,R,Alliance Automotive UK CV LTD,No
Http://opendatacommunities.org/id/metropolitan-district-council/leeds,Leeds City Council,31/10/2023,Strategy and Resources,Commercial Services,Transport,Vehicle Spares,345,27/10/2023,2310-00785,0.00,81.38,R,Alliance Automotive UK CV LTD,No
